{"text_format":"1","workbook":"xlsx","n_sheets":6,"sheets":["README","Copy tables and charts","Interactive","Interactive controls","GP pops","HB pops"],"not_rendered":{"charts":1,"images":5,"macros":1,"external_links":0,"defined_names":10,"comments":0,"pivot_tables":0},"unopened":[],"bounds":{"document_bytes":16777216,"sheet_cells":100000,"rows_first":2000,"rows_last":500,"rows_between":2000,"halvings":0,"cell_chars":16384,"cell_head_chars":4096},"cells_cut":0,"cells_raw":0,"read":"whole","date_system":"1900"}

{"sheet":"README","index":0,"n_rows":21,"n_cols":4,"rows_kept":21,"cut":false,"hidden":false,"merged":[[10,3,10,4],[11,3,11,5]]}
[]
[]
[]
[]
[]
[]
[]
[]
[]
["TOPIC:","GP Cluster Profiles",null,"Contents (click links to access):"]
["SUBJECT:","Age/sex breakdown",null,"Chart"]
["SOURCE: ","GP registrations data: Welsh Demographic Service (WDS), NHS Wales Informatics Service (NWIS)",null,"How to copy tables and charts"]
[null,"GP registrations data: English residents provided by PCTs/CCGs"]
["GEOGRAPHY:","GP clusters in Wales"]
["PERIOD:","WDS data extract from September 2012; English registrations received between October 2012 and May 2013"]
["DEMOGRAPHY:","Persons registered with GP practices which form the clusters in Wales"]
["STATISTICS:","Counts, percentages"]
["NOTES:","This file provides supporting data for the Observatory's GP Cluster Profiles."]
[null,"Details of the data source, method, caveats and notes on interpretation are available from the technical guide that accompanies these profiles."]
[null,"The profiles and technical guide are available here:"]
[null,"http://www.publichealthwalesobservatory.wales.nhs.uk/gpclusters"]

{"sheet":"Copy tables and charts","index":1,"n_rows":35,"n_cols":13,"rows_kept":35,"cut":false,"hidden":false,"merged":[]}
[]
[null,null,null,null,null,null,null,null,null,null,null,null,"Figure 1"]
[]
[]
[]
[]
["Copying and pasting charts and tables to use in documents, reports or presentations"]
[]
["Why use this method to copy and paste charts "]
["If the standard {Copy} and {Paste} option is used for inserting Excel charts into documents, reports"]
["or presentations then frequently the chart will lose some of its formatting and/or the axes labels may be"]
["truncated. Similarly, table column sizes are often distorted using the standard {Copy} and {Paste}"]
["method if a table is too wide. The technique described below overcomes these issues."]
[]
["Copying and pasting a chart"]
[1,"Select the chart you want to copy by left clicking on it once i.e. so that the surrounding points are "]
[null,"displayed "]
[2,"On the 'Home' tab click the paste icon"]
[3,"Click 'As picture' option and 'Copy as picture' (see figure 1)"]
[4,"Choose 'As shown on screen' and 'picture'"]
[5,"Using your mouse click on the point where you want to insert a copy of the chart e.g. in a Word "]
[null,"document / presentation"]
[6,"On the 'Home' tab click 'paste' then 'paste special' and choose to insert as 'Picture (enhanced metafile)' "]
[]
[null,null,null,null,null,null,null,null,null,null,null,null,"Figure 2"]
[]
["Copying and pasting a table as a picture"]
[1,"Highlight the table you want to copy by left clicking on the top left hand corner "]
[null,"and dragging the mouse to the bottom right corner. "]
[2,"On the 'Home' tab click the paste icon"]
[3,"Click 'As picture' option and 'Copy as picture' (see figure 2)"]
[4,"Choose 'As shown on screen' and 'picture'"]
[5,"Using your mouse click on the point where you want to insert a copy of the chart e.g. in a Word "]
[null,"document / presentation"]
[6,"On the 'Home' tab click 'paste' then 'paste special' and choose to insert as 'Picture (enhanced metafile)' "]

{"sheet":"Interactive","index":2,"n_rows":65,"n_cols":14,"rows_kept":65,"cut":false,"hidden":false,"merged":[[27,13,27,21],[33,3,33,5],[33,7,33,9],[51,3,51,5],[51,7,51,9],[33,11,33,13],[51,11,51,13],[31,1,31,9],[49,1,49,9]]}
[]
[null,{"$f":"'Interactive controls'!A112","v":"Age/sex breakdown of patients, Anglesey GP cluster & Betsi Cadwaladr Health Board"}]
[]
[]
[]
[]
[]
[]
[]
[]
[]
[]
[]
[]
[]
[]
[]
[]
[]
[]
[]
[]
[]
[]
[]
[]
[]
[]
[]
[]
[]
[null,{"$f":"'Interactive controls'!A114","v":"Proportion of patients by age & sex, Anglesey GP cluster & Betsi Cadwaladr Health Board: 2012"}]
[]
[null,null,null,{"$f":"'Interactive controls'!B78","v":"Anglesey"},null,null,null,{"$f":"'Interactive controls'!E131","v":"Betsi Cadwaladr"},null,null,null,"Wales"]
[null,null,null,"% Males",null,"% Females",null,"% Males",null,"% Females",null,"% Males",null,"% Females"]
[]
[null,"00_02",null,{"$f":"(D55/SUM($D$55:$D$63,$F$55:$F$63)*100)","v":1.6075219896875947},null,{"$f":"(F55/SUM($F$55:$F$63,$D$55:$D$63))*100","v":1.5620260843190781},null,{"$f":"(H55/SUM($H$55:$H$63,$J$55:$J$63))*100","v":1.657788195184317},null,{"$f":"(J55/SUM($H$55:$H$63,$J$55:$J$63))*100","v":1.5753959798281127},null,{"$f":"(L55/SUM($L$55:$L$63,$N$55:$N$63))*100","v":1.6776388320156235},null,{"$f":"(N55/SUM($L$55:$L$63,$N$55:$N$63))*100","v":1.6089709263867453}]
[null,"03_04",null,{"$f":"(D56/SUM($D$55:$D$63,$F$55:$F$63)*100)","v":1.1373976342129208},null,{"$f":"(F56/SUM($F$55:$F$63,$D$55:$D$63))*100","v":1.0767364270548985},null,{"$f":"(H56/SUM($H$55:$H$63,$J$55:$J$63))*100","v":1.1307621279920448},null,{"$f":"(J56/SUM($H$55:$H$63,$J$55:$J$63))*100","v":1.0938276866254706},null,{"$f":"(L56/SUM($L$55:$L$63,$N$55:$N$63))*100","v":1.1613695782278639},null,{"$f":"(N56/SUM($L$55:$L$63,$N$55:$N$63))*100","v":1.1040413267395344}]
[null,"05_14",null,5.2926903245374586,null,4.9590536851683344,null,5.4947084309965195,null,5.199232900063925,null,5.5167417393769496,null,5.2310454531136799]
[null,"15_24",null,5.9144676979071882,null,5.4140127388535033,null,6.3172100291213864,null,5.9904822785709211,null,6.7341796075219698,null,6.4371436671181534]
[null,"25_44",null,11.464968152866243,null,10.964513193812557,null,12.300589530506429,null,11.834647347112721,null,13.015403030207578,null,12.381957350300816]
[null,"45_64",null,13.982408249924175,null,13.785259326660601,null,13.576248313090419,null,13.408622771503659,null,13.350237817746557,null,13.09698554194097]
[null,"65_74",null,6.1874431301182895,null,6.5514103730664246,null,5.3966901058313805,null,5.6836423041409194,null,4.9387343686017573,null,5.181591961445176]
[null,"75_84",null,3.2150439793751895,null,3.9278131634819533,null,2.9291853114567794,null,3.6536685844165069,null,2.7079724068415914,null,3.3596875295303494]
[null,"85+",null,0.95541401273885351,null,2.0018198362147408,null,0.89494992542083951,null,1.8623481781376521,null,0.82212492518978164,null,1.6741739376949001]
[]
[null,{"$f":"'Interactive controls'!A198","v":"Produced by Public Health Wales Observatory, using WDS (NWIS)"}]
[]
[]
[null,{"$f":"'Interactive controls'!A115","v":"Count of patients by age & sex, Anglesey GP cluster & Betsi Cadwaladr Health Board: 2012"}]
[]
[null,null,null,{"$f":"'Interactive controls'!B78","v":"Anglesey"},null,null,null,{"$f":"'Interactive controls'!E131","v":"Betsi Cadwaladr"},null,null,null,"Wales"]
[null,null,null,"Males",null,"Females",null,"Males",null,"Females",null,"Males",null,"Females"]
[]
[null,"00_02",null,{"$f":"ROUND('Interactive controls'!D100,-1)","v":1060},null,{"$f":"ROUND('Interactive controls'!E100,-1)","v":1030},null,{"$f":"ROUND('Interactive controls'!H100,-1)","v":11670},null,{"$f":"ROUND('Interactive controls'!I100,-1)","v":11090},null,{"$f":"ROUND('Interactive controls'!J100,-1)","v":53260},null,{"$f":"ROUND('Interactive controls'!K100,-1)","v":51080}]
[null,"03_04",null,{"$f":"ROUND('Interactive controls'!D101,-1)","v":750},null,{"$f":"ROUND('Interactive controls'!E101,-1)","v":710},null,{"$f":"ROUND('Interactive controls'!H101,-1)","v":7960},null,{"$f":"ROUND('Interactive controls'!I101,-1)","v":7700},null,{"$f":"ROUND('Interactive controls'!J101,-1)","v":36870},null,{"$f":"ROUND('Interactive controls'!K101,-1)","v":35050}]
[null,"05_14",null,{"$f":"ROUND('Interactive controls'!D102,-1)","v":3490},null,{"$f":"ROUND('Interactive controls'!E102,-1)","v":3270},null,{"$f":"ROUND('Interactive controls'!H102,-1)","v":38680},null,{"$f":"ROUND('Interactive controls'!I102,-1)","v":36600},null,{"$f":"ROUND('Interactive controls'!J102,-1)","v":175140},null,{"$f":"ROUND('Interactive controls'!K102,-1)","v":166070}]
[null,"15_24",null,{"$f":"ROUND('Interactive controls'!D103,-1)","v":3900},null,{"$f":"ROUND('Interactive controls'!E103,-1)","v":3570},null,{"$f":"ROUND('Interactive controls'!H103,-1)","v":44470},null,{"$f":"ROUND('Interactive controls'!I103,-1)","v":42170},null,{"$f":"ROUND('Interactive controls'!J103,-1)","v":213790},null,{"$f":"ROUND('Interactive controls'!K103,-1)","v":204360}]
[null,"25_44",null,{"$f":"ROUND('Interactive controls'!D104,-1)","v":7560},null,{"$f":"ROUND('Interactive controls'!E104,-1)","v":7230},null,{"$f":"ROUND('Interactive controls'!H104,-1)","v":86590},null,{"$f":"ROUND('Interactive controls'!I104,-1)","v":83310},null,{"$f":"ROUND('Interactive controls'!J104,-1)","v":413200},null,{"$f":"ROUND('Interactive controls'!K104,-1)","v":393090}]
[null,"45_64",null,{"$f":"ROUND('Interactive controls'!D105,-1)","v":9220},null,{"$f":"ROUND('Interactive controls'!E105,-1)","v":9090},null,{"$f":"ROUND('Interactive controls'!H105,-1)","v":95570},null,{"$f":"ROUND('Interactive controls'!I105,-1)","v":94390},null,{"$f":"ROUND('Interactive controls'!J105,-1)","v":423830},null,{"$f":"ROUND('Interactive controls'!K105,-1)","v":415790}]
[null,"65_74",null,{"$f":"ROUND('Interactive controls'!D106,-1)","v":4080},null,{"$f":"ROUND('Interactive controls'!E106,-1)","v":4320},null,{"$f":"ROUND('Interactive controls'!H106,-1)","v":37990},null,{"$f":"ROUND('Interactive controls'!I106,-1)","v":40010},null,{"$f":"ROUND('Interactive controls'!J106,-1)","v":156790},null,{"$f":"ROUND('Interactive controls'!K106,-1)","v":164500}]
[null,"75_84",null,{"$f":"ROUND('Interactive controls'!D107,-1)","v":2120},null,{"$f":"ROUND('Interactive controls'!E107,-1)","v":2590},null,{"$f":"ROUND('Interactive controls'!H107,-1)","v":20620},null,{"$f":"ROUND('Interactive controls'!I107,-1)","v":25720},null,{"$f":"ROUND('Interactive controls'!J107,-1)","v":85970},null,{"$f":"ROUND('Interactive controls'!K107,-1)","v":106660}]
[null,"85+",null,{"$f":"ROUND('Interactive controls'!D108,-1)","v":630},null,{"$f":"ROUND('Interactive controls'!E108,-1)","v":1320},null,{"$f":"ROUND('Interactive controls'!H108,-1)","v":6300},null,{"$f":"ROUND('Interactive controls'!I108,-1)","v":13110},null,{"$f":"ROUND('Interactive controls'!J108,-1)","v":26100},null,{"$f":"ROUND('Interactive controls'!K108,-1)","v":53150}]
[]
[null,{"$f":"'Interactive controls'!A198","v":"Produced by Public Health Wales Observatory, using WDS (NWIS)"}]

{"sheet":"Interactive controls","index":3,"n_rows":215,"n_cols":25,"rows_kept":215,"cut":false,"hidden":true,"merged":[[3,17,3,18]]}
[null,"GP cluster index","Health board index",null,"Health Board",1,{"$f":"IF(F1=1,E1,E2)","v":"Health Board"}]
["Current selection (list number)",1,1,null,"Local Authority"]
["Current selection"]
[]
[]
["Current selection variables"]
["Health board",null,"?"]
["Betsi Cadwaladr","Betsi Cadwaladr",{"$f":"INDEX(A8:A14,C2,1)","v":"Betsi Cadwaladr"}]
["Powys","Powys"]
["Hywel Dda","Hywel Dda"]
["Abertawe Bro Morgannwg","Abertawe Bro Morgannwg"]
["Cardiff & Vale","Cardiff & Vale"]
["Cwm Taf","Cwm Taf"]
["Aneurin Bevan","Aneurin Bevan"]
[]
[null,null,"inputs for box 1","currently selected LA/HB"]
["Betsi Cadwaladr","Isle of Anglesey",{"$f":"IF(INDEX(A17:B38,,$F$1)=0,\"\",INDEX(A17:B38,,$F$1))","v":"Betsi Cadwaladr"},{"$f":"INDEX(C17:C38,C2)","v":"Betsi Cadwaladr"}]
["Powys","Gwynedd",{"$f":"IF(INDEX(A18:B39,,$F$1)=0,\"\",INDEX(A18:B39,,$F$1))","v":"Powys"}]
["Hywel Dda","Conwy",{"$f":"IF(INDEX(A19:B40,,$F$1)=0,\"\",INDEX(A19:B40,,$F$1))","v":"Hywel Dda"}]
["Abertawe Bro Morgannwg","Denbighshire",{"$f":"IF(INDEX(A20:B41,,$F$1)=0,\"\",INDEX(A20:B41,,$F$1))","v":"Abertawe Bro Morgannwg"}]
["Cardiff & Vale","Flintshire",{"$f":"IF(INDEX(A21:B43,,$F$1)=0,\"\",INDEX(A21:B43,,$F$1))","v":"Cardiff & Vale"}]
["Cwm Taf","Wrexham",{"$f":"IF(INDEX(A22:B44,,$F$1)=0,\"\",INDEX(A22:B44,,$F$1))","v":"Cwm Taf"}]
["Aneurin Bevan","Powys",{"$f":"IF(INDEX(A23:B45,,$F$1)=0,\"\",INDEX(A23:B45,,$F$1))","v":"Aneurin Bevan"}]
[null,"Ceredigion",{"$f":"IF(INDEX(A24:B46,,$F$1)=0,\"\",INDEX(A24:B46,,$F$1))","v":""}]
[null,"Pembrokeshire",""]
[null,"Carmarthenshire",""]
[null,"Swansea",""]
[null,"Neath Port Talbot",""]
[null,"Bridgend",""]
[null,"Vale of Glamorgan",""]
[null,"Rhondda Cynon Taf",""]
[null,"Merthyr Tydfil",""]
[null,"Caerphilly",""]
[null,"Blaenau Gwent",""]
[null,"Torfaen",""]
[null,"Monmouthshire",""]
[null,"Newport",""]
[null,"Cardiff",""]
[]
[]
["HB with GP cluster"]
["Betsi Cadwaladr","Powys","Hywel Dda","Abertawe Bro Morgannwg","Cardiff & Vale","Cwm Taf","Aneurin Bevan",null,"GP clusters if HB selected"]
["Anglesey","Mid Powys","Amman/Gwendraeth","Afan","Cardiff East","North Cynon","Blaenau Gwent East",null,{"$f":"IF(INDEX(A43:G56,,$C$2)=0,\"\",INDEX(A43:G56,,$C$2))","v":"Anglesey"}]
["Arfon","North Powys","Llanelli","BayHealth","Cardiff North","North Merthyr Tydfil","Blaenau Gwent West",null,{"$f":"IF(INDEX(A44:G57,,$C$2)=0,\"\",INDEX(A44:G57,,$C$2))","v":"Arfon"}]
["Central & South Denbighshire","South Powys","North Ceredigion","Bridgend East Network","Cardiff South East","North Rhondda","Caerphilly East",null,{"$f":"IF(INDEX(A45:G57,,$C$2)=0,\"\",INDEX(A45:G57,,$C$2))","v":"Central & South Denbighshire"}]
["Conwy East",null,"North Pembrokeshire","Bridgend North Network","Cardiff South West","North Taf Ely","Caerphilly North",null,{"$f":"IF(INDEX(A46:G58,,$C$2)=0,\"\",INDEX(A46:G58,,$C$2))","v":"Conwy East"}]
["Conwy West",null,"South Ceredigion","Bridgend West Network","Cardiff West","South Cynon","Caerphilly South",null,{"$f":"IF(INDEX(A47:G58,,$C$2)=0,\"\",INDEX(A47:G58,,$C$2))","v":"Conwy West"}]
["Deeside, Hawarden & Saltney",null,"South Pembrokeshire","CityHealth","Central Vale","South Merthyr Tydfil","Monmouthshire North",null,{"$f":"IF(INDEX(A48:G58,,$C$2)=0,\"\",INDEX(A48:G58,,$C$2))","v":"Deeside, Hawarden & Saltney"}]
["Dwyfor",null,"Taf / Teifi / Tywi","Cwmtawe","City & Cardiff South","South Rhondda","Monmouthshire South",null,{"$f":"IF(INDEX(A49:G58,,$C$2)=0,\"\",INDEX(A49:G58,,$C$2))","v":"Dwyfor"}]
["Holywell & Flint",null,null,"Llwchwr","Eastern Vale","South Taf Ely","Newport Central",null,{"$f":"IF(INDEX(A50:G58,,$C$2)=0,\"\",INDEX(A50:G58,,$C$2))","v":"Holywell & Flint"}]
["Meirionnydd",null,null,"Neath","Western Vale",null,"Newport East",null,{"$f":"IF(INDEX(A51:G58,,$C$2)=0,\"\",INDEX(A51:G58,,$C$2))","v":"Meirionnydd"}]
["Mold, Buckley & Caergwle",null,null,"Penderi",null,null,"Newport West",null,{"$f":"IF(INDEX(A52:G58,,$C$2)=0,\"\",INDEX(A52:G58,,$C$2))","v":"Mold, Buckley & Caergwle"}]
["North Denbighshire",null,null,"Upper Valleys",null,null,"Torfaen North",null,{"$f":"IF(INDEX(A53:G59,,$C$2)=0,\"\",INDEX(A53:G59,,$C$2))","v":"North Denbighshire"}]
["South Wrexham",null,null,null,null,null,"Torfaen South",null,"South Wrexham"]
["West & North Wrexham",null,null,null,null,null,null,null,{"$f":"IF(INDEX(A55:G58,,$C$2)=0,\"\",INDEX(A55:G58,,$C$2))","v":"West & North Wrexham"}]
["Wrexham Town",null,null,null,null,null,null,null,{"$f":"IF(INDEX(A56:G58,,$C$2)=0,\"\",INDEX(A56:G58,,$C$2))","v":"Wrexham Town"}]
[]
[]
["LA with clusters"]
["Isle of Anglesey","Gwynedd","Conwy","Denbighshire","Flintshire","Wrexham","Powys","Ceredigion","Pembrokeshire","Carmarthenshire","Swansea","Neath Port Talbot","Bridgend","Vale of Glamorgan","Rhondda Cynon Taf","Merthyr Tydfil","Caerphilly","Blaenau Gwent","Torfaen","Monmouthshire","Newport","Cardiff",null,null,"GP clusters if LA selected"]
["Anglesey","Arfon","Conwy East","Central & South Denbighshire","Deeside, Hawarden & Saltney","South Wrexham","Mid Powys","North Ceredigion","North Pembrokeshire","Amman/Gwendraeth","BayHealth","Afan","Bridgend East Network","Central Vale","North Cynon","North Merthyr Tydfil","Caerphilly East","Blaenau Gwent East","Torfaen North","Monmouthshire North","Newport Central","Cardiff East",null,null,{"$f":"IF(INDEX(A61:V66,,$C$2)=0,\"\",INDEX(A61:V66,,$C$2))","v":"Anglesey"}]
[null,"Dwyfor","Conwy West","North Denbighshire","Holywell & Flint","West & North Wrexham","North Powys","South Ceredigion","South Pembrokeshire","Llanelli","CityHealth","Neath","Bridgend North Network","Eastern Vale","South Cynon","South Merthyr Tydfil","Caerphilly North","Blaenau Gwent West","Torfaen South","Monmouthshire South","Newport East","Cardiff North",null,null,{"$f":"IF(INDEX(A62:V76,,$C$2)=0,\"\",INDEX(A62:V76,,$C$2))","v":""}]
[null,"Meirionnydd",null,null,"Mold, Buckley & Caergwle","Wrexham Town","South Powys",null,null,"Taf / Teifi / Tywi","Cwmtawe","Upper Valleys","Bridgend West Network","Western Vale","North Rhondda",null,"Caerphilly South",null,null,null,"Newport West","Cardiff South East",null,null,{"$f":"IF(INDEX(A63:V77,,$C$2)=0,\"\",INDEX(A63:V77,,$C$2))","v":""}]
[null,null,null,null,null,null,null,null,null,null,"Llwchwr",null,null,null,"North Taf Ely",null,null,null,null,null,null,"Cardiff South West",null,null,{"$f":"IF(INDEX(A64:V78,,$C$2)=0,\"\",INDEX(A64:V78,,$C$2))","v":""}]
[null,null,null,null,null,null,null,null,null,null,"Penderi",null,null,null,"South Rhondda",null,null,null,null,null,null,"Cardiff West",null,null,{"$f":"IF(INDEX(A65:V79,,$C$2)=0,\"\",INDEX(A65:V79,,$C$2))","v":""}]
[null,null,null,null,null,null,null,null,null,null,null,null,null,null,"South Taf Ely",null,null,null,null,null,null,"City & Cardiff South",null,null,{"$f":"IF(INDEX(A66:V80,,$C$2)=0,\"\",INDEX(A66:V80,,$C$2))","v":""}]
[null,null,null,null,null,null,null,null,null,null,null,null,null,null,null,null,null,null,null,null,null,null,null,null,{"$f":"IF(INDEX(A67:V72,,$C$2)=0,\"\",INDEX(A67:V72,,$C$2))","v":""}]
[null,null,null,null,null,null,null,null,null,null,null,null,null,null,null,null,null,null,null,null,null,null,null,null,{"$f":"IF(INDEX(A68:V82,,$C$2)=0,\"\",INDEX(A68:V82,,$C$2))","v":""}]
[null,null,null,null,null,null,null,null,null,null,null,null,null,null,null,null,null,null,null,null,null,null,null,null,{"$f":"IF(INDEX(A69:V83,,$C$2)=0,\"\",INDEX(A69:V83,,$C$2))","v":""}]
[null,null,null,null,null,null,null,null,null,null,null,null,null,null,null,null,null,null,null,null,null,null,null,null,{"$f":"IF(INDEX(A70:V84,,$C$2)=0,\"\",INDEX(A70:V84,,$C$2))","v":""}]
[null,null,null,null,null,null,null,null,null,null,null,null,null,null,null,null,null,null,null,null,null,null,null,null,{"$f":"IF(INDEX(A71:V85,,$C$2)=0,\"\",INDEX(A71:V85,,$C$2))","v":""}]
[null,null,null,null,null,null,null,null,null,null,null,null,null,null,null,null,null,null,null,null,null,null,null,null,{"$f":"IF(INDEX(A72:V86,,$C$2)=0,\"\",INDEX(A72:V86,,$C$2))","v":""}]
[null,null,null,null,null,null,null,null,null,null,null,null,null,null,null,null,null,null,null,null,null,null,null,null,{"$f":"IF(INDEX(A73:V75,,$C$2)=0,\"\",INDEX(A73:V75,,$C$2))","v":""}]
[null,null,null,null,null,null,null,null,null,null,null,null,null,null,null,null,null,null,null,null,null,null,null,null,{"$f":"IF(INDEX(A74:V76,,$C$2)=0,\"\",INDEX(A74:V76,,$C$2))","v":""}]
[]
[]
["GP clusters selected","GP cluster selected"]
[{"$f":"IF($F$1=1,I43,Y61)","v":"Anglesey"},{"$f":"INDEX($A$78:$A$91,$B$2)","v":"Anglesey"}]
["Arfon"]
["Central & South Denbighshire"]
["Conwy East"]
["Conwy West"]
["Deeside, Hawarden & Saltney"]
["Dwyfor"]
["Holywell & Flint"]
["Meirionnydd"]
["Mold, Buckley & Caergwle"]
["North Denbighshire"]
["South Wrexham"]
["West & North Wrexham"]
["Wrexham Town"]
[]
[]
[]
[]
[]
[]
[]
[null,null,null,"Males pop","Females pop","LA males","LA females","HB males","HB females","Wales males","Wales females"]
[{"$f":"$B$78","v":"Anglesey"},"00_02",{"$f":"A100&B100","v":"Anglesey00_02"},{"$f":"VLOOKUP($C100,'GP pops'!$A$2:$I$587,6,FALSE)","v":1056},{"$f":"VLOOKUP($C100,'GP pops'!$A$2:$I$587,7,FALSE)","v":1031},null,null,{"$f":"VLOOKUP($C100,'GP pops'!$A$2:$I$587,8,FALSE)","v":11668},{"$f":"VLOOKUP($C100,'GP pops'!$A$2:$I$587,9,FALSE)","v":11090},{"$f":"'HB pops'!D74","v":53255},{"$f":"'HB pops'!E74","v":51075}]
["Anglesey","03_04",{"$f":"A101&B101","v":"Anglesey03_04"},{"$f":"VLOOKUP($C101,'GP pops'!$A$2:$I$587,6,FALSE)","v":750},{"$f":"VLOOKUP($C101,'GP pops'!$A$2:$I$587,7,FALSE)","v":711},null,null,{"$f":"VLOOKUP($C101,'GP pops'!$A$2:$I$587,8,FALSE)","v":7958},{"$f":"VLOOKUP($C101,'GP pops'!$A$2:$I$587,9,FALSE)","v":7695},{"$f":"'HB pops'!D75","v":36871},{"$f":"'HB pops'!E75","v":35049}]
["Anglesey","05_14","Anglesey05_14",{"$f":"VLOOKUP($C102,'GP pops'!$A$2:$I$587,6,FALSE)","v":3489},{"$f":"VLOOKUP($C102,'GP pops'!$A$2:$I$587,7,FALSE)","v":3274},null,null,{"$f":"VLOOKUP($C102,'GP pops'!$A$2:$I$587,8,FALSE)","v":38681},{"$f":"VLOOKUP($C102,'GP pops'!$A$2:$I$587,9,FALSE)","v":36601},{"$f":"'HB pops'!D76","v":175140},{"$f":"'HB pops'!E76","v":166066}]
["Anglesey","15_24","Anglesey15_24",{"$f":"VLOOKUP($C103,'GP pops'!$A$2:$I$587,6,FALSE)","v":3895},{"$f":"VLOOKUP($C103,'GP pops'!$A$2:$I$587,7,FALSE)","v":3570},null,null,{"$f":"VLOOKUP($C103,'GP pops'!$A$2:$I$587,8,FALSE)","v":44469},{"$f":"VLOOKUP($C103,'GP pops'!$A$2:$I$587,9,FALSE)","v":42171},{"$f":"'HB pops'!D77","v":213785},{"$f":"'HB pops'!E77","v":204357}]
["Anglesey","25_44","Anglesey25_44",{"$f":"VLOOKUP($C104,'GP pops'!$A$2:$I$587,6,FALSE)","v":7559},{"$f":"VLOOKUP($C104,'GP pops'!$A$2:$I$587,7,FALSE)","v":7225},null,null,{"$f":"VLOOKUP($C104,'GP pops'!$A$2:$I$587,8,FALSE)","v":86593},{"$f":"VLOOKUP($C104,'GP pops'!$A$2:$I$587,9,FALSE)","v":83313},{"$f":"'HB pops'!D78","v":413202},{"$f":"'HB pops'!E78","v":393088}]
["Anglesey","45_64","Anglesey45_64",{"$f":"VLOOKUP($C105,'GP pops'!$A$2:$I$587,6,FALSE)","v":9220},{"$f":"VLOOKUP($C105,'GP pops'!$A$2:$I$587,7,FALSE)","v":9087},null,null,{"$f":"VLOOKUP($C105,'GP pops'!$A$2:$I$587,8,FALSE)","v":95574},{"$f":"VLOOKUP($C105,'GP pops'!$A$2:$I$587,9,FALSE)","v":94390},{"$f":"'HB pops'!D79","v":423833},{"$f":"'HB pops'!E79","v":415789}]
["Anglesey","65_74","Anglesey65_74",{"$f":"VLOOKUP($C106,'GP pops'!$A$2:$I$587,6,FALSE)","v":4084},{"$f":"VLOOKUP($C106,'GP pops'!$A$2:$I$587,7,FALSE)","v":4316},null,null,{"$f":"VLOOKUP($C106,'GP pops'!$A$2:$I$587,8,FALSE)","v":37994},{"$f":"VLOOKUP($C106,'GP pops'!$A$2:$I$587,9,FALSE)","v":40008},{"$f":"'HB pops'!D80","v":156793},{"$f":"'HB pops'!E80","v":164503}]
["Anglesey","75_84","Anglesey75_84",{"$f":"VLOOKUP($C107,'GP pops'!$A$2:$I$587,6,FALSE)","v":2118},{"$f":"VLOOKUP($C107,'GP pops'!$A$2:$I$587,7,FALSE)","v":2594},null,null,{"$f":"VLOOKUP($C107,'GP pops'!$A$2:$I$587,8,FALSE)","v":20623},{"$f":"VLOOKUP($C107,'GP pops'!$A$2:$I$587,9,FALSE)","v":25717},{"$f":"'HB pops'!D81","v":85967},{"$f":"'HB pops'!E81","v":106657}]
["Anglesey","85+","Anglesey85+",{"$f":"VLOOKUP($C108,'GP pops'!$A$2:$I$587,6,FALSE)","v":634},{"$f":"VLOOKUP($C108,'GP pops'!$A$2:$I$587,7,FALSE)","v":1319},null,null,{"$f":"VLOOKUP($C108,'GP pops'!$A$2:$I$587,8,FALSE)","v":6296},{"$f":"VLOOKUP($C108,'GP pops'!$A$2:$I$587,9,FALSE)","v":13110},{"$f":"'HB pops'!D82","v":26099},{"$f":"'HB pops'!E82","v":53145}]
[]
[]
["Titles"]
[{"$f":"\"Age/sex breakdown of patients, \"&$B$78&\" GP cluster & \"&$D$17&\" \"&G1&\"\"","v":"Age/sex breakdown of patients, Anglesey GP cluster & Betsi Cadwaladr Health Board"}]
[{"$f":"\"Proportion of patients by age & sex, \"&$B$78&\" GP cluster & \"&$D$17&\" \"&G1&\": 2012\"","v":"Proportion of patients by age & sex, Anglesey GP cluster & Betsi Cadwaladr Health Board: 2012"}]
[{"$f":"\"Proportion of patients by age & sex, \"&$B$78&\" GP cluster & \"&$E$131&\" Health Board: 2012\"","v":"Proportion of patients by age & sex, Anglesey GP cluster & Betsi Cadwaladr Health Board: 2012"}]
[{"$f":"\"Count of patients by age & sex, \"&$B$78&\" GP cluster & \"&$E$131&\" Health Board: 2012\"","v":"Count of patients by age & sex, Anglesey GP cluster & Betsi Cadwaladr Health Board: 2012"}]
[{"$f":"\"Select \"&G1&\":\"","v":"Select Health Board:"}]
[]
["Chart data"]
[null,"GP cluster males","GP cluster females",{"$f":"$G$1&\" males\"","v":"Health Board males"},{"$f":"$G$1&\" females\"","v":"Health Board females"}]
[{"$f":"Interactive!B37","v":"00_02"},{"$f":"-Interactive!D37","v":-1.6075219896875947},{"$f":"Interactive!F37","v":1.5620260843190781},{"$f":"IF($F$1=1,-Interactive!H37,-Interactive!#REF!)","v":-1.657788195184317},{"$f":"IF($F$1=1,Interactive!J37,Interactive!#REF!)","v":1.5753959798281127}]
[{"$f":"Interactive!B38","v":"03_04"},{"$f":"-Interactive!D38","v":-1.1373976342129208},{"$f":"Interactive!F38","v":1.0767364270548985},{"$f":"IF($F$1=1,-Interactive!H38,-Interactive!#REF!)","v":-1.1307621279920448},{"$f":"IF($F$1=1,Interactive!J38,Interactive!#REF!)","v":1.0938276866254706}]
[{"$f":"Interactive!B39","v":"05_14"},{"$f":"-Interactive!D39","v":-5.2926903245374586},{"$f":"Interactive!F39","v":4.9590536851683344},{"$f":"IF($F$1=1,-Interactive!H39,-Interactive!#REF!)","v":-5.4947084309965195},{"$f":"IF($F$1=1,Interactive!J39,Interactive!#REF!)","v":5.199232900063925}]
[{"$f":"Interactive!B40","v":"15_24"},{"$f":"-Interactive!D40","v":-5.9144676979071882},{"$f":"Interactive!F40","v":5.4140127388535033},{"$f":"IF($F$1=1,-Interactive!H40,-Interactive!#REF!)","v":-6.3172100291213864},{"$f":"IF($F$1=1,Interactive!J40,Interactive!#REF!)","v":5.9904822785709211}]
[{"$f":"Interactive!B41","v":"25_44"},{"$f":"-Interactive!D41","v":-11.464968152866243},{"$f":"Interactive!F41","v":10.964513193812557},{"$f":"IF($F$1=1,-Interactive!H41,-Interactive!#REF!)","v":-12.300589530506429},{"$f":"IF($F$1=1,Interactive!J41,Interactive!#REF!)","v":11.834647347112721}]
[{"$f":"Interactive!B42","v":"45_64"},{"$f":"-Interactive!D42","v":-13.982408249924175},{"$f":"Interactive!F42","v":13.785259326660601},{"$f":"IF($F$1=1,-Interactive!H42,-Interactive!#REF!)","v":-13.576248313090419},{"$f":"IF($F$1=1,Interactive!J42,Interactive!#REF!)","v":13.408622771503659}]
[{"$f":"Interactive!B43","v":"65_74"},{"$f":"-Interactive!D43","v":-6.1874431301182895},{"$f":"Interactive!F43","v":6.5514103730664246},{"$f":"IF($F$1=1,-Interactive!H43,-Interactive!#REF!)","v":-5.3966901058313805},{"$f":"IF($F$1=1,Interactive!J43,Interactive!#REF!)","v":5.6836423041409194}]
[{"$f":"Interactive!B44","v":"75_84"},{"$f":"-Interactive!D44","v":-3.2150439793751895},{"$f":"Interactive!F44","v":3.9278131634819533},{"$f":"IF($F$1=1,-Interactive!H44,-Interactive!#REF!)","v":-2.9291853114567794},{"$f":"IF($F$1=1,Interactive!J44,Interactive!#REF!)","v":3.6536685844165069}]
[{"$f":"Interactive!B45","v":"85+"},{"$f":"-Interactive!D45","v":-0.95541401273885351},{"$f":"Interactive!F45","v":2.0018198362147408},{"$f":"IF($F$1=1,-Interactive!H45,-Interactive!#REF!)","v":-0.89494992542083951},{"$f":"IF($F$1=1,Interactive!J45,Interactive!#REF!)","v":1.8623481781376521}]
[]
["Cluster","LA","HB"]
["Anglesey","Isle of Anglesey","Betsi Cadwaladr",{"$f":"VLOOKUP($B$78,$A$131:$C$194,2,FALSE)","v":"Isle of Anglesey"},{"$f":"VLOOKUP($B$78,$A$131:$C$194,3,FALSE)","v":"Betsi Cadwaladr"}]
["Arfon","Gwynedd","Betsi Cadwaladr"]
["Central & South Denbighshire","Denbighshire","Betsi Cadwaladr"]
["Conwy East","Conwy","Betsi Cadwaladr"]
["Conwy West","Conwy","Betsi Cadwaladr"]
["Deeside, Hawarden & Saltney","Flintshire","Betsi Cadwaladr"]
["Dwyfor","Gwynedd","Betsi Cadwaladr"]
["Holywell & Flint","Flintshire","Betsi Cadwaladr"]
["Meirionnydd","Gwynedd","Betsi Cadwaladr"]
["Mold, Buckley & Caergwle","Flintshire","Betsi Cadwaladr"]
["North Denbighshire","Denbighshire","Betsi Cadwaladr"]
["South Wrexham","Wrexham","Betsi Cadwaladr"]
["West & North Wrexham","Wrexham","Betsi Cadwaladr"]
["Wrexham Town","Wrexham","Betsi Cadwaladr"]
["Mid Powys","Powys","Powys"]
["North Powys","Powys","Powys"]
["South Powys","Powys","Powys"]
["Amman/Gwendraeth","Carmarthenshire","Hywel Dda"]
["Llanelli","Carmarthenshire","Hywel Dda"]
["North Ceredigion","Ceredigion","Hywel Dda"]
["North Pembrokeshire","Pembrokeshire","Hywel Dda"]
["South Ceredigion","Ceredigion","Hywel Dda"]
["South Pembrokeshire","Pembrokeshire","Hywel Dda"]
["Taf / Teifi / Tywi","Carmarthenshire","Hywel Dda"]
["Afan","Neath Port Talbot","Abertawe Bro Morgannwg"]
["BayHealth","Swansea","Abertawe Bro Morgannwg"]
["Bridgend East Network","Bridgend","Abertawe Bro Morgannwg"]
["Bridgend North Network","Bridgend","Abertawe Bro Morgannwg"]
["Bridgend West Network","Bridgend","Abertawe Bro Morgannwg"]
["CityHealth","Swansea","Abertawe Bro Morgannwg"]
["Cwmtawe","Swansea","Abertawe Bro Morgannwg"]
["Llwchwr","Swansea","Abertawe Bro Morgannwg"]
["Neath","Neath Port Talbot","Abertawe Bro Morgannwg"]
["Penderi","Swansea","Abertawe Bro Morgannwg"]
["Upper Valleys","Neath Port Talbot","Abertawe Bro Morgannwg"]
["Cardiff East","Cardiff","Cardiff & Vale"]
["Cardiff North","Cardiff","Cardiff & Vale"]
["Cardiff South East","Cardiff","Cardiff & Vale"]
["Cardiff South West","Cardiff","Cardiff & Vale"]
["Cardiff West","Cardiff","Cardiff & Vale"]
["Central Vale","Vale of Glamorgan","Cardiff & Vale"]
["City & Cardiff South","Cardiff","Cardiff & Vale"]
["Eastern Vale","Vale of Glamorgan","Cardiff & Vale"]
["Western Vale","Vale of Glamorgan","Cardiff & Vale"]
["North Cynon","Rhondda Cynon Taf","Cwm Taf"]
["North Merthyr Tydfil","Merthyr Tydfil","Cwm Taf"]
["North Rhondda","Rhondda Cynon Taf","Cwm Taf"]
["North Taf Ely","Rhondda Cynon Taf","Cwm Taf"]
["South Cynon","Rhondda Cynon Taf","Cwm Taf"]
["South Merthyr Tydfil","Merthyr Tydfil","Cwm Taf"]
["South Rhondda","Rhondda Cynon Taf","Cwm Taf"]
["South Taf Ely","Rhondda Cynon Taf","Cwm Taf"]
["Blaenau Gwent East","Blaenau Gwent","Aneurin Bevan"]
["Blaenau Gwent West","Blaenau Gwent","Aneurin Bevan"]
["Caerphilly East","Caerphilly","Aneurin Bevan"]
["Caerphilly North","Caerphilly","Aneurin Bevan"]
["Caerphilly South","Caerphilly","Aneurin Bevan"]
["Monmouthshire North","Monmouthshire","Aneurin Bevan"]
["Monmouthshire South","Monmouthshire","Aneurin Bevan"]
["Newport Central","Newport","Aneurin Bevan"]
["Newport East","Newport","Aneurin Bevan"]
["Newport West","Newport","Aneurin Bevan"]
["Torfaen North","Torfaen","Aneurin Bevan"]
["Torfaen South","Torfaen","Aneurin Bevan"]
[]
[]
["Caveat"]
[{"$f":"IF($B$212=1,A214,A215)","v":"Produced by Public Health Wales Observatory, using WDS (NWIS)"}]
[]
["HBs which need additional caveat"]
[]
["GP Practice Cluster"]
["South Powys",{"$f":"IF($B$78=A203,1,0)","v":0}]
["Deeside, Hawarden & Saltney",{"$f":"IF($B$78=A204,1,0)","v":0}]
["Monmouthshire North",0]
["Mold, Buckley & Caergwle",0]
["South Wrexham",0]
["North Powys",0]
["Mid Powys",0]
["Monmouthshire South",0]
["West & North Wrexham",0]
[null,{"$f":"SUM(B203:B211)","v":0}]
[]
["Produced by Public Health Wales Observatory, using WDS (NWIS) and GP registrations from England (PCTs/CCGs)"]
["Produced by Public Health Wales Observatory, using WDS (NWIS)"]

{"sheet":"GP pops","index":4,"n_rows":587,"n_cols":20,"rows_kept":587,"cut":false,"hidden":true,"merged":[]}
["GP age","GP Practice Cluster","HB age","Local Health Board","age","Males","Females","HB males","HB females"]
[{"$f":"B2&E2","v":"NULL00_02"},"NULL",{"$f":"D2&E2","v":"NULL00_02"},"NULL","00_02",236,209,{"$f":"VLOOKUP(C2,'HB pops'!$A$2:$E$73,4,FALSE)","v":236},{"$f":"VLOOKUP(C2,'HB pops'!$A$2:$E$73,5,FALSE)","v":209}]
[{"$f":"B3&E3","v":"NULL03_04"},"NULL",{"$f":"D3&E3","v":"NULL03_04"},"NULL","03_04",195,162,{"$f":"VLOOKUP(C3,'HB pops'!$A$2:$E$73,4,FALSE)","v":195},{"$f":"VLOOKUP(C3,'HB pops'!$A$2:$E$73,5,FALSE)","v":162}]
["NULL05_14","NULL","NULL05_14","NULL","05_14",934,907,{"$f":"VLOOKUP(C4,'HB pops'!$A$2:$E$73,4,FALSE)","v":934},{"$f":"VLOOKUP(C4,'HB pops'!$A$2:$E$73,5,FALSE)","v":907}]
["NULL15_24","NULL","NULL15_24","NULL","15_24",1404,1435,{"$f":"VLOOKUP(C5,'HB pops'!$A$2:$E$73,4,FALSE)","v":1404},{"$f":"VLOOKUP(C5,'HB pops'!$A$2:$E$73,5,FALSE)","v":1435}]
["NULL25_44","NULL","NULL25_44","NULL","25_44",3092,3126,{"$f":"VLOOKUP(C6,'HB pops'!$A$2:$E$73,4,FALSE)","v":3092},{"$f":"VLOOKUP(C6,'HB pops'!$A$2:$E$73,5,FALSE)","v":3126}]
["NULL45_64","NULL","NULL45_64","NULL","45_64",2874,2680,{"$f":"VLOOKUP(C7,'HB pops'!$A$2:$E$73,4,FALSE)","v":2874},{"$f":"VLOOKUP(C7,'HB pops'!$A$2:$E$73,5,FALSE)","v":2680}]
["NULL65_74","NULL","NULL65_74","NULL","65_74",962,927,{"$f":"VLOOKUP(C8,'HB pops'!$A$2:$E$73,4,FALSE)","v":962},{"$f":"VLOOKUP(C8,'HB pops'!$A$2:$E$73,5,FALSE)","v":927}]
["NULL75_84","NULL","NULL75_84","NULL","75_84",498,559,{"$f":"VLOOKUP(C9,'HB pops'!$A$2:$E$73,4,FALSE)","v":498},{"$f":"VLOOKUP(C9,'HB pops'!$A$2:$E$73,5,FALSE)","v":559}]
["NULL85+","NULL","NULL85+","NULL","85+",166,259,{"$f":"VLOOKUP(C10,'HB pops'!$A$2:$E$73,4,FALSE)","v":166},{"$f":"VLOOKUP(C10,'HB pops'!$A$2:$E$73,5,FALSE)","v":259},null,"Local Health Board","GP Practice Cluster","age_group","Males","Females"]
["Afan00_02","Afan","Abertawe Bro Morgannwg University LHB00_02","Abertawe Bro Morgannwg University LHB","00_02",878,843,{"$f":"VLOOKUP(C11,'HB pops'!$A$2:$E$73,4,FALSE)","v":9116},{"$f":"VLOOKUP(C11,'HB pops'!$A$2:$E$73,5,FALSE)","v":8539},null,"Abertawe Bro Morgannwg University LHB","Afan","00_02",878,843,{"$f":"K11=D11","v":true},{"$f":"L11=B11","v":true},{"$f":"M11=E11","v":true},{"$f":"N11=F11","v":true},{"$f":"O11=G11","v":true}]
["Afan03_04","Afan","Abertawe Bro Morgannwg University LHB03_04","Abertawe Bro Morgannwg University LHB","03_04",616,572,{"$f":"VLOOKUP(C12,'HB pops'!$A$2:$E$73,4,FALSE)","v":6284},{"$f":"VLOOKUP(C12,'HB pops'!$A$2:$E$73,5,FALSE)","v":5757},null,"Abertawe Bro Morgannwg University LHB","Afan","03_04",616,572,{"$f":"K12=D12","v":true},{"$f":"L12=B12","v":true},{"$f":"M12=E12","v":true},{"$f":"N12=F12","v":true},{"$f":"O12=G12","v":true}]
["Afan05_14","Afan","Abertawe Bro Morgannwg University LHB05_14","Abertawe Bro Morgannwg University LHB","05_14",2679,2636,{"$f":"VLOOKUP(C13,'HB pops'!$A$2:$E$73,4,FALSE)","v":29673},{"$f":"VLOOKUP(C13,'HB pops'!$A$2:$E$73,5,FALSE)","v":28118},null,"Abertawe Bro Morgannwg University LHB","Afan","05_14",2679,2636,true,true,true,true,true]
["Afan15_24","Afan","Abertawe Bro Morgannwg University LHB15_24","Abertawe Bro Morgannwg University LHB","15_24",3317,3080,{"$f":"VLOOKUP(C14,'HB pops'!$A$2:$E$73,4,FALSE)","v":36992},{"$f":"VLOOKUP(C14,'HB pops'!$A$2:$E$73,5,FALSE)","v":34588},null,"Abertawe Bro Morgannwg University LHB","Afan","15_24",3317,3080,true,true,true,true,true]
["Afan25_44","Afan","Abertawe Bro Morgannwg University LHB25_44","Abertawe Bro Morgannwg University LHB","25_44",6562,6240,{"$f":"VLOOKUP(C15,'HB pops'!$A$2:$E$73,4,FALSE)","v":71125},{"$f":"VLOOKUP(C15,'HB pops'!$A$2:$E$73,5,FALSE)","v":67753},null,"Abertawe Bro Morgannwg University LHB","Afan","25_44",6562,6240,true,true,true,true,true]
["Afan45_64","Afan","Abertawe Bro Morgannwg University LHB45_64","Abertawe Bro Morgannwg University LHB","45_64",6951,6908,{"$f":"VLOOKUP(C16,'HB pops'!$A$2:$E$73,4,FALSE)","v":72111},{"$f":"VLOOKUP(C16,'HB pops'!$A$2:$E$73,5,FALSE)","v":70992},null,"Abertawe Bro Morgannwg University LHB","Afan","45_64",6951,6908,true,true,true,true,true]
["Afan65_74","Afan","Abertawe Bro Morgannwg University LHB65_74","Abertawe Bro Morgannwg University LHB","65_74",2446,2561,{"$f":"VLOOKUP(C17,'HB pops'!$A$2:$E$73,4,FALSE)","v":26093},{"$f":"VLOOKUP(C17,'HB pops'!$A$2:$E$73,5,FALSE)","v":27993},null,"Abertawe Bro Morgannwg University LHB","Afan","65_74",2446,2561,true,true,true,true,true]
["Afan75_84","Afan","Abertawe Bro Morgannwg University LHB75_84","Abertawe Bro Morgannwg University LHB","75_84",1407,1781,{"$f":"VLOOKUP(C18,'HB pops'!$A$2:$E$73,4,FALSE)","v":14828},{"$f":"VLOOKUP(C18,'HB pops'!$A$2:$E$73,5,FALSE)","v":18662},null,"Abertawe Bro Morgannwg University LHB","Afan","75_84",1407,1781,true,true,true,true,true]
["Afan85+","Afan","Abertawe Bro Morgannwg University LHB85+","Abertawe Bro Morgannwg University LHB","85+",447,898,{"$f":"VLOOKUP(C19,'HB pops'!$A$2:$E$73,4,FALSE)","v":4587},{"$f":"VLOOKUP(C19,'HB pops'!$A$2:$E$73,5,FALSE)","v":8957},null,"Abertawe Bro Morgannwg University LHB","Afan","85+",447,898,true,true,true,true,true]
["BayHealth00_02","BayHealth","Abertawe Bro Morgannwg University LHB00_02","Abertawe Bro Morgannwg University LHB","00_02",910,811,{"$f":"VLOOKUP(C20,'HB pops'!$A$2:$E$73,4,FALSE)","v":9116},{"$f":"VLOOKUP(C20,'HB pops'!$A$2:$E$73,5,FALSE)","v":8539},null,"Abertawe Bro Morgannwg University LHB","BayHealth","00_02",910,811,true,true,true,true,true]
["BayHealth03_04","BayHealth","Abertawe Bro Morgannwg University LHB03_04","Abertawe Bro Morgannwg University LHB","03_04",650,619,{"$f":"VLOOKUP(C21,'HB pops'!$A$2:$E$73,4,FALSE)","v":6284},{"$f":"VLOOKUP(C21,'HB pops'!$A$2:$E$73,5,FALSE)","v":5757},null,"Abertawe Bro Morgannwg University LHB","BayHealth","03_04",650,619,true,true,true,true,true]
["BayHealth05_14","BayHealth","Abertawe Bro Morgannwg University LHB05_14","Abertawe Bro Morgannwg University LHB","05_14",3315,3040,{"$f":"VLOOKUP(C22,'HB pops'!$A$2:$E$73,4,FALSE)","v":29673},{"$f":"VLOOKUP(C22,'HB pops'!$A$2:$E$73,5,FALSE)","v":28118},null,"Abertawe Bro Morgannwg University LHB","BayHealth","05_14",3315,3040,true,true,true,true,true]
["BayHealth15_24","BayHealth","Abertawe Bro Morgannwg University LHB15_24","Abertawe Bro Morgannwg University LHB","15_24",7256,6395,{"$f":"VLOOKUP(C23,'HB pops'!$A$2:$E$73,4,FALSE)","v":36992},{"$f":"VLOOKUP(C23,'HB pops'!$A$2:$E$73,5,FALSE)","v":34588},null,"Abertawe Bro Morgannwg University LHB","BayHealth","15_24",7256,6395,true,true,true,true,true]
["BayHealth25_44","BayHealth","Abertawe Bro Morgannwg University LHB25_44","Abertawe Bro Morgannwg University LHB","25_44",9303,8099,{"$f":"VLOOKUP(C24,'HB pops'!$A$2:$E$73,4,FALSE)","v":71125},{"$f":"VLOOKUP(C24,'HB pops'!$A$2:$E$73,5,FALSE)","v":67753},null,"Abertawe Bro Morgannwg University LHB","BayHealth","25_44",9303,8099,true,true,true,true,true]
["BayHealth45_64","BayHealth","Abertawe Bro Morgannwg University LHB45_64","Abertawe Bro Morgannwg University LHB","45_64",9040,8628,{"$f":"VLOOKUP(C25,'HB pops'!$A$2:$E$73,4,FALSE)","v":72111},{"$f":"VLOOKUP(C25,'HB pops'!$A$2:$E$73,5,FALSE)","v":70992},null,"Abertawe Bro Morgannwg University LHB","BayHealth","45_64",9040,8628,true,true,true,true,true]
["BayHealth65_74","BayHealth","Abertawe Bro Morgannwg University LHB65_74","Abertawe Bro Morgannwg University LHB","65_74",3568,4094,{"$f":"VLOOKUP(C26,'HB pops'!$A$2:$E$73,4,FALSE)","v":26093},{"$f":"VLOOKUP(C26,'HB pops'!$A$2:$E$73,5,FALSE)","v":27993},null,"Abertawe Bro Morgannwg University LHB","BayHealth","65_74",3568,4094,true,true,true,true,true]
["BayHealth75_84","BayHealth","Abertawe Bro Morgannwg University LHB75_84","Abertawe Bro Morgannwg University LHB","75_84",2357,2973,{"$f":"VLOOKUP(C27,'HB pops'!$A$2:$E$73,4,FALSE)","v":14828},{"$f":"VLOOKUP(C27,'HB pops'!$A$2:$E$73,5,FALSE)","v":18662},null,"Abertawe Bro Morgannwg University LHB","BayHealth","75_84",2357,2973,true,true,true,true,true]
["BayHealth85+","BayHealth","Abertawe Bro Morgannwg University LHB85+","Abertawe Bro Morgannwg University LHB","85+",822,1600,{"$f":"VLOOKUP(C28,'HB pops'!$A$2:$E$73,4,FALSE)","v":4587},{"$f":"VLOOKUP(C28,'HB pops'!$A$2:$E$73,5,FALSE)","v":8957},null,"Abertawe Bro Morgannwg University LHB","BayHealth","85+",822,1600,true,true,true,true,true]
["Bridgend East Network00_02","Bridgend East Network","Abertawe Bro Morgannwg University LHB00_02","Abertawe Bro Morgannwg University LHB","00_02",1200,1188,{"$f":"VLOOKUP(C29,'HB pops'!$A$2:$E$73,4,FALSE)","v":9116},{"$f":"VLOOKUP(C29,'HB pops'!$A$2:$E$73,5,FALSE)","v":8539},null,"Abertawe Bro Morgannwg University LHB","Bridgend East Network","00_02",1200,1188,true,true,true,true,true]
["Bridgend East Network03_04","Bridgend East Network","Abertawe Bro Morgannwg University LHB03_04","Abertawe Bro Morgannwg University LHB","03_04",841,764,{"$f":"VLOOKUP(C30,'HB pops'!$A$2:$E$73,4,FALSE)","v":6284},{"$f":"VLOOKUP(C30,'HB pops'!$A$2:$E$73,5,FALSE)","v":5757},null,"Abertawe Bro Morgannwg University LHB","Bridgend East Network","03_04",841,764,true,true,true,true,true]
["Bridgend East Network05_14","Bridgend East Network","Abertawe Bro Morgannwg University LHB05_14","Abertawe Bro Morgannwg University LHB","05_14",4000,3771,{"$f":"VLOOKUP(C31,'HB pops'!$A$2:$E$73,4,FALSE)","v":29673},{"$f":"VLOOKUP(C31,'HB pops'!$A$2:$E$73,5,FALSE)","v":28118},null,"Abertawe Bro Morgannwg University LHB","Bridgend East Network","05_14",4000,3771,true,true,true,true,true]
["Bridgend East Network15_24","Bridgend East Network","Abertawe Bro Morgannwg University LHB15_24","Abertawe Bro Morgannwg University LHB","15_24",4200,3912,{"$f":"VLOOKUP(C32,'HB pops'!$A$2:$E$73,4,FALSE)","v":36992},{"$f":"VLOOKUP(C32,'HB pops'!$A$2:$E$73,5,FALSE)","v":34588},null,"Abertawe Bro Morgannwg University LHB","Bridgend East Network","15_24",4200,3912,true,true,true,true,true]
["Bridgend East Network25_44","Bridgend East Network","Abertawe Bro Morgannwg University LHB25_44","Abertawe Bro Morgannwg University LHB","25_44",8983,9101,{"$f":"VLOOKUP(C33,'HB pops'!$A$2:$E$73,4,FALSE)","v":71125},{"$f":"VLOOKUP(C33,'HB pops'!$A$2:$E$73,5,FALSE)","v":67753},null,"Abertawe Bro Morgannwg University LHB","Bridgend East Network","25_44",8983,9101,true,true,true,true,true]
["Bridgend East Network45_64","Bridgend East Network","Abertawe Bro Morgannwg University LHB45_64","Abertawe Bro Morgannwg University LHB","45_64",9222,9321,{"$f":"VLOOKUP(C34,'HB pops'!$A$2:$E$73,4,FALSE)","v":72111},{"$f":"VLOOKUP(C34,'HB pops'!$A$2:$E$73,5,FALSE)","v":70992},null,"Abertawe Bro Morgannwg University LHB","Bridgend East Network","45_64",9222,9321,true,true,true,true,true]
["Bridgend East Network65_74","Bridgend East Network","Abertawe Bro Morgannwg University LHB65_74","Abertawe Bro Morgannwg University LHB","65_74",3179,3349,{"$f":"VLOOKUP(C35,'HB pops'!$A$2:$E$73,4,FALSE)","v":26093},{"$f":"VLOOKUP(C35,'HB pops'!$A$2:$E$73,5,FALSE)","v":27993},null,"Abertawe Bro Morgannwg University LHB","Bridgend East Network","65_74",3179,3349,true,true,true,true,true]
["Bridgend East Network75_84","Bridgend East Network","Abertawe Bro Morgannwg University LHB75_84","Abertawe Bro Morgannwg University LHB","75_84",1631,2111,{"$f":"VLOOKUP(C36,'HB pops'!$A$2:$E$73,4,FALSE)","v":14828},{"$f":"VLOOKUP(C36,'HB pops'!$A$2:$E$73,5,FALSE)","v":18662},null,"Abertawe Bro Morgannwg University LHB","Bridgend East Network","75_84",1631,2111,true,true,true,true,true]
["Bridgend East Network85+","Bridgend East Network","Abertawe Bro Morgannwg University LHB85+","Abertawe Bro Morgannwg University LHB","85+",458,901,{"$f":"VLOOKUP(C37,'HB pops'!$A$2:$E$73,4,FALSE)","v":4587},{"$f":"VLOOKUP(C37,'HB pops'!$A$2:$E$73,5,FALSE)","v":8957},null,"Abertawe Bro Morgannwg University LHB","Bridgend East Network","85+",458,901,true,true,true,true,true]
["Bridgend North Network00_02","Bridgend North Network","Abertawe Bro Morgannwg University LHB00_02","Abertawe Bro Morgannwg University LHB","00_02",945,884,{"$f":"VLOOKUP(C38,'HB pops'!$A$2:$E$73,4,FALSE)","v":9116},{"$f":"VLOOKUP(C38,'HB pops'!$A$2:$E$73,5,FALSE)","v":8539},null,"Abertawe Bro Morgannwg University LHB","Bridgend North Network","00_02",945,884,true,true,true,true,true]
["Bridgend North Network03_04","Bridgend North Network","Abertawe Bro Morgannwg University LHB03_04","Abertawe Bro Morgannwg University LHB","03_04",628,572,{"$f":"VLOOKUP(C39,'HB pops'!$A$2:$E$73,4,FALSE)","v":6284},{"$f":"VLOOKUP(C39,'HB pops'!$A$2:$E$73,5,FALSE)","v":5757},null,"Abertawe Bro Morgannwg University LHB","Bridgend North Network","03_04",628,572,true,true,true,true,true]
["Bridgend North Network05_14","Bridgend North Network","Abertawe Bro Morgannwg University LHB05_14","Abertawe Bro Morgannwg University LHB","05_14",2941,2884,{"$f":"VLOOKUP(C40,'HB pops'!$A$2:$E$73,4,FALSE)","v":29673},{"$f":"VLOOKUP(C40,'HB pops'!$A$2:$E$73,5,FALSE)","v":28118},null,"Abertawe Bro Morgannwg University LHB","Bridgend North Network","05_14",2941,2884,true,true,true,true,true]
["Bridgend North Network15_24","Bridgend North Network","Abertawe Bro Morgannwg University LHB15_24","Abertawe Bro Morgannwg University LHB","15_24",3264,3150,{"$f":"VLOOKUP(C41,'HB pops'!$A$2:$E$73,4,FALSE)","v":36992},{"$f":"VLOOKUP(C41,'HB pops'!$A$2:$E$73,5,FALSE)","v":34588},null,"Abertawe Bro Morgannwg University LHB","Bridgend North Network","15_24",3264,3150,true,true,true,true,true]
["Bridgend North Network25_44","Bridgend North Network","Abertawe Bro Morgannwg University LHB25_44","Abertawe Bro Morgannwg University LHB","25_44",6691,6460,{"$f":"VLOOKUP(C42,'HB pops'!$A$2:$E$73,4,FALSE)","v":71125},{"$f":"VLOOKUP(C42,'HB pops'!$A$2:$E$73,5,FALSE)","v":67753},null,"Abertawe Bro Morgannwg University LHB","Bridgend North Network","25_44",6691,6460,true,true,true,true,true]
["Bridgend North Network45_64","Bridgend North Network","Abertawe Bro Morgannwg University LHB45_64","Abertawe Bro Morgannwg University LHB","45_64",6986,6773,{"$f":"VLOOKUP(C43,'HB pops'!$A$2:$E$73,4,FALSE)","v":72111},{"$f":"VLOOKUP(C43,'HB pops'!$A$2:$E$73,5,FALSE)","v":70992},null,"Abertawe Bro Morgannwg University LHB","Bridgend North Network","45_64",6986,6773,true,true,true,true,true]
["Bridgend North Network65_74","Bridgend North Network","Abertawe Bro Morgannwg University LHB65_74","Abertawe Bro Morgannwg University LHB","65_74",2561,2687,{"$f":"VLOOKUP(C44,'HB pops'!$A$2:$E$73,4,FALSE)","v":26093},{"$f":"VLOOKUP(C44,'HB pops'!$A$2:$E$73,5,FALSE)","v":27993},null,"Abertawe Bro Morgannwg University LHB","Bridgend North Network","65_74",2561,2687,true,true,true,true,true]
["Bridgend North Network75_84","Bridgend North Network","Abertawe Bro Morgannwg University LHB75_84","Abertawe Bro Morgannwg University LHB","75_84",1239,1568,{"$f":"VLOOKUP(C45,'HB pops'!$A$2:$E$73,4,FALSE)","v":14828},{"$f":"VLOOKUP(C45,'HB pops'!$A$2:$E$73,5,FALSE)","v":18662},null,"Abertawe Bro Morgannwg University LHB","Bridgend North Network","75_84",1239,1568,true,true,true,true,true]
["Bridgend North Network85+","Bridgend North Network","Abertawe Bro Morgannwg University LHB85+","Abertawe Bro Morgannwg University LHB","85+",366,654,{"$f":"VLOOKUP(C46,'HB pops'!$A$2:$E$73,4,FALSE)","v":4587},{"$f":"VLOOKUP(C46,'HB pops'!$A$2:$E$73,5,FALSE)","v":8957},null,"Abertawe Bro Morgannwg University LHB","Bridgend North Network","85+",366,654,true,true,true,true,true]
["Bridgend West Network00_02","Bridgend West Network","Abertawe Bro Morgannwg University LHB00_02","Abertawe Bro Morgannwg University LHB","00_02",542,490,{"$f":"VLOOKUP(C47,'HB pops'!$A$2:$E$73,4,FALSE)","v":9116},{"$f":"VLOOKUP(C47,'HB pops'!$A$2:$E$73,5,FALSE)","v":8539},null,"Abertawe Bro Morgannwg University LHB","Bridgend West Network","00_02",542,490,true,true,true,true,true]
["Bridgend West Network03_04","Bridgend West Network","Abertawe Bro Morgannwg University LHB03_04","Abertawe Bro Morgannwg University LHB","03_04",397,321,{"$f":"VLOOKUP(C48,'HB pops'!$A$2:$E$73,4,FALSE)","v":6284},{"$f":"VLOOKUP(C48,'HB pops'!$A$2:$E$73,5,FALSE)","v":5757},null,"Abertawe Bro Morgannwg University LHB","Bridgend West Network","03_04",397,321,true,true,true,true,true]
["Bridgend West Network05_14","Bridgend West Network","Abertawe Bro Morgannwg University LHB05_14","Abertawe Bro Morgannwg University LHB","05_14",1859,1741,{"$f":"VLOOKUP(C49,'HB pops'!$A$2:$E$73,4,FALSE)","v":29673},{"$f":"VLOOKUP(C49,'HB pops'!$A$2:$E$73,5,FALSE)","v":28118},null,"Abertawe Bro Morgannwg University LHB","Bridgend West Network","05_14",1859,1741,true,true,true,true,true]
["Bridgend West Network15_24","Bridgend West Network","Abertawe Bro Morgannwg University LHB15_24","Abertawe Bro Morgannwg University LHB","15_24",1998,1857,{"$f":"VLOOKUP(C50,'HB pops'!$A$2:$E$73,4,FALSE)","v":36992},{"$f":"VLOOKUP(C50,'HB pops'!$A$2:$E$73,5,FALSE)","v":34588},null,"Abertawe Bro Morgannwg University LHB","Bridgend West Network","15_24",1998,1857,true,true,true,true,true]
["Bridgend West Network25_44","Bridgend West Network","Abertawe Bro Morgannwg University LHB25_44","Abertawe Bro Morgannwg University LHB","25_44",3930,4005,{"$f":"VLOOKUP(C51,'HB pops'!$A$2:$E$73,4,FALSE)","v":71125},{"$f":"VLOOKUP(C51,'HB pops'!$A$2:$E$73,5,FALSE)","v":67753},null,"Abertawe Bro Morgannwg University LHB","Bridgend West Network","25_44",3930,4005,true,true,true,true,true]
["Bridgend West Network45_64","Bridgend West Network","Abertawe Bro Morgannwg University LHB45_64","Abertawe Bro Morgannwg University LHB","45_64",4676,4616,{"$f":"VLOOKUP(C52,'HB pops'!$A$2:$E$73,4,FALSE)","v":72111},{"$f":"VLOOKUP(C52,'HB pops'!$A$2:$E$73,5,FALSE)","v":70992},null,"Abertawe Bro Morgannwg University LHB","Bridgend West Network","45_64",4676,4616,true,true,true,true,true]
["Bridgend West Network65_74","Bridgend West Network","Abertawe Bro Morgannwg University LHB65_74","Abertawe Bro Morgannwg University LHB","65_74",1882,2116,{"$f":"VLOOKUP(C53,'HB pops'!$A$2:$E$73,4,FALSE)","v":26093},{"$f":"VLOOKUP(C53,'HB pops'!$A$2:$E$73,5,FALSE)","v":27993},null,"Abertawe Bro Morgannwg University LHB","Bridgend West Network","65_74",1882,2116,true,true,true,true,true]
["Bridgend West Network75_84","Bridgend West Network","Abertawe Bro Morgannwg University LHB75_84","Abertawe Bro Morgannwg University LHB","75_84",1106,1428,{"$f":"VLOOKUP(C54,'HB pops'!$A$2:$E$73,4,FALSE)","v":14828},{"$f":"VLOOKUP(C54,'HB pops'!$A$2:$E$73,5,FALSE)","v":18662},null,"Abertawe Bro Morgannwg University LHB","Bridgend West Network","75_84",1106,1428,true,true,true,true,true]
["Bridgend West Network85+","Bridgend West Network","Abertawe Bro Morgannwg University LHB85+","Abertawe Bro Morgannwg University LHB","85+",371,764,{"$f":"VLOOKUP(C55,'HB pops'!$A$2:$E$73,4,FALSE)","v":4587},{"$f":"VLOOKUP(C55,'HB pops'!$A$2:$E$73,5,FALSE)","v":8957},null,"Abertawe Bro Morgannwg University LHB","Bridgend West Network","85+",371,764,true,true,true,true,true]
["CityHealth00_02","CityHealth","Abertawe Bro Morgannwg University LHB00_02","Abertawe Bro Morgannwg University LHB","00_02",871,842,{"$f":"VLOOKUP(C56,'HB pops'!$A$2:$E$73,4,FALSE)","v":9116},{"$f":"VLOOKUP(C56,'HB pops'!$A$2:$E$73,5,FALSE)","v":8539},null,"Abertawe Bro Morgannwg University LHB","CityHealth","00_02",871,842,true,true,true,true,true]
["CityHealth03_04","CityHealth","Abertawe Bro Morgannwg University LHB03_04","Abertawe Bro Morgannwg University LHB","03_04",597,536,{"$f":"VLOOKUP(C57,'HB pops'!$A$2:$E$73,4,FALSE)","v":6284},{"$f":"VLOOKUP(C57,'HB pops'!$A$2:$E$73,5,FALSE)","v":5757},null,"Abertawe Bro Morgannwg University LHB","CityHealth","03_04",597,536,true,true,true,true,true]
["CityHealth05_14","CityHealth","Abertawe Bro Morgannwg University LHB05_14","Abertawe Bro Morgannwg University LHB","05_14",2704,2429,{"$f":"VLOOKUP(C58,'HB pops'!$A$2:$E$73,4,FALSE)","v":29673},{"$f":"VLOOKUP(C58,'HB pops'!$A$2:$E$73,5,FALSE)","v":28118},null,"Abertawe Bro Morgannwg University LHB","CityHealth","05_14",2704,2429,true,true,true,true,true]
["CityHealth15_24","CityHealth","Abertawe Bro Morgannwg University LHB15_24","Abertawe Bro Morgannwg University LHB","15_24",3839,3543,{"$f":"VLOOKUP(C59,'HB pops'!$A$2:$E$73,4,FALSE)","v":36992},{"$f":"VLOOKUP(C59,'HB pops'!$A$2:$E$73,5,FALSE)","v":34588},null,"Abertawe Bro Morgannwg University LHB","CityHealth","15_24",3839,3543,true,true,true,true,true]
["CityHealth25_44","CityHealth","Abertawe Bro Morgannwg University LHB25_44","Abertawe Bro Morgannwg University LHB","25_44",8323,6402,{"$f":"VLOOKUP(C60,'HB pops'!$A$2:$E$73,4,FALSE)","v":71125},{"$f":"VLOOKUP(C60,'HB pops'!$A$2:$E$73,5,FALSE)","v":67753},null,"Abertawe Bro Morgannwg University LHB","CityHealth","25_44",8323,6402,true,true,true,true,true]
["CityHealth45_64","CityHealth","Abertawe Bro Morgannwg University LHB45_64","Abertawe Bro Morgannwg University LHB","45_64",6922,5947,{"$f":"VLOOKUP(C61,'HB pops'!$A$2:$E$73,4,FALSE)","v":72111},{"$f":"VLOOKUP(C61,'HB pops'!$A$2:$E$73,5,FALSE)","v":70992},null,"Abertawe Bro Morgannwg University LHB","CityHealth","45_64",6922,5947,true,true,true,true,true]
["CityHealth65_74","CityHealth","Abertawe Bro Morgannwg University LHB65_74","Abertawe Bro Morgannwg University LHB","65_74",2033,2080,{"$f":"VLOOKUP(C62,'HB pops'!$A$2:$E$73,4,FALSE)","v":26093},{"$f":"VLOOKUP(C62,'HB pops'!$A$2:$E$73,5,FALSE)","v":27993},null,"Abertawe Bro Morgannwg University LHB","CityHealth","65_74",2033,2080,true,true,true,true,true]
["CityHealth75_84","CityHealth","Abertawe Bro Morgannwg University LHB75_84","Abertawe Bro Morgannwg University LHB","75_84",1217,1524,{"$f":"VLOOKUP(C63,'HB pops'!$A$2:$E$73,4,FALSE)","v":14828},{"$f":"VLOOKUP(C63,'HB pops'!$A$2:$E$73,5,FALSE)","v":18662},null,"Abertawe Bro Morgannwg University LHB","CityHealth","75_84",1217,1524,true,true,true,true,true]
["CityHealth85+","CityHealth","Abertawe Bro Morgannwg University LHB85+","Abertawe Bro Morgannwg University LHB","85+",408,654,{"$f":"VLOOKUP(C64,'HB pops'!$A$2:$E$73,4,FALSE)","v":4587},{"$f":"VLOOKUP(C64,'HB pops'!$A$2:$E$73,5,FALSE)","v":8957},null,"Abertawe Bro Morgannwg University LHB","CityHealth","85+",408,654,true,true,true,true,true]
["Cwmtawe00_02","Cwmtawe","Abertawe Bro Morgannwg University LHB00_02","Abertawe Bro Morgannwg University LHB","00_02",825,781,{"$f":"VLOOKUP(C65,'HB pops'!$A$2:$E$73,4,FALSE)","v":9116},{"$f":"VLOOKUP(C65,'HB pops'!$A$2:$E$73,5,FALSE)","v":8539},null,"Abertawe Bro Morgannwg University LHB","Cwmtawe","00_02",825,781,true,true,true,true,true]
["Cwmtawe03_04","Cwmtawe","Abertawe Bro Morgannwg University LHB03_04","Abertawe Bro Morgannwg University LHB","03_04",549,514,{"$f":"VLOOKUP(C66,'HB pops'!$A$2:$E$73,4,FALSE)","v":6284},{"$f":"VLOOKUP(C66,'HB pops'!$A$2:$E$73,5,FALSE)","v":5757},null,"Abertawe Bro Morgannwg University LHB","Cwmtawe","03_04",549,514,true,true,true,true,true]
[{"$f":"B67&E67","v":"Cwmtawe05_14"},"Cwmtawe",{"$f":"D67&E67","v":"Abertawe Bro Morgannwg University LHB05_14"},"Abertawe Bro Morgannwg University LHB","05_14",2553,2370,{"$f":"VLOOKUP(C67,'HB pops'!$A$2:$E$73,4,FALSE)","v":29673},{"$f":"VLOOKUP(C67,'HB pops'!$A$2:$E$73,5,FALSE)","v":28118},null,"Abertawe Bro Morgannwg University LHB","Cwmtawe","05_14",2553,2370,true,true,true,true,true]
["Cwmtawe15_24","Cwmtawe","Abertawe Bro Morgannwg University LHB15_24","Abertawe Bro Morgannwg University LHB","15_24",2616,2510,{"$f":"VLOOKUP(C68,'HB pops'!$A$2:$E$73,4,FALSE)","v":36992},{"$f":"VLOOKUP(C68,'HB pops'!$A$2:$E$73,5,FALSE)","v":34588},null,"Abertawe Bro Morgannwg University LHB","Cwmtawe","15_24",2616,2510,true,true,true,true,true]
["Cwmtawe25_44","Cwmtawe","Abertawe Bro Morgannwg University LHB25_44","Abertawe Bro Morgannwg University LHB","25_44",5706,5849,{"$f":"VLOOKUP(C69,'HB pops'!$A$2:$E$73,4,FALSE)","v":71125},{"$f":"VLOOKUP(C69,'HB pops'!$A$2:$E$73,5,FALSE)","v":67753},null,"Abertawe Bro Morgannwg University LHB","Cwmtawe","25_44",5706,5849,true,true,true,true,true]
["Cwmtawe45_64","Cwmtawe","Abertawe Bro Morgannwg University LHB45_64","Abertawe Bro Morgannwg University LHB","45_64",5434,5705,{"$f":"VLOOKUP(C70,'HB pops'!$A$2:$E$73,4,FALSE)","v":72111},{"$f":"VLOOKUP(C70,'HB pops'!$A$2:$E$73,5,FALSE)","v":70992},null,"Abertawe Bro Morgannwg University LHB","Cwmtawe","45_64",5434,5705,true,true,true,true,true]
["Cwmtawe65_74","Cwmtawe","Abertawe Bro Morgannwg University LHB65_74","Abertawe Bro Morgannwg University LHB","65_74",1980,2110,{"$f":"VLOOKUP(C71,'HB pops'!$A$2:$E$73,4,FALSE)","v":26093},{"$f":"VLOOKUP(C71,'HB pops'!$A$2:$E$73,5,FALSE)","v":27993},null,"Abertawe Bro Morgannwg University LHB","Cwmtawe","65_74",1980,2110,true,true,true,true,true]
["Cwmtawe75_84","Cwmtawe","Abertawe Bro Morgannwg University LHB75_84","Abertawe Bro Morgannwg University LHB","75_84",1135,1403,{"$f":"VLOOKUP(C72,'HB pops'!$A$2:$E$73,4,FALSE)","v":14828},{"$f":"VLOOKUP(C72,'HB pops'!$A$2:$E$73,5,FALSE)","v":18662},null,"Abertawe Bro Morgannwg University LHB","Cwmtawe","75_84",1135,1403,true,true,true,true,true]
["Cwmtawe85+","Cwmtawe","Abertawe Bro Morgannwg University LHB85+","Abertawe Bro Morgannwg University LHB","85+",308,606,{"$f":"VLOOKUP(C73,'HB pops'!$A$2:$E$73,4,FALSE)","v":4587},{"$f":"VLOOKUP(C73,'HB pops'!$A$2:$E$73,5,FALSE)","v":8957},null,"Abertawe Bro Morgannwg University LHB","Cwmtawe","85+",308,606,true,true,true,true,true]
["Llwchwr00_02","Llwchwr","Abertawe Bro Morgannwg University LHB00_02","Abertawe Bro Morgannwg University LHB","00_02",786,696,{"$f":"VLOOKUP(C74,'HB pops'!$A$2:$E$73,4,FALSE)","v":9116},{"$f":"VLOOKUP(C74,'HB pops'!$A$2:$E$73,5,FALSE)","v":8539},null,"Abertawe Bro Morgannwg University LHB","Llwchwr","00_02",786,696,true,true,true,true,true]
["Llwchwr03_04","Llwchwr","Abertawe Bro Morgannwg University LHB03_04","Abertawe Bro Morgannwg University LHB","03_04",516,499,{"$f":"VLOOKUP(C75,'HB pops'!$A$2:$E$73,4,FALSE)","v":6284},{"$f":"VLOOKUP(C75,'HB pops'!$A$2:$E$73,5,FALSE)","v":5757},null,"Abertawe Bro Morgannwg University LHB","Llwchwr","03_04",516,499,true,true,true,true,true]
["Llwchwr05_14","Llwchwr","Abertawe Bro Morgannwg University LHB05_14","Abertawe Bro Morgannwg University LHB","05_14",2665,2579,{"$f":"VLOOKUP(C76,'HB pops'!$A$2:$E$73,4,FALSE)","v":29673},{"$f":"VLOOKUP(C76,'HB pops'!$A$2:$E$73,5,FALSE)","v":28118},null,"Abertawe Bro Morgannwg University LHB","Llwchwr","05_14",2665,2579,{"$f":"K76=D76","v":true},{"$f":"L76=B76","v":true},{"$f":"M76=E76","v":true},{"$f":"N76=F76","v":true},{"$f":"O76=G76","v":true}]
["Llwchwr15_24","Llwchwr","Abertawe Bro Morgannwg University LHB15_24","Abertawe Bro Morgannwg University LHB","15_24",2744,2655,{"$f":"VLOOKUP(C77,'HB pops'!$A$2:$E$73,4,FALSE)","v":36992},{"$f":"VLOOKUP(C77,'HB pops'!$A$2:$E$73,5,FALSE)","v":34588},null,"Abertawe Bro Morgannwg University LHB","Llwchwr","15_24",2744,2655,true,true,true,true,true]
["Llwchwr25_44","Llwchwr","Abertawe Bro Morgannwg University LHB25_44","Abertawe Bro Morgannwg University LHB","25_44",5900,6003,{"$f":"VLOOKUP(C78,'HB pops'!$A$2:$E$73,4,FALSE)","v":71125},{"$f":"VLOOKUP(C78,'HB pops'!$A$2:$E$73,5,FALSE)","v":67753},null,"Abertawe Bro Morgannwg University LHB","Llwchwr","25_44",5900,6003,true,true,true,true,true]
["Llwchwr45_64","Llwchwr","Abertawe Bro Morgannwg University LHB45_64","Abertawe Bro Morgannwg University LHB","45_64",6125,6337,{"$f":"VLOOKUP(C79,'HB pops'!$A$2:$E$73,4,FALSE)","v":72111},{"$f":"VLOOKUP(C79,'HB pops'!$A$2:$E$73,5,FALSE)","v":70992},null,"Abertawe Bro Morgannwg University LHB","Llwchwr","45_64",6125,6337,true,true,true,true,true]
["Llwchwr65_74","Llwchwr","Abertawe Bro Morgannwg University LHB65_74","Abertawe Bro Morgannwg University LHB","65_74",2322,2436,{"$f":"VLOOKUP(C80,'HB pops'!$A$2:$E$73,4,FALSE)","v":26093},{"$f":"VLOOKUP(C80,'HB pops'!$A$2:$E$73,5,FALSE)","v":27993},null,"Abertawe Bro Morgannwg University LHB","Llwchwr","65_74",2322,2436,true,true,true,true,true]
["Llwchwr75_84","Llwchwr","Abertawe Bro Morgannwg University LHB75_84","Abertawe Bro Morgannwg University LHB","75_84",1225,1586,{"$f":"VLOOKUP(C81,'HB pops'!$A$2:$E$73,4,FALSE)","v":14828},{"$f":"VLOOKUP(C81,'HB pops'!$A$2:$E$73,5,FALSE)","v":18662},null,"Abertawe Bro Morgannwg University LHB","Llwchwr","75_84",1225,1586,true,true,true,true,true]
["Llwchwr85+","Llwchwr","Abertawe Bro Morgannwg University LHB85+","Abertawe Bro Morgannwg University LHB","85+",401,778,{"$f":"VLOOKUP(C82,'HB pops'!$A$2:$E$73,4,FALSE)","v":4587},{"$f":"VLOOKUP(C82,'HB pops'!$A$2:$E$73,5,FALSE)","v":8957},null,"Abertawe Bro Morgannwg University LHB","Llwchwr","85+",401,778,true,true,true,true,true]
["Neath00_02","Neath","Abertawe Bro Morgannwg University LHB00_02","Abertawe Bro Morgannwg University LHB","00_02",910,842,{"$f":"VLOOKUP(C83,'HB pops'!$A$2:$E$73,4,FALSE)","v":9116},{"$f":"VLOOKUP(C83,'HB pops'!$A$2:$E$73,5,FALSE)","v":8539},null,"Abertawe Bro Morgannwg University LHB","Neath","00_02",910,842,true,true,true,true,true]
["Neath03_04","Neath","Abertawe Bro Morgannwg University LHB03_04","Abertawe Bro Morgannwg University LHB","03_04",587,575,{"$f":"VLOOKUP(C84,'HB pops'!$A$2:$E$73,4,FALSE)","v":6284},{"$f":"VLOOKUP(C84,'HB pops'!$A$2:$E$73,5,FALSE)","v":5757},null,"Abertawe Bro Morgannwg University LHB","Neath","03_04",587,575,true,true,true,true,true]
["Neath05_14","Neath","Abertawe Bro Morgannwg University LHB05_14","Abertawe Bro Morgannwg University LHB","05_14",3097,2941,{"$f":"VLOOKUP(C85,'HB pops'!$A$2:$E$73,4,FALSE)","v":29673},{"$f":"VLOOKUP(C85,'HB pops'!$A$2:$E$73,5,FALSE)","v":28118},null,"Abertawe Bro Morgannwg University LHB","Neath","05_14",3097,2941,true,true,true,true,true]
["Neath15_24","Neath","Abertawe Bro Morgannwg University LHB15_24","Abertawe Bro Morgannwg University LHB","15_24",3353,3249,{"$f":"VLOOKUP(C86,'HB pops'!$A$2:$E$73,4,FALSE)","v":36992},{"$f":"VLOOKUP(C86,'HB pops'!$A$2:$E$73,5,FALSE)","v":34588},null,"Abertawe Bro Morgannwg University LHB","Neath","15_24",3353,3249,true,true,true,true,true]
["Neath25_44","Neath","Abertawe Bro Morgannwg University LHB25_44","Abertawe Bro Morgannwg University LHB","25_44",7066,7004,{"$f":"VLOOKUP(C87,'HB pops'!$A$2:$E$73,4,FALSE)","v":71125},{"$f":"VLOOKUP(C87,'HB pops'!$A$2:$E$73,5,FALSE)","v":67753},null,"Abertawe Bro Morgannwg University LHB","Neath","25_44",7066,7004,true,true,true,true,true]
["Neath45_64","Neath","Abertawe Bro Morgannwg University LHB45_64","Abertawe Bro Morgannwg University LHB","45_64",7846,7888,{"$f":"VLOOKUP(C88,'HB pops'!$A$2:$E$73,4,FALSE)","v":72111},{"$f":"VLOOKUP(C88,'HB pops'!$A$2:$E$73,5,FALSE)","v":70992},null,"Abertawe Bro Morgannwg University LHB","Neath","45_64",7846,7888,true,true,true,true,true]
["Neath65_74","Neath","Abertawe Bro Morgannwg University LHB65_74","Abertawe Bro Morgannwg University LHB","65_74",2843,3067,{"$f":"VLOOKUP(C89,'HB pops'!$A$2:$E$73,4,FALSE)","v":26093},{"$f":"VLOOKUP(C89,'HB pops'!$A$2:$E$73,5,FALSE)","v":27993},null,"Abertawe Bro Morgannwg University LHB","Neath","65_74",2843,3067,true,true,true,true,true]
["Neath75_84","Neath","Abertawe Bro Morgannwg University LHB75_84","Abertawe Bro Morgannwg University LHB","75_84",1662,2069,{"$f":"VLOOKUP(C90,'HB pops'!$A$2:$E$73,4,FALSE)","v":14828},{"$f":"VLOOKUP(C90,'HB pops'!$A$2:$E$73,5,FALSE)","v":18662},null,"Abertawe Bro Morgannwg University LHB","Neath","75_84",1662,2069,true,true,true,true,true]
["Neath85+","Neath","Abertawe Bro Morgannwg University LHB85+","Abertawe Bro Morgannwg University LHB","85+",487,1027,{"$f":"VLOOKUP(C91,'HB pops'!$A$2:$E$73,4,FALSE)","v":4587},{"$f":"VLOOKUP(C91,'HB pops'!$A$2:$E$73,5,FALSE)","v":8957},null,"Abertawe Bro Morgannwg University LHB","Neath","85+",487,1027,true,true,true,true,true]
["Penderi00_02","Penderi","Abertawe Bro Morgannwg University LHB00_02","Abertawe Bro Morgannwg University LHB","00_02",747,703,{"$f":"VLOOKUP(C92,'HB pops'!$A$2:$E$73,4,FALSE)","v":9116},{"$f":"VLOOKUP(C92,'HB pops'!$A$2:$E$73,5,FALSE)","v":8539},null,"Abertawe Bro Morgannwg University LHB","Penderi","00_02",747,703,true,true,true,true,true]
["Penderi03_04","Penderi","Abertawe Bro Morgannwg University LHB03_04","Abertawe Bro Morgannwg University LHB","03_04",530,473,{"$f":"VLOOKUP(C93,'HB pops'!$A$2:$E$73,4,FALSE)","v":6284},{"$f":"VLOOKUP(C93,'HB pops'!$A$2:$E$73,5,FALSE)","v":5757},null,"Abertawe Bro Morgannwg University LHB","Penderi","03_04",530,473,true,true,true,true,true]
["Penderi05_14","Penderi","Abertawe Bro Morgannwg University LHB05_14","Abertawe Bro Morgannwg University LHB","05_14",2194,2144,{"$f":"VLOOKUP(C94,'HB pops'!$A$2:$E$73,4,FALSE)","v":29673},{"$f":"VLOOKUP(C94,'HB pops'!$A$2:$E$73,5,FALSE)","v":28118},null,"Abertawe Bro Morgannwg University LHB","Penderi","05_14",2194,2144,true,true,true,true,true]
["Penderi15_24","Penderi","Abertawe Bro Morgannwg University LHB15_24","Abertawe Bro Morgannwg University LHB","15_24",2461,2425,{"$f":"VLOOKUP(C95,'HB pops'!$A$2:$E$73,4,FALSE)","v":36992},{"$f":"VLOOKUP(C95,'HB pops'!$A$2:$E$73,5,FALSE)","v":34588},null,"Abertawe Bro Morgannwg University LHB","Penderi","15_24",2461,2425,true,true,true,true,true]
["Penderi25_44","Penderi","Abertawe Bro Morgannwg University LHB25_44","Abertawe Bro Morgannwg University LHB","25_44",4897,4944,{"$f":"VLOOKUP(C96,'HB pops'!$A$2:$E$73,4,FALSE)","v":71125},{"$f":"VLOOKUP(C96,'HB pops'!$A$2:$E$73,5,FALSE)","v":67753},null,"Abertawe Bro Morgannwg University LHB","Penderi","25_44",4897,4944,true,true,true,true,true]
["Penderi45_64","Penderi","Abertawe Bro Morgannwg University LHB45_64","Abertawe Bro Morgannwg University LHB","45_64",4583,4667,{"$f":"VLOOKUP(C97,'HB pops'!$A$2:$E$73,4,FALSE)","v":72111},{"$f":"VLOOKUP(C97,'HB pops'!$A$2:$E$73,5,FALSE)","v":70992},null,"Abertawe Bro Morgannwg University LHB","Penderi","45_64",4583,4667,true,true,true,true,true]
["Penderi65_74","Penderi","Abertawe Bro Morgannwg University LHB65_74","Abertawe Bro Morgannwg University LHB","65_74",1595,1739,{"$f":"VLOOKUP(C98,'HB pops'!$A$2:$E$73,4,FALSE)","v":26093},{"$f":"VLOOKUP(C98,'HB pops'!$A$2:$E$73,5,FALSE)","v":27993},null,"Abertawe Bro Morgannwg University LHB","Penderi","65_74",1595,1739,true,true,true,true,true]
["Penderi75_84","Penderi","Abertawe Bro Morgannwg University LHB75_84","Abertawe Bro Morgannwg University LHB","75_84",964,1165,{"$f":"VLOOKUP(C99,'HB pops'!$A$2:$E$73,4,FALSE)","v":14828},{"$f":"VLOOKUP(C99,'HB pops'!$A$2:$E$73,5,FALSE)","v":18662},null,"Abertawe Bro Morgannwg University LHB","Penderi","75_84",964,1165,true,true,true,true,true]
["Penderi85+","Penderi","Abertawe Bro Morgannwg University LHB85+","Abertawe Bro Morgannwg University LHB","85+",260,503,{"$f":"VLOOKUP(C100,'HB pops'!$A$2:$E$73,4,FALSE)","v":4587},{"$f":"VLOOKUP(C100,'HB pops'!$A$2:$E$73,5,FALSE)","v":8957},null,"Abertawe Bro Morgannwg University LHB","Penderi","85+",260,503,true,true,true,true,true]
["Upper Valleys00_02","Upper Valleys","Abertawe Bro Morgannwg University LHB00_02","Abertawe Bro Morgannwg University LHB","00_02",502,459,{"$f":"VLOOKUP(C101,'HB pops'!$A$2:$E$73,4,FALSE)","v":9116},{"$f":"VLOOKUP(C101,'HB pops'!$A$2:$E$73,5,FALSE)","v":8539},null,"Abertawe Bro Morgannwg University LHB","Upper Valleys","00_02",502,459,true,true,true,true,true]
["Upper Valleys03_04","Upper Valleys","Abertawe Bro Morgannwg University LHB03_04","Abertawe Bro Morgannwg University LHB","03_04",373,312,{"$f":"VLOOKUP(C102,'HB pops'!$A$2:$E$73,4,FALSE)","v":6284},{"$f":"VLOOKUP(C102,'HB pops'!$A$2:$E$73,5,FALSE)","v":5757},null,"Abertawe Bro Morgannwg University LHB","Upper Valleys","03_04",373,312,true,true,true,true,true]
["Upper Valleys05_14","Upper Valleys","Abertawe Bro Morgannwg University LHB05_14","Abertawe Bro Morgannwg University LHB","05_14",1666,1583,{"$f":"VLOOKUP(C103,'HB pops'!$A$2:$E$73,4,FALSE)","v":29673},{"$f":"VLOOKUP(C103,'HB pops'!$A$2:$E$73,5,FALSE)","v":28118},null,"Abertawe Bro Morgannwg University LHB","Upper Valleys","05_14",1666,1583,true,true,true,true,true]
["Upper Valleys15_24","Upper Valleys","Abertawe Bro Morgannwg University LHB15_24","Abertawe Bro Morgannwg University LHB","15_24",1944,1812,{"$f":"VLOOKUP(C104,'HB pops'!$A$2:$E$73,4,FALSE)","v":36992},{"$f":"VLOOKUP(C104,'HB pops'!$A$2:$E$73,5,FALSE)","v":34588},null,"Abertawe Bro Morgannwg University LHB","Upper Valleys","15_24",1944,1812,true,true,true,true,true]
["Upper Valleys25_44","Upper Valleys","Abertawe Bro Morgannwg University LHB25_44","Abertawe Bro Morgannwg University LHB","25_44",3764,3646,{"$f":"VLOOKUP(C105,'HB pops'!$A$2:$E$73,4,FALSE)","v":71125},{"$f":"VLOOKUP(C105,'HB pops'!$A$2:$E$73,5,FALSE)","v":67753},null,"Abertawe Bro Morgannwg University LHB","Upper Valleys","25_44",3764,3646,true,true,true,true,true]
["Upper Valleys45_64","Upper Valleys","Abertawe Bro Morgannwg University LHB45_64","Abertawe Bro Morgannwg University LHB","45_64",4326,4202,{"$f":"VLOOKUP(C106,'HB pops'!$A$2:$E$73,4,FALSE)","v":72111},{"$f":"VLOOKUP(C106,'HB pops'!$A$2:$E$73,5,FALSE)","v":70992},null,"Abertawe Bro Morgannwg University LHB","Upper Valleys","45_64",4326,4202,true,true,true,true,true]
["Upper Valleys65_74","Upper Valleys","Abertawe Bro Morgannwg University LHB65_74","Abertawe Bro Morgannwg University LHB","65_74",1684,1754,{"$f":"VLOOKUP(C107,'HB pops'!$A$2:$E$73,4,FALSE)","v":26093},{"$f":"VLOOKUP(C107,'HB pops'!$A$2:$E$73,5,FALSE)","v":27993},null,"Abertawe Bro Morgannwg University LHB","Upper Valleys","65_74",1684,1754,true,true,true,true,true]
["Upper Valleys75_84","Upper Valleys","Abertawe Bro Morgannwg University LHB75_84","Abertawe Bro Morgannwg University LHB","75_84",885,1054,{"$f":"VLOOKUP(C108,'HB pops'!$A$2:$E$73,4,FALSE)","v":14828},{"$f":"VLOOKUP(C108,'HB pops'!$A$2:$E$73,5,FALSE)","v":18662},null,"Abertawe Bro Morgannwg University LHB","Upper Valleys","75_84",885,1054,true,true,true,true,true]
["Upper Valleys85+","Upper Valleys","Abertawe Bro Morgannwg University LHB85+","Abertawe Bro Morgannwg University LHB","85+",259,572,{"$f":"VLOOKUP(C109,'HB pops'!$A$2:$E$73,4,FALSE)","v":4587},{"$f":"VLOOKUP(C109,'HB pops'!$A$2:$E$73,5,FALSE)","v":8957},null,"Abertawe Bro Morgannwg University LHB","Upper Valleys","85+",259,572,true,true,true,true,true]
["Blaenau Gwent East00_02","Blaenau Gwent East","Aneurin Bevan LHB00_02","Aneurin Bevan LHB","00_02",655,582,{"$f":"VLOOKUP(C110,'HB pops'!$A$2:$E$73,4,FALSE)","v":10148},{"$f":"VLOOKUP(C110,'HB pops'!$A$2:$E$73,5,FALSE)","v":9829},null,"Aneurin Bevan LHB","Blaenau Gwent East","00_02",655,582,true,true,true,true,true]
["Blaenau Gwent East03_04","Blaenau Gwent East","Aneurin Bevan LHB03_04","Aneurin Bevan LHB","03_04",510,416,{"$f":"VLOOKUP(C111,'HB pops'!$A$2:$E$73,4,FALSE)","v":7247},{"$f":"VLOOKUP(C111,'HB pops'!$A$2:$E$73,5,FALSE)","v":6724},null,"Aneurin Bevan LHB","Blaenau Gwent East","03_04",510,416,true,true,true,true,true]
["Blaenau Gwent East05_14","Blaenau Gwent East","Aneurin Bevan LHB05_14","Aneurin Bevan LHB","05_14",2047,1992,{"$f":"VLOOKUP(C112,'HB pops'!$A$2:$E$73,4,FALSE)","v":34162},{"$f":"VLOOKUP(C112,'HB pops'!$A$2:$E$73,5,FALSE)","v":32575},null,"Aneurin Bevan LHB","Blaenau Gwent East","05_14",2047,1992,true,true,true,true,true]
["Blaenau Gwent East15_24","Blaenau Gwent East","Aneurin Bevan LHB15_24","Aneurin Bevan LHB","15_24",2570,2490,{"$f":"VLOOKUP(C113,'HB pops'!$A$2:$E$73,4,FALSE)","v":39331},{"$f":"VLOOKUP(C113,'HB pops'!$A$2:$E$73,5,FALSE)","v":37293},null,"Aneurin Bevan LHB","Blaenau Gwent East","15_24",2570,2490,true,true,true,true,true]
["Blaenau Gwent East25_44","Blaenau Gwent East","Aneurin Bevan LHB25_44","Aneurin Bevan LHB","25_44",5090,4710,{"$f":"VLOOKUP(C114,'HB pops'!$A$2:$E$73,4,FALSE)","v":76729},{"$f":"VLOOKUP(C114,'HB pops'!$A$2:$E$73,5,FALSE)","v":74824},null,"Aneurin Bevan LHB","Blaenau Gwent East","25_44",5090,4710,true,true,true,true,true]
["Blaenau Gwent East45_64","Blaenau Gwent East","Aneurin Bevan LHB45_64","Aneurin Bevan LHB","45_64",5261,5059,{"$f":"VLOOKUP(C115,'HB pops'!$A$2:$E$73,4,FALSE)","v":81293},{"$f":"VLOOKUP(C115,'HB pops'!$A$2:$E$73,5,FALSE)","v":79632},null,"Aneurin Bevan LHB","Blaenau Gwent East","45_64",5261,5059,true,true,true,true,true]
["Blaenau Gwent East65_74","Blaenau Gwent East","Aneurin Bevan LHB65_74","Aneurin Bevan LHB","65_74",1964,1897,{"$f":"VLOOKUP(C116,'HB pops'!$A$2:$E$73,4,FALSE)","v":28989},{"$f":"VLOOKUP(C116,'HB pops'!$A$2:$E$73,5,FALSE)","v":30334},null,"Aneurin Bevan LHB","Blaenau Gwent East","65_74",1964,1897,true,true,true,true,true]
["Blaenau Gwent East75_84","Blaenau Gwent East","Aneurin Bevan LHB75_84","Aneurin Bevan LHB","75_84",1067,1215,{"$f":"VLOOKUP(C117,'HB pops'!$A$2:$E$73,4,FALSE)","v":15460},{"$f":"VLOOKUP(C117,'HB pops'!$A$2:$E$73,5,FALSE)","v":19165},null,"Aneurin Bevan LHB","Blaenau Gwent East","75_84",1067,1215,true,true,true,true,true]
["Blaenau Gwent East85+","Blaenau Gwent East","Aneurin Bevan LHB85+","Aneurin Bevan LHB","85+",267,567,{"$f":"VLOOKUP(C118,'HB pops'!$A$2:$E$73,4,FALSE)","v":4468},{"$f":"VLOOKUP(C118,'HB pops'!$A$2:$E$73,5,FALSE)","v":9313},null,"Aneurin Bevan LHB","Blaenau Gwent East","85+",267,567,true,true,true,true,true]
["Blaenau Gwent West00_02","Blaenau Gwent West","Aneurin Bevan LHB00_02","Aneurin Bevan LHB","00_02",584,542,{"$f":"VLOOKUP(C119,'HB pops'!$A$2:$E$73,4,FALSE)","v":10148},{"$f":"VLOOKUP(C119,'HB pops'!$A$2:$E$73,5,FALSE)","v":9829},null,"Aneurin Bevan LHB","Blaenau Gwent West","00_02",584,542,true,true,true,true,true]
["Blaenau Gwent West03_04","Blaenau Gwent West","Aneurin Bevan LHB03_04","Aneurin Bevan LHB","03_04",379,365,{"$f":"VLOOKUP(C120,'HB pops'!$A$2:$E$73,4,FALSE)","v":7247},{"$f":"VLOOKUP(C120,'HB pops'!$A$2:$E$73,5,FALSE)","v":6724},null,"Aneurin Bevan LHB","Blaenau Gwent West","03_04",379,365,true,true,true,true,true]
["Blaenau Gwent West05_14","Blaenau Gwent West","Aneurin Bevan LHB05_14","Aneurin Bevan LHB","05_14",1800,1893,{"$f":"VLOOKUP(C121,'HB pops'!$A$2:$E$73,4,FALSE)","v":34162},{"$f":"VLOOKUP(C121,'HB pops'!$A$2:$E$73,5,FALSE)","v":32575},null,"Aneurin Bevan LHB","Blaenau Gwent West","05_14",1800,1893,true,true,true,true,true]
["Blaenau Gwent West15_24","Blaenau Gwent West","Aneurin Bevan LHB15_24","Aneurin Bevan LHB","15_24",2304,2281,{"$f":"VLOOKUP(C122,'HB pops'!$A$2:$E$73,4,FALSE)","v":39331},{"$f":"VLOOKUP(C122,'HB pops'!$A$2:$E$73,5,FALSE)","v":37293},null,"Aneurin Bevan LHB","Blaenau Gwent West","15_24",2304,2281,true,true,true,true,true]
["Blaenau Gwent West25_44","Blaenau Gwent West","Aneurin Bevan LHB25_44","Aneurin Bevan LHB","25_44",4460,4467,{"$f":"VLOOKUP(C123,'HB pops'!$A$2:$E$73,4,FALSE)","v":76729},{"$f":"VLOOKUP(C123,'HB pops'!$A$2:$E$73,5,FALSE)","v":74824},null,"Aneurin Bevan LHB","Blaenau Gwent West","25_44",4460,4467,true,true,true,true,true]
["Blaenau Gwent West45_64","Blaenau Gwent West","Aneurin Bevan LHB45_64","Aneurin Bevan LHB","45_64",4726,4691,{"$f":"VLOOKUP(C124,'HB pops'!$A$2:$E$73,4,FALSE)","v":81293},{"$f":"VLOOKUP(C124,'HB pops'!$A$2:$E$73,5,FALSE)","v":79632},null,"Aneurin Bevan LHB","Blaenau Gwent West","45_64",4726,4691,true,true,true,true,true]
["Blaenau Gwent West65_74","Blaenau Gwent West","Aneurin Bevan LHB65_74","Aneurin Bevan LHB","65_74",1851,1897,{"$f":"VLOOKUP(C125,'HB pops'!$A$2:$E$73,4,FALSE)","v":28989},{"$f":"VLOOKUP(C125,'HB pops'!$A$2:$E$73,5,FALSE)","v":30334},null,"Aneurin Bevan LHB","Blaenau Gwent West","65_74",1851,1897,true,true,true,true,true]
["Blaenau Gwent West75_84","Blaenau Gwent West","Aneurin Bevan LHB75_84","Aneurin Bevan LHB","75_84",847,1106,{"$f":"VLOOKUP(C126,'HB pops'!$A$2:$E$73,4,FALSE)","v":15460},{"$f":"VLOOKUP(C126,'HB pops'!$A$2:$E$73,5,FALSE)","v":19165},null,"Aneurin Bevan LHB","Blaenau Gwent West","75_84",847,1106,true,true,true,true,true]
["Blaenau Gwent West85+","Blaenau Gwent West","Aneurin Bevan LHB85+","Aneurin Bevan LHB","85+",233,520,{"$f":"VLOOKUP(C127,'HB pops'!$A$2:$E$73,4,FALSE)","v":4468},{"$f":"VLOOKUP(C127,'HB pops'!$A$2:$E$73,5,FALSE)","v":9313},null,"Aneurin Bevan LHB","Blaenau Gwent West","85+",233,520,true,true,true,true,true]
["Caerphilly East00_02","Caerphilly East","Aneurin Bevan LHB00_02","Aneurin Bevan LHB","00_02",1025,977,{"$f":"VLOOKUP(C128,'HB pops'!$A$2:$E$73,4,FALSE)","v":10148},{"$f":"VLOOKUP(C128,'HB pops'!$A$2:$E$73,5,FALSE)","v":9829},null,"Aneurin Bevan LHB","Caerphilly East","00_02",1025,977,true,true,true,true,true]
["Caerphilly East03_04","Caerphilly East","Aneurin Bevan LHB03_04","Aneurin Bevan LHB","03_04",691,701,{"$f":"VLOOKUP(C129,'HB pops'!$A$2:$E$73,4,FALSE)","v":7247},{"$f":"VLOOKUP(C129,'HB pops'!$A$2:$E$73,5,FALSE)","v":6724},null,"Aneurin Bevan LHB","Caerphilly East","03_04",691,701,true,true,true,true,true]
["Caerphilly East05_14","Caerphilly East","Aneurin Bevan LHB05_14","Aneurin Bevan LHB","05_14",3545,3340,{"$f":"VLOOKUP(C130,'HB pops'!$A$2:$E$73,4,FALSE)","v":34162},{"$f":"VLOOKUP(C130,'HB pops'!$A$2:$E$73,5,FALSE)","v":32575},null,"Aneurin Bevan LHB","Caerphilly East","05_14",3545,3340,true,true,true,true,true]
[{"$f":"B131&E131","v":"Caerphilly East15_24"},"Caerphilly East",{"$f":"D131&E131","v":"Aneurin Bevan LHB15_24"},"Aneurin Bevan LHB","15_24",3831,3676,{"$f":"VLOOKUP(C131,'HB pops'!$A$2:$E$73,4,FALSE)","v":39331},{"$f":"VLOOKUP(C131,'HB pops'!$A$2:$E$73,5,FALSE)","v":37293},null,"Aneurin Bevan LHB","Caerphilly East","15_24",3831,3676,true,true,true,true,true]
["Caerphilly East25_44","Caerphilly East","Aneurin Bevan LHB25_44","Aneurin Bevan LHB","25_44",7760,7932,{"$f":"VLOOKUP(C132,'HB pops'!$A$2:$E$73,4,FALSE)","v":76729},{"$f":"VLOOKUP(C132,'HB pops'!$A$2:$E$73,5,FALSE)","v":74824},null,"Aneurin Bevan LHB","Caerphilly East","25_44",7760,7932,true,true,true,true,true]
["Caerphilly East45_64","Caerphilly East","Aneurin Bevan LHB45_64","Aneurin Bevan LHB","45_64",8000,7918,{"$f":"VLOOKUP(C133,'HB pops'!$A$2:$E$73,4,FALSE)","v":81293},{"$f":"VLOOKUP(C133,'HB pops'!$A$2:$E$73,5,FALSE)","v":79632},null,"Aneurin Bevan LHB","Caerphilly East","45_64",8000,7918,true,true,true,true,true]
["Caerphilly East65_74","Caerphilly East","Aneurin Bevan LHB65_74","Aneurin Bevan LHB","65_74",2871,2928,{"$f":"VLOOKUP(C134,'HB pops'!$A$2:$E$73,4,FALSE)","v":28989},{"$f":"VLOOKUP(C134,'HB pops'!$A$2:$E$73,5,FALSE)","v":30334},null,"Aneurin Bevan LHB","Caerphilly East","65_74",2871,2928,true,true,true,true,true]
["Caerphilly East75_84","Caerphilly East","Aneurin Bevan LHB75_84","Aneurin Bevan LHB","75_84",1455,1840,{"$f":"VLOOKUP(C135,'HB pops'!$A$2:$E$73,4,FALSE)","v":15460},{"$f":"VLOOKUP(C135,'HB pops'!$A$2:$E$73,5,FALSE)","v":19165},null,"Aneurin Bevan LHB","Caerphilly East","75_84",1455,1840,true,true,true,true,true]
["Caerphilly East85+","Caerphilly East","Aneurin Bevan LHB85+","Aneurin Bevan LHB","85+",396,957,{"$f":"VLOOKUP(C136,'HB pops'!$A$2:$E$73,4,FALSE)","v":4468},{"$f":"VLOOKUP(C136,'HB pops'!$A$2:$E$73,5,FALSE)","v":9313},null,"Aneurin Bevan LHB","Caerphilly East","85+",396,957,true,true,true,true,true]
["Caerphilly North00_02","Caerphilly North","Aneurin Bevan LHB00_02","Aneurin Bevan LHB","00_02",1180,1121,{"$f":"VLOOKUP(C137,'HB pops'!$A$2:$E$73,4,FALSE)","v":10148},{"$f":"VLOOKUP(C137,'HB pops'!$A$2:$E$73,5,FALSE)","v":9829},null,"Aneurin Bevan LHB","Caerphilly North","00_02",1180,1121,true,true,true,true,true]
["Caerphilly North03_04","Caerphilly North","Aneurin Bevan LHB03_04","Aneurin Bevan LHB","03_04",806,773,{"$f":"VLOOKUP(C138,'HB pops'!$A$2:$E$73,4,FALSE)","v":7247},{"$f":"VLOOKUP(C138,'HB pops'!$A$2:$E$73,5,FALSE)","v":6724},null,"Aneurin Bevan LHB","Caerphilly North","03_04",806,773,true,true,true,true,true]
["Caerphilly North05_14","Caerphilly North","Aneurin Bevan LHB05_14","Aneurin Bevan LHB","05_14",4017,3678,{"$f":"VLOOKUP(C139,'HB pops'!$A$2:$E$73,4,FALSE)","v":34162},{"$f":"VLOOKUP(C139,'HB pops'!$A$2:$E$73,5,FALSE)","v":32575},null,"Aneurin Bevan LHB","Caerphilly North","05_14",4017,3678,true,true,true,true,true]
["Caerphilly North15_24","Caerphilly North","Aneurin Bevan LHB15_24","Aneurin Bevan LHB","15_24",4730,4305,{"$f":"VLOOKUP(C140,'HB pops'!$A$2:$E$73,4,FALSE)","v":39331},{"$f":"VLOOKUP(C140,'HB pops'!$A$2:$E$73,5,FALSE)","v":37293},null,"Aneurin Bevan LHB","Caerphilly North","15_24",4730,4305,{"$f":"K140=D140","v":true},{"$f":"L140=B140","v":true},{"$f":"M140=E140","v":true},{"$f":"N140=F140","v":true},{"$f":"O140=G140","v":true}]
["Caerphilly North25_44","Caerphilly North","Aneurin Bevan LHB25_44","Aneurin Bevan LHB","25_44",9008,8748,{"$f":"VLOOKUP(C141,'HB pops'!$A$2:$E$73,4,FALSE)","v":76729},{"$f":"VLOOKUP(C141,'HB pops'!$A$2:$E$73,5,FALSE)","v":74824},null,"Aneurin Bevan LHB","Caerphilly North","25_44",9008,8748,true,true,true,true,true]
["Caerphilly North45_64","Caerphilly North","Aneurin Bevan LHB45_64","Aneurin Bevan LHB","45_64",9274,9244,{"$f":"VLOOKUP(C142,'HB pops'!$A$2:$E$73,4,FALSE)","v":81293},{"$f":"VLOOKUP(C142,'HB pops'!$A$2:$E$73,5,FALSE)","v":79632},null,"Aneurin Bevan LHB","Caerphilly North","45_64",9274,9244,true,true,true,true,true]
["Caerphilly North65_74","Caerphilly North","Aneurin Bevan LHB65_74","Aneurin Bevan LHB","65_74",3397,3457,{"$f":"VLOOKUP(C143,'HB pops'!$A$2:$E$73,4,FALSE)","v":28989},{"$f":"VLOOKUP(C143,'HB pops'!$A$2:$E$73,5,FALSE)","v":30334},null,"Aneurin Bevan LHB","Caerphilly North","65_74",3397,3457,true,true,true,true,true]
["Caerphilly North75_84","Caerphilly North","Aneurin Bevan LHB75_84","Aneurin Bevan LHB","75_84",1622,2075,{"$f":"VLOOKUP(C144,'HB pops'!$A$2:$E$73,4,FALSE)","v":15460},{"$f":"VLOOKUP(C144,'HB pops'!$A$2:$E$73,5,FALSE)","v":19165},null,"Aneurin Bevan LHB","Caerphilly North","75_84",1622,2075,true,true,true,true,true]
["Caerphilly North85+","Caerphilly North","Aneurin Bevan LHB85+","Aneurin Bevan LHB","85+",432,915,{"$f":"VLOOKUP(C145,'HB pops'!$A$2:$E$73,4,FALSE)","v":4468},{"$f":"VLOOKUP(C145,'HB pops'!$A$2:$E$73,5,FALSE)","v":9313},null,"Aneurin Bevan LHB","Caerphilly North","85+",432,915,true,true,true,true,true]
["Caerphilly South00_02","Caerphilly South","Aneurin Bevan LHB00_02","Aneurin Bevan LHB","00_02",980,959,{"$f":"VLOOKUP(C146,'HB pops'!$A$2:$E$73,4,FALSE)","v":10148},{"$f":"VLOOKUP(C146,'HB pops'!$A$2:$E$73,5,FALSE)","v":9829},null,"Aneurin Bevan LHB","Caerphilly South","00_02",980,959,true,true,true,true,true]
["Caerphilly South03_04","Caerphilly South","Aneurin Bevan LHB03_04","Aneurin Bevan LHB","03_04",747,666,{"$f":"VLOOKUP(C147,'HB pops'!$A$2:$E$73,4,FALSE)","v":7247},{"$f":"VLOOKUP(C147,'HB pops'!$A$2:$E$73,5,FALSE)","v":6724},null,"Aneurin Bevan LHB","Caerphilly South","03_04",747,666,true,true,true,true,true]
["Caerphilly South05_14","Caerphilly South","Aneurin Bevan LHB05_14","Aneurin Bevan LHB","05_14",3331,3098,{"$f":"VLOOKUP(C148,'HB pops'!$A$2:$E$73,4,FALSE)","v":34162},{"$f":"VLOOKUP(C148,'HB pops'!$A$2:$E$73,5,FALSE)","v":32575},null,"Aneurin Bevan LHB","Caerphilly South","05_14",3331,3098,true,true,true,true,true]
["Caerphilly South15_24","Caerphilly South","Aneurin Bevan LHB15_24","Aneurin Bevan LHB","15_24",3507,3391,{"$f":"VLOOKUP(C149,'HB pops'!$A$2:$E$73,4,FALSE)","v":39331},{"$f":"VLOOKUP(C149,'HB pops'!$A$2:$E$73,5,FALSE)","v":37293},null,"Aneurin Bevan LHB","Caerphilly South","15_24",3507,3391,true,true,true,true,true]
["Caerphilly South25_44","Caerphilly South","Aneurin Bevan LHB25_44","Aneurin Bevan LHB","25_44",7499,7310,{"$f":"VLOOKUP(C150,'HB pops'!$A$2:$E$73,4,FALSE)","v":76729},{"$f":"VLOOKUP(C150,'HB pops'!$A$2:$E$73,5,FALSE)","v":74824},null,"Aneurin Bevan LHB","Caerphilly South","25_44",7499,7310,true,true,true,true,true]
["Caerphilly South45_64","Caerphilly South","Aneurin Bevan LHB45_64","Aneurin Bevan LHB","45_64",7478,7305,{"$f":"VLOOKUP(C151,'HB pops'!$A$2:$E$73,4,FALSE)","v":81293},{"$f":"VLOOKUP(C151,'HB pops'!$A$2:$E$73,5,FALSE)","v":79632},null,"Aneurin Bevan LHB","Caerphilly South","45_64",7478,7305,true,true,true,true,true]
["Caerphilly South65_74","Caerphilly South","Aneurin Bevan LHB65_74","Aneurin Bevan LHB","65_74",2549,2769,{"$f":"VLOOKUP(C152,'HB pops'!$A$2:$E$73,4,FALSE)","v":28989},{"$f":"VLOOKUP(C152,'HB pops'!$A$2:$E$73,5,FALSE)","v":30334},null,"Aneurin Bevan LHB","Caerphilly South","65_74",2549,2769,true,true,true,true,true]
["Caerphilly South75_84","Caerphilly South","Aneurin Bevan LHB75_84","Aneurin Bevan LHB","75_84",1306,1567,{"$f":"VLOOKUP(C153,'HB pops'!$A$2:$E$73,4,FALSE)","v":15460},{"$f":"VLOOKUP(C153,'HB pops'!$A$2:$E$73,5,FALSE)","v":19165},null,"Aneurin Bevan LHB","Caerphilly South","75_84",1306,1567,true,true,true,true,true]
["Caerphilly South85+","Caerphilly South","Aneurin Bevan LHB85+","Aneurin Bevan LHB","85+",342,650,{"$f":"VLOOKUP(C154,'HB pops'!$A$2:$E$73,4,FALSE)","v":4468},{"$f":"VLOOKUP(C154,'HB pops'!$A$2:$E$73,5,FALSE)","v":9313},null,"Aneurin Bevan LHB","Caerphilly South","85+",342,650,true,true,true,true,true]
["Monmouthshire North00_02","Monmouthshire North","Aneurin Bevan LHB00_02","Aneurin Bevan LHB","00_02",633,647,{"$f":"VLOOKUP(C155,'HB pops'!$A$2:$E$73,4,FALSE)","v":10148},{"$f":"VLOOKUP(C155,'HB pops'!$A$2:$E$73,5,FALSE)","v":9829},null,"Aneurin Bevan LHB","Monmouthshire North","00_02",633,647,true,true,true,true,true]
["Monmouthshire North03_04","Monmouthshire North","Aneurin Bevan LHB03_04","Aneurin Bevan LHB","03_04",482,482,{"$f":"VLOOKUP(C156,'HB pops'!$A$2:$E$73,4,FALSE)","v":7247},{"$f":"VLOOKUP(C156,'HB pops'!$A$2:$E$73,5,FALSE)","v":6724},null,"Aneurin Bevan LHB","Monmouthshire North","03_04",482,482,true,true,true,true,true]
["Monmouthshire North05_14","Monmouthshire North","Aneurin Bevan LHB05_14","Aneurin Bevan LHB","05_14",2657,2599,{"$f":"VLOOKUP(C157,'HB pops'!$A$2:$E$73,4,FALSE)","v":34162},{"$f":"VLOOKUP(C157,'HB pops'!$A$2:$E$73,5,FALSE)","v":32575},null,"Aneurin Bevan LHB","Monmouthshire North","05_14",2657,2599,true,true,true,true,true]
["Monmouthshire North15_24","Monmouthshire North","Aneurin Bevan LHB15_24","Aneurin Bevan LHB","15_24",2969,2629,{"$f":"VLOOKUP(C158,'HB pops'!$A$2:$E$73,4,FALSE)","v":39331},{"$f":"VLOOKUP(C158,'HB pops'!$A$2:$E$73,5,FALSE)","v":37293},null,"Aneurin Bevan LHB","Monmouthshire North","15_24",2969,2629,true,true,true,true,true]
["Monmouthshire North25_44","Monmouthshire North","Aneurin Bevan LHB25_44","Aneurin Bevan LHB","25_44",5243,5229,{"$f":"VLOOKUP(C159,'HB pops'!$A$2:$E$73,4,FALSE)","v":76729},{"$f":"VLOOKUP(C159,'HB pops'!$A$2:$E$73,5,FALSE)","v":74824},null,"Aneurin Bevan LHB","Monmouthshire North","25_44",5243,5229,true,true,true,true,true]
["Monmouthshire North45_64","Monmouthshire North","Aneurin Bevan LHB45_64","Aneurin Bevan LHB","45_64",7725,7833,{"$f":"VLOOKUP(C160,'HB pops'!$A$2:$E$73,4,FALSE)","v":81293},{"$f":"VLOOKUP(C160,'HB pops'!$A$2:$E$73,5,FALSE)","v":79632},null,"Aneurin Bevan LHB","Monmouthshire North","45_64",7725,7833,true,true,true,true,true]
["Monmouthshire North65_74","Monmouthshire North","Aneurin Bevan LHB65_74","Aneurin Bevan LHB","65_74",3092,3307,{"$f":"VLOOKUP(C161,'HB pops'!$A$2:$E$73,4,FALSE)","v":28989},{"$f":"VLOOKUP(C161,'HB pops'!$A$2:$E$73,5,FALSE)","v":30334},null,"Aneurin Bevan LHB","Monmouthshire North","65_74",3092,3307,true,true,true,true,true]
["Monmouthshire North75_84","Monmouthshire North","Aneurin Bevan LHB75_84","Aneurin Bevan LHB","75_84",1740,2020,{"$f":"VLOOKUP(C162,'HB pops'!$A$2:$E$73,4,FALSE)","v":15460},{"$f":"VLOOKUP(C162,'HB pops'!$A$2:$E$73,5,FALSE)","v":19165},null,"Aneurin Bevan LHB","Monmouthshire North","75_84",1740,2020,true,true,true,true,true]
["Monmouthshire North85+","Monmouthshire North","Aneurin Bevan LHB85+","Aneurin Bevan LHB","85+",540,1141,{"$f":"VLOOKUP(C163,'HB pops'!$A$2:$E$73,4,FALSE)","v":4468},{"$f":"VLOOKUP(C163,'HB pops'!$A$2:$E$73,5,FALSE)","v":9313},null,"Aneurin Bevan LHB","Monmouthshire North","85+",540,1141,true,true,true,true,true]
["Monmouthshire South00_02","Monmouthshire South","Aneurin Bevan LHB00_02","Aneurin Bevan LHB","00_02",733,696,{"$f":"VLOOKUP(C164,'HB pops'!$A$2:$E$73,4,FALSE)","v":10148},{"$f":"VLOOKUP(C164,'HB pops'!$A$2:$E$73,5,FALSE)","v":9829},null,"Aneurin Bevan LHB","Monmouthshire South","00_02",733,696,true,true,true,true,true]
["Monmouthshire South03_04","Monmouthshire South","Aneurin Bevan LHB03_04","Aneurin Bevan LHB","03_04",576,489,{"$f":"VLOOKUP(C165,'HB pops'!$A$2:$E$73,4,FALSE)","v":7247},{"$f":"VLOOKUP(C165,'HB pops'!$A$2:$E$73,5,FALSE)","v":6724},null,"Aneurin Bevan LHB","Monmouthshire South","03_04",576,489,true,true,true,true,true]
["Monmouthshire South05_14","Monmouthshire South","Aneurin Bevan LHB05_14","Aneurin Bevan LHB","05_14",2702,2480,{"$f":"VLOOKUP(C166,'HB pops'!$A$2:$E$73,4,FALSE)","v":34162},{"$f":"VLOOKUP(C166,'HB pops'!$A$2:$E$73,5,FALSE)","v":32575},null,"Aneurin Bevan LHB","Monmouthshire South","05_14",2702,2480,true,true,true,true,true]
["Monmouthshire South15_24","Monmouthshire South","Aneurin Bevan LHB15_24","Aneurin Bevan LHB","15_24",2898,2615,{"$f":"VLOOKUP(C167,'HB pops'!$A$2:$E$73,4,FALSE)","v":39331},{"$f":"VLOOKUP(C167,'HB pops'!$A$2:$E$73,5,FALSE)","v":37293},null,"Aneurin Bevan LHB","Monmouthshire South","15_24",2898,2615,true,true,true,true,true]
["Monmouthshire South25_44","Monmouthshire South","Aneurin Bevan LHB25_44","Aneurin Bevan LHB","25_44",5461,5588,{"$f":"VLOOKUP(C168,'HB pops'!$A$2:$E$73,4,FALSE)","v":76729},{"$f":"VLOOKUP(C168,'HB pops'!$A$2:$E$73,5,FALSE)","v":74824},null,"Aneurin Bevan LHB","Monmouthshire South","25_44",5461,5588,true,true,true,true,true]
["Monmouthshire South45_64","Monmouthshire South","Aneurin Bevan LHB45_64","Aneurin Bevan LHB","45_64",6785,6738,{"$f":"VLOOKUP(C169,'HB pops'!$A$2:$E$73,4,FALSE)","v":81293},{"$f":"VLOOKUP(C169,'HB pops'!$A$2:$E$73,5,FALSE)","v":79632},null,"Aneurin Bevan LHB","Monmouthshire South","45_64",6785,6738,true,true,true,true,true]
["Monmouthshire South65_74","Monmouthshire South","Aneurin Bevan LHB65_74","Aneurin Bevan LHB","65_74",2389,2510,{"$f":"VLOOKUP(C170,'HB pops'!$A$2:$E$73,4,FALSE)","v":28989},{"$f":"VLOOKUP(C170,'HB pops'!$A$2:$E$73,5,FALSE)","v":30334},null,"Aneurin Bevan LHB","Monmouthshire South","65_74",2389,2510,true,true,true,true,true]
["Monmouthshire South75_84","Monmouthshire South","Aneurin Bevan LHB75_84","Aneurin Bevan LHB","75_84",1321,1581,{"$f":"VLOOKUP(C171,'HB pops'!$A$2:$E$73,4,FALSE)","v":15460},{"$f":"VLOOKUP(C171,'HB pops'!$A$2:$E$73,5,FALSE)","v":19165},null,"Aneurin Bevan LHB","Monmouthshire South","75_84",1321,1581,true,true,true,true,true]
["Monmouthshire South85+","Monmouthshire South","Aneurin Bevan LHB85+","Aneurin Bevan LHB","85+",383,791,{"$f":"VLOOKUP(C172,'HB pops'!$A$2:$E$73,4,FALSE)","v":4468},{"$f":"VLOOKUP(C172,'HB pops'!$A$2:$E$73,5,FALSE)","v":9313},null,"Aneurin Bevan LHB","Monmouthshire South","85+",383,791,true,true,true,true,true]
["Newport Central00_02","Newport Central","Aneurin Bevan LHB00_02","Aneurin Bevan LHB","00_02",798,772,{"$f":"VLOOKUP(C173,'HB pops'!$A$2:$E$73,4,FALSE)","v":10148},{"$f":"VLOOKUP(C173,'HB pops'!$A$2:$E$73,5,FALSE)","v":9829},null,"Aneurin Bevan LHB","Newport Central","00_02",798,772,true,true,true,true,true]
["Newport Central03_04","Newport Central","Aneurin Bevan LHB03_04","Aneurin Bevan LHB","03_04",551,545,{"$f":"VLOOKUP(C174,'HB pops'!$A$2:$E$73,4,FALSE)","v":7247},{"$f":"VLOOKUP(C174,'HB pops'!$A$2:$E$73,5,FALSE)","v":6724},null,"Aneurin Bevan LHB","Newport Central","03_04",551,545,true,true,true,true,true]
["Newport Central05_14","Newport Central","Aneurin Bevan LHB05_14","Aneurin Bevan LHB","05_14",2709,2704,{"$f":"VLOOKUP(C175,'HB pops'!$A$2:$E$73,4,FALSE)","v":34162},{"$f":"VLOOKUP(C175,'HB pops'!$A$2:$E$73,5,FALSE)","v":32575},null,"Aneurin Bevan LHB","Newport Central","05_14",2709,2704,true,true,true,true,true]
["Newport Central15_24","Newport Central","Aneurin Bevan LHB15_24","Aneurin Bevan LHB","15_24",3198,3242,{"$f":"VLOOKUP(C176,'HB pops'!$A$2:$E$73,4,FALSE)","v":39331},{"$f":"VLOOKUP(C176,'HB pops'!$A$2:$E$73,5,FALSE)","v":37293},null,"Aneurin Bevan LHB","Newport Central","15_24",3198,3242,true,true,true,true,true]
["Newport Central25_44","Newport Central","Aneurin Bevan LHB25_44","Aneurin Bevan LHB","25_44",6384,6161,{"$f":"VLOOKUP(C177,'HB pops'!$A$2:$E$73,4,FALSE)","v":76729},{"$f":"VLOOKUP(C177,'HB pops'!$A$2:$E$73,5,FALSE)","v":74824},null,"Aneurin Bevan LHB","Newport Central","25_44",6384,6161,true,true,true,true,true]
["Newport Central45_64","Newport Central","Aneurin Bevan LHB45_64","Aneurin Bevan LHB","45_64",6593,6259,{"$f":"VLOOKUP(C178,'HB pops'!$A$2:$E$73,4,FALSE)","v":81293},{"$f":"VLOOKUP(C178,'HB pops'!$A$2:$E$73,5,FALSE)","v":79632},null,"Aneurin Bevan LHB","Newport Central","45_64",6593,6259,true,true,true,true,true]
["Newport Central65_74","Newport Central","Aneurin Bevan LHB65_74","Aneurin Bevan LHB","65_74",2180,2332,{"$f":"VLOOKUP(C179,'HB pops'!$A$2:$E$73,4,FALSE)","v":28989},{"$f":"VLOOKUP(C179,'HB pops'!$A$2:$E$73,5,FALSE)","v":30334},null,"Aneurin Bevan LHB","Newport Central","65_74",2180,2332,true,true,true,true,true]
["Newport Central75_84","Newport Central","Aneurin Bevan LHB75_84","Aneurin Bevan LHB","75_84",1195,1497,{"$f":"VLOOKUP(C180,'HB pops'!$A$2:$E$73,4,FALSE)","v":15460},{"$f":"VLOOKUP(C180,'HB pops'!$A$2:$E$73,5,FALSE)","v":19165},null,"Aneurin Bevan LHB","Newport Central","75_84",1195,1497,true,true,true,true,true]
["Newport Central85+","Newport Central","Aneurin Bevan LHB85+","Aneurin Bevan LHB","85+",371,766,{"$f":"VLOOKUP(C181,'HB pops'!$A$2:$E$73,4,FALSE)","v":4468},{"$f":"VLOOKUP(C181,'HB pops'!$A$2:$E$73,5,FALSE)","v":9313},null,"Aneurin Bevan LHB","Newport Central","85+",371,766,true,true,true,true,true]
["Newport East00_02","Newport East","Aneurin Bevan LHB00_02","Aneurin Bevan LHB","00_02",896,973,{"$f":"VLOOKUP(C182,'HB pops'!$A$2:$E$73,4,FALSE)","v":10148},{"$f":"VLOOKUP(C182,'HB pops'!$A$2:$E$73,5,FALSE)","v":9829},null,"Aneurin Bevan LHB","Newport East","00_02",896,973,true,true,true,true,true]
["Newport East03_04","Newport East","Aneurin Bevan LHB03_04","Aneurin Bevan LHB","03_04",670,600,{"$f":"VLOOKUP(C183,'HB pops'!$A$2:$E$73,4,FALSE)","v":7247},{"$f":"VLOOKUP(C183,'HB pops'!$A$2:$E$73,5,FALSE)","v":6724},null,"Aneurin Bevan LHB","Newport East","03_04",670,600,true,true,true,true,true]
["Newport East05_14","Newport East","Aneurin Bevan LHB05_14","Aneurin Bevan LHB","05_14",2865,2729,{"$f":"VLOOKUP(C184,'HB pops'!$A$2:$E$73,4,FALSE)","v":34162},{"$f":"VLOOKUP(C184,'HB pops'!$A$2:$E$73,5,FALSE)","v":32575},null,"Aneurin Bevan LHB","Newport East","05_14",2865,2729,true,true,true,true,true]
["Newport East15_24","Newport East","Aneurin Bevan LHB15_24","Aneurin Bevan LHB","15_24",3392,3213,{"$f":"VLOOKUP(C185,'HB pops'!$A$2:$E$73,4,FALSE)","v":39331},{"$f":"VLOOKUP(C185,'HB pops'!$A$2:$E$73,5,FALSE)","v":37293},null,"Aneurin Bevan LHB","Newport East","15_24",3392,3213,true,true,true,true,true]
["Newport East25_44","Newport East","Aneurin Bevan LHB25_44","Aneurin Bevan LHB","25_44",6568,6110,{"$f":"VLOOKUP(C186,'HB pops'!$A$2:$E$73,4,FALSE)","v":76729},{"$f":"VLOOKUP(C186,'HB pops'!$A$2:$E$73,5,FALSE)","v":74824},null,"Aneurin Bevan LHB","Newport East","25_44",6568,6110,true,true,true,true,true]
["Newport East45_64","Newport East","Aneurin Bevan LHB45_64","Aneurin Bevan LHB","45_64",6260,5733,{"$f":"VLOOKUP(C187,'HB pops'!$A$2:$E$73,4,FALSE)","v":81293},{"$f":"VLOOKUP(C187,'HB pops'!$A$2:$E$73,5,FALSE)","v":79632},null,"Aneurin Bevan LHB","Newport East","45_64",6260,5733,true,true,true,true,true]
["Newport East65_74","Newport East","Aneurin Bevan LHB65_74","Aneurin Bevan LHB","65_74",1959,2101,{"$f":"VLOOKUP(C188,'HB pops'!$A$2:$E$73,4,FALSE)","v":28989},{"$f":"VLOOKUP(C188,'HB pops'!$A$2:$E$73,5,FALSE)","v":30334},null,"Aneurin Bevan LHB","Newport East","65_74",1959,2101,true,true,true,true,true]
["Newport East75_84","Newport East","Aneurin Bevan LHB75_84","Aneurin Bevan LHB","75_84",1267,1524,{"$f":"VLOOKUP(C189,'HB pops'!$A$2:$E$73,4,FALSE)","v":15460},{"$f":"VLOOKUP(C189,'HB pops'!$A$2:$E$73,5,FALSE)","v":19165},null,"Aneurin Bevan LHB","Newport East","75_84",1267,1524,true,true,true,true,true]
["Newport East85+","Newport East","Aneurin Bevan LHB85+","Aneurin Bevan LHB","85+",382,575,{"$f":"VLOOKUP(C190,'HB pops'!$A$2:$E$73,4,FALSE)","v":4468},{"$f":"VLOOKUP(C190,'HB pops'!$A$2:$E$73,5,FALSE)","v":9313},null,"Aneurin Bevan LHB","Newport East","85+",382,575,true,true,true,true,true]
["Newport West00_02","Newport West","Aneurin Bevan LHB00_02","Aneurin Bevan LHB","00_02",1054,995,{"$f":"VLOOKUP(C191,'HB pops'!$A$2:$E$73,4,FALSE)","v":10148},{"$f":"VLOOKUP(C191,'HB pops'!$A$2:$E$73,5,FALSE)","v":9829},null,"Aneurin Bevan LHB","Newport West","00_02",1054,995,true,true,true,true,true]
["Newport West03_04","Newport West","Aneurin Bevan LHB03_04","Aneurin Bevan LHB","03_04",715,642,{"$f":"VLOOKUP(C192,'HB pops'!$A$2:$E$73,4,FALSE)","v":7247},{"$f":"VLOOKUP(C192,'HB pops'!$A$2:$E$73,5,FALSE)","v":6724},null,"Aneurin Bevan LHB","Newport West","03_04",715,642,true,true,true,true,true]
["Newport West05_14","Newport West","Aneurin Bevan LHB05_14","Aneurin Bevan LHB","05_14",3103,2931,{"$f":"VLOOKUP(C193,'HB pops'!$A$2:$E$73,4,FALSE)","v":34162},{"$f":"VLOOKUP(C193,'HB pops'!$A$2:$E$73,5,FALSE)","v":32575},null,"Aneurin Bevan LHB","Newport West","05_14",3103,2931,true,true,true,true,true]
["Newport West15_24","Newport West","Aneurin Bevan LHB15_24","Aneurin Bevan LHB","15_24",3648,3488,{"$f":"VLOOKUP(C194,'HB pops'!$A$2:$E$73,4,FALSE)","v":39331},{"$f":"VLOOKUP(C194,'HB pops'!$A$2:$E$73,5,FALSE)","v":37293},null,"Aneurin Bevan LHB","Newport West","15_24",3648,3488,true,true,true,true,true]
[{"$f":"B195&E195","v":"Newport West25_44"},"Newport West",{"$f":"D195&E195","v":"Aneurin Bevan LHB25_44"},"Aneurin Bevan LHB","25_44",7462,6912,{"$f":"VLOOKUP(C195,'HB pops'!$A$2:$E$73,4,FALSE)","v":76729},{"$f":"VLOOKUP(C195,'HB pops'!$A$2:$E$73,5,FALSE)","v":74824},null,"Aneurin Bevan LHB","Newport West","25_44",7462,6912,true,true,true,true,true]
["Newport West45_64","Newport West","Aneurin Bevan LHB45_64","Aneurin Bevan LHB","45_64",6376,6167,{"$f":"VLOOKUP(C196,'HB pops'!$A$2:$E$73,4,FALSE)","v":81293},{"$f":"VLOOKUP(C196,'HB pops'!$A$2:$E$73,5,FALSE)","v":79632},null,"Aneurin Bevan LHB","Newport West","45_64",6376,6167,true,true,true,true,true]
["Newport West65_74","Newport West","Aneurin Bevan LHB65_74","Aneurin Bevan LHB","65_74",2242,2376,{"$f":"VLOOKUP(C197,'HB pops'!$A$2:$E$73,4,FALSE)","v":28989},{"$f":"VLOOKUP(C197,'HB pops'!$A$2:$E$73,5,FALSE)","v":30334},null,"Aneurin Bevan LHB","Newport West","65_74",2242,2376,true,true,true,true,true]
["Newport West75_84","Newport West","Aneurin Bevan LHB75_84","Aneurin Bevan LHB","75_84",1235,1564,{"$f":"VLOOKUP(C198,'HB pops'!$A$2:$E$73,4,FALSE)","v":15460},{"$f":"VLOOKUP(C198,'HB pops'!$A$2:$E$73,5,FALSE)","v":19165},null,"Aneurin Bevan LHB","Newport West","75_84",1235,1564,true,true,true,true,true]
["Newport West85+","Newport West","Aneurin Bevan LHB85+","Aneurin Bevan LHB","85+",386,861,{"$f":"VLOOKUP(C199,'HB pops'!$A$2:$E$73,4,FALSE)","v":4468},{"$f":"VLOOKUP(C199,'HB pops'!$A$2:$E$73,5,FALSE)","v":9313},null,"Aneurin Bevan LHB","Newport West","85+",386,861,true,true,true,true,true]
["Torfaen North00_02","Torfaen North","Aneurin Bevan LHB00_02","Aneurin Bevan LHB","00_02",845,855,{"$f":"VLOOKUP(C200,'HB pops'!$A$2:$E$73,4,FALSE)","v":10148},{"$f":"VLOOKUP(C200,'HB pops'!$A$2:$E$73,5,FALSE)","v":9829},null,"Aneurin Bevan LHB","Torfaen North","00_02",845,855,true,true,true,true,true]
["Torfaen North03_04","Torfaen North","Aneurin Bevan LHB03_04","Aneurin Bevan LHB","03_04",567,549,{"$f":"VLOOKUP(C201,'HB pops'!$A$2:$E$73,4,FALSE)","v":7247},{"$f":"VLOOKUP(C201,'HB pops'!$A$2:$E$73,5,FALSE)","v":6724},null,"Aneurin Bevan LHB","Torfaen North","03_04",567,549,true,true,true,true,true]
["Torfaen North05_14","Torfaen North","Aneurin Bevan LHB05_14","Aneurin Bevan LHB","05_14",2708,2559,{"$f":"VLOOKUP(C202,'HB pops'!$A$2:$E$73,4,FALSE)","v":34162},{"$f":"VLOOKUP(C202,'HB pops'!$A$2:$E$73,5,FALSE)","v":32575},null,"Aneurin Bevan LHB","Torfaen North","05_14",2708,2559,true,true,true,true,true]
["Torfaen North15_24","Torfaen North","Aneurin Bevan LHB15_24","Aneurin Bevan LHB","15_24",3178,3031,{"$f":"VLOOKUP(C203,'HB pops'!$A$2:$E$73,4,FALSE)","v":39331},{"$f":"VLOOKUP(C203,'HB pops'!$A$2:$E$73,5,FALSE)","v":37293},null,"Aneurin Bevan LHB","Torfaen North","15_24",3178,3031,true,true,true,true,true]
["Torfaen North25_44","Torfaen North","Aneurin Bevan LHB25_44","Aneurin Bevan LHB","25_44",5958,5894,{"$f":"VLOOKUP(C204,'HB pops'!$A$2:$E$73,4,FALSE)","v":76729},{"$f":"VLOOKUP(C204,'HB pops'!$A$2:$E$73,5,FALSE)","v":74824},null,"Aneurin Bevan LHB","Torfaen North","25_44",5958,5894,{"$f":"K204=D204","v":true},{"$f":"L204=B204","v":true},{"$f":"M204=E204","v":true},{"$f":"N204=F204","v":true},{"$f":"O204=G204","v":true}]
["Torfaen North45_64","Torfaen North","Aneurin Bevan LHB45_64","Aneurin Bevan LHB","45_64",6521,6569,{"$f":"VLOOKUP(C205,'HB pops'!$A$2:$E$73,4,FALSE)","v":81293},{"$f":"VLOOKUP(C205,'HB pops'!$A$2:$E$73,5,FALSE)","v":79632},null,"Aneurin Bevan LHB","Torfaen North","45_64",6521,6569,true,true,true,true,true]
["Torfaen North65_74","Torfaen North","Aneurin Bevan LHB65_74","Aneurin Bevan LHB","65_74",2547,2546,{"$f":"VLOOKUP(C206,'HB pops'!$A$2:$E$73,4,FALSE)","v":28989},{"$f":"VLOOKUP(C206,'HB pops'!$A$2:$E$73,5,FALSE)","v":30334},null,"Aneurin Bevan LHB","Torfaen North","65_74",2547,2546,true,true,true,true,true]
["Torfaen North75_84","Torfaen North","Aneurin Bevan LHB75_84","Aneurin Bevan LHB","75_84",1279,1643,{"$f":"VLOOKUP(C207,'HB pops'!$A$2:$E$73,4,FALSE)","v":15460},{"$f":"VLOOKUP(C207,'HB pops'!$A$2:$E$73,5,FALSE)","v":19165},null,"Aneurin Bevan LHB","Torfaen North","75_84",1279,1643,true,true,true,true,true]
["Torfaen North85+","Torfaen North","Aneurin Bevan LHB85+","Aneurin Bevan LHB","85+",399,837,{"$f":"VLOOKUP(C208,'HB pops'!$A$2:$E$73,4,FALSE)","v":4468},{"$f":"VLOOKUP(C208,'HB pops'!$A$2:$E$73,5,FALSE)","v":9313},null,"Aneurin Bevan LHB","Torfaen North","85+",399,837,true,true,true,true,true]
["Torfaen South00_02","Torfaen South","Aneurin Bevan LHB00_02","Aneurin Bevan LHB","00_02",765,710,{"$f":"VLOOKUP(C209,'HB pops'!$A$2:$E$73,4,FALSE)","v":10148},{"$f":"VLOOKUP(C209,'HB pops'!$A$2:$E$73,5,FALSE)","v":9829},null,"Aneurin Bevan LHB","Torfaen South","00_02",765,710,true,true,true,true,true]
["Torfaen South03_04","Torfaen South","Aneurin Bevan LHB03_04","Aneurin Bevan LHB","03_04",553,496,{"$f":"VLOOKUP(C210,'HB pops'!$A$2:$E$73,4,FALSE)","v":7247},{"$f":"VLOOKUP(C210,'HB pops'!$A$2:$E$73,5,FALSE)","v":6724},null,"Aneurin Bevan LHB","Torfaen South","03_04",553,496,true,true,true,true,true]
["Torfaen South05_14","Torfaen South","Aneurin Bevan LHB05_14","Aneurin Bevan LHB","05_14",2678,2572,{"$f":"VLOOKUP(C211,'HB pops'!$A$2:$E$73,4,FALSE)","v":34162},{"$f":"VLOOKUP(C211,'HB pops'!$A$2:$E$73,5,FALSE)","v":32575},null,"Aneurin Bevan LHB","Torfaen South","05_14",2678,2572,true,true,true,true,true]
["Torfaen South15_24","Torfaen South","Aneurin Bevan LHB15_24","Aneurin Bevan LHB","15_24",3106,2932,{"$f":"VLOOKUP(C212,'HB pops'!$A$2:$E$73,4,FALSE)","v":39331},{"$f":"VLOOKUP(C212,'HB pops'!$A$2:$E$73,5,FALSE)","v":37293},null,"Aneurin Bevan LHB","Torfaen South","15_24",3106,2932,true,true,true,true,true]
["Torfaen South25_44","Torfaen South","Aneurin Bevan LHB25_44","Aneurin Bevan LHB","25_44",5836,5763,{"$f":"VLOOKUP(C213,'HB pops'!$A$2:$E$73,4,FALSE)","v":76729},{"$f":"VLOOKUP(C213,'HB pops'!$A$2:$E$73,5,FALSE)","v":74824},null,"Aneurin Bevan LHB","Torfaen South","25_44",5836,5763,true,true,true,true,true]
["Torfaen South45_64","Torfaen South","Aneurin Bevan LHB45_64","Aneurin Bevan LHB","45_64",6294,6116,{"$f":"VLOOKUP(C214,'HB pops'!$A$2:$E$73,4,FALSE)","v":81293},{"$f":"VLOOKUP(C214,'HB pops'!$A$2:$E$73,5,FALSE)","v":79632},null,"Aneurin Bevan LHB","Torfaen South","45_64",6294,6116,true,true,true,true,true]
["Torfaen South65_74","Torfaen South","Aneurin Bevan LHB65_74","Aneurin Bevan LHB","65_74",1948,2214,{"$f":"VLOOKUP(C215,'HB pops'!$A$2:$E$73,4,FALSE)","v":28989},{"$f":"VLOOKUP(C215,'HB pops'!$A$2:$E$73,5,FALSE)","v":30334},null,"Aneurin Bevan LHB","Torfaen South","65_74",1948,2214,true,true,true,true,true]
["Torfaen South75_84","Torfaen South","Aneurin Bevan LHB75_84","Aneurin Bevan LHB","75_84",1126,1533,{"$f":"VLOOKUP(C216,'HB pops'!$A$2:$E$73,4,FALSE)","v":15460},{"$f":"VLOOKUP(C216,'HB pops'!$A$2:$E$73,5,FALSE)","v":19165},null,"Aneurin Bevan LHB","Torfaen South","75_84",1126,1533,true,true,true,true,true]
["Torfaen South85+","Torfaen South","Aneurin Bevan LHB85+","Aneurin Bevan LHB","85+",337,733,{"$f":"VLOOKUP(C217,'HB pops'!$A$2:$E$73,4,FALSE)","v":4468},{"$f":"VLOOKUP(C217,'HB pops'!$A$2:$E$73,5,FALSE)","v":9313},null,"Aneurin Bevan LHB","Torfaen South","85+",337,733,true,true,true,true,true]
["Anglesey00_02","Anglesey","Betsi Cadwaladr University LHB00_02","Betsi Cadwaladr University LHB","00_02",1056,1031,{"$f":"VLOOKUP(C218,'HB pops'!$A$2:$E$73,4,FALSE)","v":11668},{"$f":"VLOOKUP(C218,'HB pops'!$A$2:$E$73,5,FALSE)","v":11090},null,"Betsi Cadwaladr University LHB","Anglesey","00_02",1056,1031,true,true,true,true,true]
["Anglesey03_04","Anglesey","Betsi Cadwaladr University LHB03_04","Betsi Cadwaladr University LHB","03_04",750,711,{"$f":"VLOOKUP(C219,'HB pops'!$A$2:$E$73,4,FALSE)","v":7958},{"$f":"VLOOKUP(C219,'HB pops'!$A$2:$E$73,5,FALSE)","v":7695},null,"Betsi Cadwaladr University LHB","Anglesey","03_04",750,711,true,true,true,true,true]
["Anglesey05_14","Anglesey","Betsi Cadwaladr University LHB05_14","Betsi Cadwaladr University LHB","05_14",3489,3274,{"$f":"VLOOKUP(C220,'HB pops'!$A$2:$E$73,4,FALSE)","v":38681},{"$f":"VLOOKUP(C220,'HB pops'!$A$2:$E$73,5,FALSE)","v":36601},null,"Betsi Cadwaladr University LHB","Anglesey","05_14",3489,3274,true,true,true,true,true]
["Anglesey15_24","Anglesey","Betsi Cadwaladr University LHB15_24","Betsi Cadwaladr University LHB","15_24",3895,3570,{"$f":"VLOOKUP(C221,'HB pops'!$A$2:$E$73,4,FALSE)","v":44469},{"$f":"VLOOKUP(C221,'HB pops'!$A$2:$E$73,5,FALSE)","v":42171},null,"Betsi Cadwaladr University LHB","Anglesey","15_24",3895,3570,true,true,true,true,true]
["Anglesey25_44","Anglesey","Betsi Cadwaladr University LHB25_44","Betsi Cadwaladr University LHB","25_44",7559,7225,{"$f":"VLOOKUP(C222,'HB pops'!$A$2:$E$73,4,FALSE)","v":86593},{"$f":"VLOOKUP(C222,'HB pops'!$A$2:$E$73,5,FALSE)","v":83313},null,"Betsi Cadwaladr University LHB","Anglesey","25_44",7559,7225,true,true,true,true,true]
["Anglesey45_64","Anglesey","Betsi Cadwaladr University LHB45_64","Betsi Cadwaladr University LHB","45_64",9220,9087,{"$f":"VLOOKUP(C223,'HB pops'!$A$2:$E$73,4,FALSE)","v":95574},{"$f":"VLOOKUP(C223,'HB pops'!$A$2:$E$73,5,FALSE)","v":94390},null,"Betsi Cadwaladr University LHB","Anglesey","45_64",9220,9087,true,true,true,true,true]
["Anglesey65_74","Anglesey","Betsi Cadwaladr University LHB65_74","Betsi Cadwaladr University LHB","65_74",4084,4316,{"$f":"VLOOKUP(C224,'HB pops'!$A$2:$E$73,4,FALSE)","v":37994},{"$f":"VLOOKUP(C224,'HB pops'!$A$2:$E$73,5,FALSE)","v":40008},null,"Betsi Cadwaladr University LHB","Anglesey","65_74",4084,4316,true,true,true,true,true]
["Anglesey75_84","Anglesey","Betsi Cadwaladr University LHB75_84","Betsi Cadwaladr University LHB","75_84",2118,2594,{"$f":"VLOOKUP(C225,'HB pops'!$A$2:$E$73,4,FALSE)","v":20623},{"$f":"VLOOKUP(C225,'HB pops'!$A$2:$E$73,5,FALSE)","v":25717},null,"Betsi Cadwaladr University LHB","Anglesey","75_84",2118,2594,true,true,true,true,true]
["Anglesey85+","Anglesey","Betsi Cadwaladr University LHB85+","Betsi Cadwaladr University LHB","85+",634,1319,{"$f":"VLOOKUP(C226,'HB pops'!$A$2:$E$73,4,FALSE)","v":6296},{"$f":"VLOOKUP(C226,'HB pops'!$A$2:$E$73,5,FALSE)","v":13110},null,"Betsi Cadwaladr University LHB","Anglesey","85+",634,1319,true,true,true,true,true]
["Arfon00_02","Arfon","Betsi Cadwaladr University LHB00_02","Betsi Cadwaladr University LHB","00_02",1204,1095,{"$f":"VLOOKUP(C227,'HB pops'!$A$2:$E$73,4,FALSE)","v":11668},{"$f":"VLOOKUP(C227,'HB pops'!$A$2:$E$73,5,FALSE)","v":11090},null,"Betsi Cadwaladr University LHB","Arfon","00_02",1204,1095,true,true,true,true,true]
["Arfon03_04","Arfon","Betsi Cadwaladr University LHB03_04","Betsi Cadwaladr University LHB","03_04",748,747,{"$f":"VLOOKUP(C228,'HB pops'!$A$2:$E$73,4,FALSE)","v":7958},{"$f":"VLOOKUP(C228,'HB pops'!$A$2:$E$73,5,FALSE)","v":7695},null,"Betsi Cadwaladr University LHB","Arfon","03_04",748,747,true,true,true,true,true]
["Arfon05_14","Arfon","Betsi Cadwaladr University LHB05_14","Betsi Cadwaladr University LHB","05_14",3802,3573,{"$f":"VLOOKUP(C229,'HB pops'!$A$2:$E$73,4,FALSE)","v":38681},{"$f":"VLOOKUP(C229,'HB pops'!$A$2:$E$73,5,FALSE)","v":36601},null,"Betsi Cadwaladr University LHB","Arfon","05_14",3802,3573,true,true,true,true,true]
["Arfon15_24","Arfon","Betsi Cadwaladr University LHB15_24","Betsi Cadwaladr University LHB","15_24",6124,6059,{"$f":"VLOOKUP(C230,'HB pops'!$A$2:$E$73,4,FALSE)","v":44469},{"$f":"VLOOKUP(C230,'HB pops'!$A$2:$E$73,5,FALSE)","v":42171},null,"Betsi Cadwaladr University LHB","Arfon","15_24",6124,6059,true,true,true,true,true]
["Arfon25_44","Arfon","Betsi Cadwaladr University LHB25_44","Betsi Cadwaladr University LHB","25_44",9531,8496,{"$f":"VLOOKUP(C231,'HB pops'!$A$2:$E$73,4,FALSE)","v":86593},{"$f":"VLOOKUP(C231,'HB pops'!$A$2:$E$73,5,FALSE)","v":83313},null,"Betsi Cadwaladr University LHB","Arfon","25_44",9531,8496,true,true,true,true,true]
["Arfon45_64","Arfon","Betsi Cadwaladr University LHB45_64","Betsi Cadwaladr University LHB","45_64",8525,7877,{"$f":"VLOOKUP(C232,'HB pops'!$A$2:$E$73,4,FALSE)","v":95574},{"$f":"VLOOKUP(C232,'HB pops'!$A$2:$E$73,5,FALSE)","v":94390},null,"Betsi Cadwaladr University LHB","Arfon","45_64",8525,7877,true,true,true,true,true]
["Arfon65_74","Arfon","Betsi Cadwaladr University LHB65_74","Betsi Cadwaladr University LHB","65_74",2858,3027,{"$f":"VLOOKUP(C233,'HB pops'!$A$2:$E$73,4,FALSE)","v":37994},{"$f":"VLOOKUP(C233,'HB pops'!$A$2:$E$73,5,FALSE)","v":40008},null,"Betsi Cadwaladr University LHB","Arfon","65_74",2858,3027,true,true,true,true,true]
["Arfon75_84","Arfon","Betsi Cadwaladr University LHB75_84","Betsi Cadwaladr University LHB","75_84",1517,2006,{"$f":"VLOOKUP(C234,'HB pops'!$A$2:$E$73,4,FALSE)","v":20623},{"$f":"VLOOKUP(C234,'HB pops'!$A$2:$E$73,5,FALSE)","v":25717},null,"Betsi Cadwaladr University LHB","Arfon","75_84",1517,2006,true,true,true,true,true]
["Arfon85+","Arfon","Betsi Cadwaladr University LHB85+","Betsi Cadwaladr University LHB","85+",437,1098,{"$f":"VLOOKUP(C235,'HB pops'!$A$2:$E$73,4,FALSE)","v":6296},{"$f":"VLOOKUP(C235,'HB pops'!$A$2:$E$73,5,FALSE)","v":13110},null,"Betsi Cadwaladr University LHB","Arfon","85+",437,1098,true,true,true,true,true]
["Central & South Denbighshire00_02","Central & South Denbighshire","Betsi Cadwaladr University LHB00_02","Betsi Cadwaladr University LHB","00_02",581,593,{"$f":"VLOOKUP(C236,'HB pops'!$A$2:$E$73,4,FALSE)","v":11668},{"$f":"VLOOKUP(C236,'HB pops'!$A$2:$E$73,5,FALSE)","v":11090},null,"Betsi Cadwaladr University LHB","Central & South Denbighshire","00_02",581,593,true,true,true,true,true]
["Central & South Denbighshire03_04","Central & South Denbighshire","Betsi Cadwaladr University LHB03_04","Betsi Cadwaladr University LHB","03_04",457,408,{"$f":"VLOOKUP(C237,'HB pops'!$A$2:$E$73,4,FALSE)","v":7958},{"$f":"VLOOKUP(C237,'HB pops'!$A$2:$E$73,5,FALSE)","v":7695},null,"Betsi Cadwaladr University LHB","Central & South Denbighshire","03_04",457,408,true,true,true,true,true]
["Central & South Denbighshire05_14","Central & South Denbighshire","Betsi Cadwaladr University LHB05_14","Betsi Cadwaladr University LHB","05_14",2304,2168,{"$f":"VLOOKUP(C238,'HB pops'!$A$2:$E$73,4,FALSE)","v":38681},{"$f":"VLOOKUP(C238,'HB pops'!$A$2:$E$73,5,FALSE)","v":36601},null,"Betsi Cadwaladr University LHB","Central & South Denbighshire","05_14",2304,2168,true,true,true,true,true]
["Central & South Denbighshire15_24","Central & South Denbighshire","Betsi Cadwaladr University LHB15_24","Betsi Cadwaladr University LHB","15_24",2570,2339,{"$f":"VLOOKUP(C239,'HB pops'!$A$2:$E$73,4,FALSE)","v":44469},{"$f":"VLOOKUP(C239,'HB pops'!$A$2:$E$73,5,FALSE)","v":42171},null,"Betsi Cadwaladr University LHB","Central & South Denbighshire","15_24",2570,2339,true,true,true,true,true]
["Central & South Denbighshire25_44","Central & South Denbighshire","Betsi Cadwaladr University LHB25_44","Betsi Cadwaladr University LHB","25_44",4693,4633,{"$f":"VLOOKUP(C240,'HB pops'!$A$2:$E$73,4,FALSE)","v":86593},{"$f":"VLOOKUP(C240,'HB pops'!$A$2:$E$73,5,FALSE)","v":83313},null,"Betsi Cadwaladr University LHB","Central & South Denbighshire","25_44",4693,4633,true,true,true,true,true]
["Central & South Denbighshire45_64","Central & South Denbighshire","Betsi Cadwaladr University LHB45_64","Betsi Cadwaladr University LHB","45_64",6228,6286,{"$f":"VLOOKUP(C241,'HB pops'!$A$2:$E$73,4,FALSE)","v":95574},{"$f":"VLOOKUP(C241,'HB pops'!$A$2:$E$73,5,FALSE)","v":94390},null,"Betsi Cadwaladr University LHB","Central & South Denbighshire","45_64",6228,6286,true,true,true,true,true]
["Central & South Denbighshire65_74","Central & South Denbighshire","Betsi Cadwaladr University LHB65_74","Betsi Cadwaladr University LHB","65_74",2450,2459,{"$f":"VLOOKUP(C242,'HB pops'!$A$2:$E$73,4,FALSE)","v":37994},{"$f":"VLOOKUP(C242,'HB pops'!$A$2:$E$73,5,FALSE)","v":40008},null,"Betsi Cadwaladr University LHB","Central & South Denbighshire","65_74",2450,2459,true,true,true,true,true]
["Central & South Denbighshire75_84","Central & South Denbighshire","Betsi Cadwaladr University LHB75_84","Betsi Cadwaladr University LHB","75_84",1348,1522,{"$f":"VLOOKUP(C243,'HB pops'!$A$2:$E$73,4,FALSE)","v":20623},{"$f":"VLOOKUP(C243,'HB pops'!$A$2:$E$73,5,FALSE)","v":25717},null,"Betsi Cadwaladr University LHB","Central & South Denbighshire","75_84",1348,1522,true,true,true,true,true]
["Central & South Denbighshire85+","Central & South Denbighshire","Betsi Cadwaladr University LHB85+","Betsi Cadwaladr University LHB","85+",409,774,{"$f":"VLOOKUP(C244,'HB pops'!$A$2:$E$73,4,FALSE)","v":6296},{"$f":"VLOOKUP(C244,'HB pops'!$A$2:$E$73,5,FALSE)","v":13110},null,"Betsi Cadwaladr University LHB","Central & South Denbighshire","85+",409,774,true,true,true,true,true]
["Conwy East00_02","Conwy East","Betsi Cadwaladr University LHB00_02","Betsi Cadwaladr University LHB","00_02",835,786,{"$f":"VLOOKUP(C245,'HB pops'!$A$2:$E$73,4,FALSE)","v":11668},{"$f":"VLOOKUP(C245,'HB pops'!$A$2:$E$73,5,FALSE)","v":11090},null,"Betsi Cadwaladr University LHB","Conwy East","00_02",835,786,true,true,true,true,true]
["Conwy East03_04","Conwy East","Betsi Cadwaladr University LHB03_04","Betsi Cadwaladr University LHB","03_04",560,583,{"$f":"VLOOKUP(C246,'HB pops'!$A$2:$E$73,4,FALSE)","v":7958},{"$f":"VLOOKUP(C246,'HB pops'!$A$2:$E$73,5,FALSE)","v":7695},null,"Betsi Cadwaladr University LHB","Conwy East","03_04",560,583,true,true,true,true,true]
["Conwy East05_14","Conwy East","Betsi Cadwaladr University LHB05_14","Betsi Cadwaladr University LHB","05_14",2827,2700,{"$f":"VLOOKUP(C247,'HB pops'!$A$2:$E$73,4,FALSE)","v":38681},{"$f":"VLOOKUP(C247,'HB pops'!$A$2:$E$73,5,FALSE)","v":36601},null,"Betsi Cadwaladr University LHB","Conwy East","05_14",2827,2700,true,true,true,true,true]
["Conwy East15_24","Conwy East","Betsi Cadwaladr University LHB15_24","Betsi Cadwaladr University LHB","15_24",3398,3054,{"$f":"VLOOKUP(C248,'HB pops'!$A$2:$E$73,4,FALSE)","v":44469},{"$f":"VLOOKUP(C248,'HB pops'!$A$2:$E$73,5,FALSE)","v":42171},null,"Betsi Cadwaladr University LHB","Conwy East","15_24",3398,3054,true,true,true,true,true]
["Conwy East25_44","Conwy East","Betsi Cadwaladr University LHB25_44","Betsi Cadwaladr University LHB","25_44",5833,5839,{"$f":"VLOOKUP(C249,'HB pops'!$A$2:$E$73,4,FALSE)","v":86593},{"$f":"VLOOKUP(C249,'HB pops'!$A$2:$E$73,5,FALSE)","v":83313},null,"Betsi Cadwaladr University LHB","Conwy East","25_44",5833,5839,true,true,true,true,true]
["Conwy East45_64","Conwy East","Betsi Cadwaladr University LHB45_64","Betsi Cadwaladr University LHB","45_64",7257,7371,{"$f":"VLOOKUP(C250,'HB pops'!$A$2:$E$73,4,FALSE)","v":95574},{"$f":"VLOOKUP(C250,'HB pops'!$A$2:$E$73,5,FALSE)","v":94390},null,"Betsi Cadwaladr University LHB","Conwy East","45_64",7257,7371,true,true,true,true,true]
["Conwy East65_74","Conwy East","Betsi Cadwaladr University LHB65_74","Betsi Cadwaladr University LHB","65_74",3148,3437,{"$f":"VLOOKUP(C251,'HB pops'!$A$2:$E$73,4,FALSE)","v":37994},{"$f":"VLOOKUP(C251,'HB pops'!$A$2:$E$73,5,FALSE)","v":40008},null,"Betsi Cadwaladr University LHB","Conwy East","65_74",3148,3437,true,true,true,true,true]
["Conwy East75_84","Conwy East","Betsi Cadwaladr University LHB75_84","Betsi Cadwaladr University LHB","75_84",1945,2457,{"$f":"VLOOKUP(C252,'HB pops'!$A$2:$E$73,4,FALSE)","v":20623},{"$f":"VLOOKUP(C252,'HB pops'!$A$2:$E$73,5,FALSE)","v":25717},null,"Betsi Cadwaladr University LHB","Conwy East","75_84",1945,2457,true,true,true,true,true]
["Conwy East85+","Conwy East","Betsi Cadwaladr University LHB85+","Betsi Cadwaladr University LHB","85+",676,1324,{"$f":"VLOOKUP(C253,'HB pops'!$A$2:$E$73,4,FALSE)","v":6296},{"$f":"VLOOKUP(C253,'HB pops'!$A$2:$E$73,5,FALSE)","v":13110},null,"Betsi Cadwaladr University LHB","Conwy East","85+",676,1324,true,true,true,true,true]
["Conwy West00_02","Conwy West","Betsi Cadwaladr University LHB00_02","Betsi Cadwaladr University LHB","00_02",925,872,{"$f":"VLOOKUP(C254,'HB pops'!$A$2:$E$73,4,FALSE)","v":11668},{"$f":"VLOOKUP(C254,'HB pops'!$A$2:$E$73,5,FALSE)","v":11090},null,"Betsi Cadwaladr University LHB","Conwy West","00_02",925,872,true,true,true,true,true]
["Conwy West03_04","Conwy West","Betsi Cadwaladr University LHB03_04","Betsi Cadwaladr University LHB","03_04",581,604,{"$f":"VLOOKUP(C255,'HB pops'!$A$2:$E$73,4,FALSE)","v":7958},{"$f":"VLOOKUP(C255,'HB pops'!$A$2:$E$73,5,FALSE)","v":7695},null,"Betsi Cadwaladr University LHB","Conwy West","03_04",581,604,true,true,true,true,true]
["Conwy West05_14","Conwy West","Betsi Cadwaladr University LHB05_14","Betsi Cadwaladr University LHB","05_14",3198,3010,{"$f":"VLOOKUP(C256,'HB pops'!$A$2:$E$73,4,FALSE)","v":38681},{"$f":"VLOOKUP(C256,'HB pops'!$A$2:$E$73,5,FALSE)","v":36601},null,"Betsi Cadwaladr University LHB","Conwy West","05_14",3198,3010,true,true,true,true,true]
["Conwy West15_24","Conwy West","Betsi Cadwaladr University LHB15_24","Betsi Cadwaladr University LHB","15_24",3615,3424,{"$f":"VLOOKUP(C257,'HB pops'!$A$2:$E$73,4,FALSE)","v":44469},{"$f":"VLOOKUP(C257,'HB pops'!$A$2:$E$73,5,FALSE)","v":42171},null,"Betsi Cadwaladr University LHB","Conwy West","15_24",3615,3424,true,true,true,true,true]
["Conwy West25_44","Conwy West","Betsi Cadwaladr University LHB25_44","Betsi Cadwaladr University LHB","25_44",7103,6867,{"$f":"VLOOKUP(C258,'HB pops'!$A$2:$E$73,4,FALSE)","v":86593},{"$f":"VLOOKUP(C258,'HB pops'!$A$2:$E$73,5,FALSE)","v":83313},null,"Betsi Cadwaladr University LHB","Conwy West","25_44",7103,6867,true,true,true,true,true]
[{"$f":"B259&E259","v":"Conwy West45_64"},"Conwy West",{"$f":"D259&E259","v":"Betsi Cadwaladr University LHB45_64"},"Betsi Cadwaladr University LHB","45_64",8703,8816,{"$f":"VLOOKUP(C259,'HB pops'!$A$2:$E$73,4,FALSE)","v":95574},{"$f":"VLOOKUP(C259,'HB pops'!$A$2:$E$73,5,FALSE)","v":94390},null,"Betsi Cadwaladr University LHB","Conwy West","45_64",8703,8816,true,true,true,true,true]
["Conwy West65_74","Conwy West","Betsi Cadwaladr University LHB65_74","Betsi Cadwaladr University LHB","65_74",3666,3959,{"$f":"VLOOKUP(C260,'HB pops'!$A$2:$E$73,4,FALSE)","v":37994},{"$f":"VLOOKUP(C260,'HB pops'!$A$2:$E$73,5,FALSE)","v":40008},null,"Betsi Cadwaladr University LHB","Conwy West","65_74",3666,3959,true,true,true,true,true]
["Conwy West75_84","Conwy West","Betsi Cadwaladr University LHB75_84","Betsi Cadwaladr University LHB","75_84",2280,2857,{"$f":"VLOOKUP(C261,'HB pops'!$A$2:$E$73,4,FALSE)","v":20623},{"$f":"VLOOKUP(C261,'HB pops'!$A$2:$E$73,5,FALSE)","v":25717},null,"Betsi Cadwaladr University LHB","Conwy West","75_84",2280,2857,true,true,true,true,true]
["Conwy West85+","Conwy West","Betsi Cadwaladr University LHB85+","Betsi Cadwaladr University LHB","85+",741,1510,{"$f":"VLOOKUP(C262,'HB pops'!$A$2:$E$73,4,FALSE)","v":6296},{"$f":"VLOOKUP(C262,'HB pops'!$A$2:$E$73,5,FALSE)","v":13110},null,"Betsi Cadwaladr University LHB","Conwy West","85+",741,1510,true,true,true,true,true]
["Deeside, Hawarden & Saltney00_02","Deeside, Hawarden & Saltney","Betsi Cadwaladr University LHB00_02","Betsi Cadwaladr University LHB","00_02",1125,988,{"$f":"VLOOKUP(C263,'HB pops'!$A$2:$E$73,4,FALSE)","v":11668},{"$f":"VLOOKUP(C263,'HB pops'!$A$2:$E$73,5,FALSE)","v":11090},null,"Betsi Cadwaladr University LHB","Deeside, Hawarden & Saltney","00_02",1125,988,true,true,true,true,true]
["Deeside, Hawarden & Saltney03_04","Deeside, Hawarden & Saltney","Betsi Cadwaladr University LHB03_04","Betsi Cadwaladr University LHB","03_04",763,716,{"$f":"VLOOKUP(C264,'HB pops'!$A$2:$E$73,4,FALSE)","v":7958},{"$f":"VLOOKUP(C264,'HB pops'!$A$2:$E$73,5,FALSE)","v":7695},null,"Betsi Cadwaladr University LHB","Deeside, Hawarden & Saltney","03_04",763,716,true,true,true,true,true]
["Deeside, Hawarden & Saltney05_14","Deeside, Hawarden & Saltney","Betsi Cadwaladr University LHB05_14","Betsi Cadwaladr University LHB","05_14",3505,3404,{"$f":"VLOOKUP(C265,'HB pops'!$A$2:$E$73,4,FALSE)","v":38681},{"$f":"VLOOKUP(C265,'HB pops'!$A$2:$E$73,5,FALSE)","v":36601},null,"Betsi Cadwaladr University LHB","Deeside, Hawarden & Saltney","05_14",3505,3404,true,true,true,true,true]
["Deeside, Hawarden & Saltney15_24","Deeside, Hawarden & Saltney","Betsi Cadwaladr University LHB15_24","Betsi Cadwaladr University LHB","15_24",3765,3703,{"$f":"VLOOKUP(C266,'HB pops'!$A$2:$E$73,4,FALSE)","v":44469},{"$f":"VLOOKUP(C266,'HB pops'!$A$2:$E$73,5,FALSE)","v":42171},null,"Betsi Cadwaladr University LHB","Deeside, Hawarden & Saltney","15_24",3765,3703,true,true,true,true,true]
["Deeside, Hawarden & Saltney25_44","Deeside, Hawarden & Saltney","Betsi Cadwaladr University LHB25_44","Betsi Cadwaladr University LHB","25_44",8349,8165,{"$f":"VLOOKUP(C267,'HB pops'!$A$2:$E$73,4,FALSE)","v":86593},{"$f":"VLOOKUP(C267,'HB pops'!$A$2:$E$73,5,FALSE)","v":83313},null,"Betsi Cadwaladr University LHB","Deeside, Hawarden & Saltney","25_44",8349,8165,true,true,true,true,true]
["Deeside, Hawarden & Saltney45_64","Deeside, Hawarden & Saltney","Betsi Cadwaladr University LHB45_64","Betsi Cadwaladr University LHB","45_64",8185,7970,{"$f":"VLOOKUP(C268,'HB pops'!$A$2:$E$73,4,FALSE)","v":95574},{"$f":"VLOOKUP(C268,'HB pops'!$A$2:$E$73,5,FALSE)","v":94390},null,"Betsi Cadwaladr University LHB","Deeside, Hawarden & Saltney","45_64",8185,7970,{"$f":"K268=D268","v":true},{"$f":"L268=B268","v":true},{"$f":"M268=E268","v":true},{"$f":"N268=F268","v":true},{"$f":"O268=G268","v":true}]
["Deeside, Hawarden & Saltney65_74","Deeside, Hawarden & Saltney","Betsi Cadwaladr University LHB65_74","Betsi Cadwaladr University LHB","65_74",2868,3126,{"$f":"VLOOKUP(C269,'HB pops'!$A$2:$E$73,4,FALSE)","v":37994},{"$f":"VLOOKUP(C269,'HB pops'!$A$2:$E$73,5,FALSE)","v":40008},null,"Betsi Cadwaladr University LHB","Deeside, Hawarden & Saltney","65_74",2868,3126,true,true,true,true,true]
["Deeside, Hawarden & Saltney75_84","Deeside, Hawarden & Saltney","Betsi Cadwaladr University LHB75_84","Betsi Cadwaladr University LHB","75_84",1504,1734,{"$f":"VLOOKUP(C270,'HB pops'!$A$2:$E$73,4,FALSE)","v":20623},{"$f":"VLOOKUP(C270,'HB pops'!$A$2:$E$73,5,FALSE)","v":25717},null,"Betsi Cadwaladr University LHB","Deeside, Hawarden & Saltney","75_84",1504,1734,true,true,true,true,true]
["Deeside, Hawarden & Saltney85+","Deeside, Hawarden & Saltney","Betsi Cadwaladr University LHB85+","Betsi Cadwaladr University LHB","85+",400,808,{"$f":"VLOOKUP(C271,'HB pops'!$A$2:$E$73,4,FALSE)","v":6296},{"$f":"VLOOKUP(C271,'HB pops'!$A$2:$E$73,5,FALSE)","v":13110},null,"Betsi Cadwaladr University LHB","Deeside, Hawarden & Saltney","85+",400,808,true,true,true,true,true]
["Dwyfor00_02","Dwyfor","Betsi Cadwaladr University LHB00_02","Betsi Cadwaladr University LHB","00_02",395,367,{"$f":"VLOOKUP(C272,'HB pops'!$A$2:$E$73,4,FALSE)","v":11668},{"$f":"VLOOKUP(C272,'HB pops'!$A$2:$E$73,5,FALSE)","v":11090},null,"Betsi Cadwaladr University LHB","Dwyfor","00_02",395,367,true,true,true,true,true]
["Dwyfor03_04","Dwyfor","Betsi Cadwaladr University LHB03_04","Betsi Cadwaladr University LHB","03_04",271,251,{"$f":"VLOOKUP(C273,'HB pops'!$A$2:$E$73,4,FALSE)","v":7958},{"$f":"VLOOKUP(C273,'HB pops'!$A$2:$E$73,5,FALSE)","v":7695},null,"Betsi Cadwaladr University LHB","Dwyfor","03_04",271,251,true,true,true,true,true]
["Dwyfor05_14","Dwyfor","Betsi Cadwaladr University LHB05_14","Betsi Cadwaladr University LHB","05_14",1340,1256,{"$f":"VLOOKUP(C274,'HB pops'!$A$2:$E$73,4,FALSE)","v":38681},{"$f":"VLOOKUP(C274,'HB pops'!$A$2:$E$73,5,FALSE)","v":36601},null,"Betsi Cadwaladr University LHB","Dwyfor","05_14",1340,1256,true,true,true,true,true]
["Dwyfor15_24","Dwyfor","Betsi Cadwaladr University LHB15_24","Betsi Cadwaladr University LHB","15_24",1378,1351,{"$f":"VLOOKUP(C275,'HB pops'!$A$2:$E$73,4,FALSE)","v":44469},{"$f":"VLOOKUP(C275,'HB pops'!$A$2:$E$73,5,FALSE)","v":42171},null,"Betsi Cadwaladr University LHB","Dwyfor","15_24",1378,1351,true,true,true,true,true]
["Dwyfor25_44","Dwyfor","Betsi Cadwaladr University LHB25_44","Betsi Cadwaladr University LHB","25_44",2836,2594,{"$f":"VLOOKUP(C276,'HB pops'!$A$2:$E$73,4,FALSE)","v":86593},{"$f":"VLOOKUP(C276,'HB pops'!$A$2:$E$73,5,FALSE)","v":83313},null,"Betsi Cadwaladr University LHB","Dwyfor","25_44",2836,2594,true,true,true,true,true]
["Dwyfor45_64","Dwyfor","Betsi Cadwaladr University LHB45_64","Betsi Cadwaladr University LHB","45_64",3385,3309,{"$f":"VLOOKUP(C277,'HB pops'!$A$2:$E$73,4,FALSE)","v":95574},{"$f":"VLOOKUP(C277,'HB pops'!$A$2:$E$73,5,FALSE)","v":94390},null,"Betsi Cadwaladr University LHB","Dwyfor","45_64",3385,3309,true,true,true,true,true]
["Dwyfor65_74","Dwyfor","Betsi Cadwaladr University LHB65_74","Betsi Cadwaladr University LHB","65_74",1632,1665,{"$f":"VLOOKUP(C278,'HB pops'!$A$2:$E$73,4,FALSE)","v":37994},{"$f":"VLOOKUP(C278,'HB pops'!$A$2:$E$73,5,FALSE)","v":40008},null,"Betsi Cadwaladr University LHB","Dwyfor","65_74",1632,1665,true,true,true,true,true]
["Dwyfor75_84","Dwyfor","Betsi Cadwaladr University LHB75_84","Betsi Cadwaladr University LHB","75_84",900,1206,{"$f":"VLOOKUP(C279,'HB pops'!$A$2:$E$73,4,FALSE)","v":20623},{"$f":"VLOOKUP(C279,'HB pops'!$A$2:$E$73,5,FALSE)","v":25717},null,"Betsi Cadwaladr University LHB","Dwyfor","75_84",900,1206,true,true,true,true,true]
["Dwyfor85+","Dwyfor","Betsi Cadwaladr University LHB85+","Betsi Cadwaladr University LHB","85+",348,697,{"$f":"VLOOKUP(C280,'HB pops'!$A$2:$E$73,4,FALSE)","v":6296},{"$f":"VLOOKUP(C280,'HB pops'!$A$2:$E$73,5,FALSE)","v":13110},null,"Betsi Cadwaladr University LHB","Dwyfor","85+",348,697,true,true,true,true,true]
["Holywell & Flint00_02","Holywell & Flint","Betsi Cadwaladr University LHB00_02","Betsi Cadwaladr University LHB","00_02",685,668,{"$f":"VLOOKUP(C281,'HB pops'!$A$2:$E$73,4,FALSE)","v":11668},{"$f":"VLOOKUP(C281,'HB pops'!$A$2:$E$73,5,FALSE)","v":11090},null,"Betsi Cadwaladr University LHB","Holywell & Flint","00_02",685,668,true,true,true,true,true]
["Holywell & Flint03_04","Holywell & Flint","Betsi Cadwaladr University LHB03_04","Betsi Cadwaladr University LHB","03_04",456,455,{"$f":"VLOOKUP(C282,'HB pops'!$A$2:$E$73,4,FALSE)","v":7958},{"$f":"VLOOKUP(C282,'HB pops'!$A$2:$E$73,5,FALSE)","v":7695},null,"Betsi Cadwaladr University LHB","Holywell & Flint","03_04",456,455,true,true,true,true,true]
["Holywell & Flint05_14","Holywell & Flint","Betsi Cadwaladr University LHB05_14","Betsi Cadwaladr University LHB","05_14",2279,2149,{"$f":"VLOOKUP(C283,'HB pops'!$A$2:$E$73,4,FALSE)","v":38681},{"$f":"VLOOKUP(C283,'HB pops'!$A$2:$E$73,5,FALSE)","v":36601},null,"Betsi Cadwaladr University LHB","Holywell & Flint","05_14",2279,2149,true,true,true,true,true]
["Holywell & Flint15_24","Holywell & Flint","Betsi Cadwaladr University LHB15_24","Betsi Cadwaladr University LHB","15_24",2433,2274,{"$f":"VLOOKUP(C284,'HB pops'!$A$2:$E$73,4,FALSE)","v":44469},{"$f":"VLOOKUP(C284,'HB pops'!$A$2:$E$73,5,FALSE)","v":42171},null,"Betsi Cadwaladr University LHB","Holywell & Flint","15_24",2433,2274,true,true,true,true,true]
["Holywell & Flint25_44","Holywell & Flint","Betsi Cadwaladr University LHB25_44","Betsi Cadwaladr University LHB","25_44",4961,4787,{"$f":"VLOOKUP(C285,'HB pops'!$A$2:$E$73,4,FALSE)","v":86593},{"$f":"VLOOKUP(C285,'HB pops'!$A$2:$E$73,5,FALSE)","v":83313},null,"Betsi Cadwaladr University LHB","Holywell & Flint","25_44",4961,4787,true,true,true,true,true]
["Holywell & Flint45_64","Holywell & Flint","Betsi Cadwaladr University LHB45_64","Betsi Cadwaladr University LHB","45_64",5509,5439,{"$f":"VLOOKUP(C286,'HB pops'!$A$2:$E$73,4,FALSE)","v":95574},{"$f":"VLOOKUP(C286,'HB pops'!$A$2:$E$73,5,FALSE)","v":94390},null,"Betsi Cadwaladr University LHB","Holywell & Flint","45_64",5509,5439,true,true,true,true,true]
["Holywell & Flint65_74","Holywell & Flint","Betsi Cadwaladr University LHB65_74","Betsi Cadwaladr University LHB","65_74",1967,1992,{"$f":"VLOOKUP(C287,'HB pops'!$A$2:$E$73,4,FALSE)","v":37994},{"$f":"VLOOKUP(C287,'HB pops'!$A$2:$E$73,5,FALSE)","v":40008},null,"Betsi Cadwaladr University LHB","Holywell & Flint","65_74",1967,1992,true,true,true,true,true]
["Holywell & Flint75_84","Holywell & Flint","Betsi Cadwaladr University LHB75_84","Betsi Cadwaladr University LHB","75_84",964,1217,{"$f":"VLOOKUP(C288,'HB pops'!$A$2:$E$73,4,FALSE)","v":20623},{"$f":"VLOOKUP(C288,'HB pops'!$A$2:$E$73,5,FALSE)","v":25717},null,"Betsi Cadwaladr University LHB","Holywell & Flint","75_84",964,1217,true,true,true,true,true]
["Holywell & Flint85+","Holywell & Flint","Betsi Cadwaladr University LHB85+","Betsi Cadwaladr University LHB","85+",260,568,{"$f":"VLOOKUP(C289,'HB pops'!$A$2:$E$73,4,FALSE)","v":6296},{"$f":"VLOOKUP(C289,'HB pops'!$A$2:$E$73,5,FALSE)","v":13110},null,"Betsi Cadwaladr University LHB","Holywell & Flint","85+",260,568,true,true,true,true,true]
["Meirionnydd00_02","Meirionnydd","Betsi Cadwaladr University LHB00_02","Betsi Cadwaladr University LHB","00_02",490,460,{"$f":"VLOOKUP(C290,'HB pops'!$A$2:$E$73,4,FALSE)","v":11668},{"$f":"VLOOKUP(C290,'HB pops'!$A$2:$E$73,5,FALSE)","v":11090},null,"Betsi Cadwaladr University LHB","Meirionnydd","00_02",490,460,true,true,true,true,true]
["Meirionnydd03_04","Meirionnydd","Betsi Cadwaladr University LHB03_04","Betsi Cadwaladr University LHB","03_04",315,294,{"$f":"VLOOKUP(C291,'HB pops'!$A$2:$E$73,4,FALSE)","v":7958},{"$f":"VLOOKUP(C291,'HB pops'!$A$2:$E$73,5,FALSE)","v":7695},null,"Betsi Cadwaladr University LHB","Meirionnydd","03_04",315,294,true,true,true,true,true]
["Meirionnydd05_14","Meirionnydd","Betsi Cadwaladr University LHB05_14","Betsi Cadwaladr University LHB","05_14",1563,1505,{"$f":"VLOOKUP(C292,'HB pops'!$A$2:$E$73,4,FALSE)","v":38681},{"$f":"VLOOKUP(C292,'HB pops'!$A$2:$E$73,5,FALSE)","v":36601},null,"Betsi Cadwaladr University LHB","Meirionnydd","05_14",1563,1505,true,true,true,true,true]
["Meirionnydd15_24","Meirionnydd","Betsi Cadwaladr University LHB15_24","Betsi Cadwaladr University LHB","15_24",1882,1692,{"$f":"VLOOKUP(C293,'HB pops'!$A$2:$E$73,4,FALSE)","v":44469},{"$f":"VLOOKUP(C293,'HB pops'!$A$2:$E$73,5,FALSE)","v":42171},null,"Betsi Cadwaladr University LHB","Meirionnydd","15_24",1882,1692,true,true,true,true,true]
["Meirionnydd25_44","Meirionnydd","Betsi Cadwaladr University LHB25_44","Betsi Cadwaladr University LHB","25_44",3292,3144,{"$f":"VLOOKUP(C294,'HB pops'!$A$2:$E$73,4,FALSE)","v":86593},{"$f":"VLOOKUP(C294,'HB pops'!$A$2:$E$73,5,FALSE)","v":83313},null,"Betsi Cadwaladr University LHB","Meirionnydd","25_44",3292,3144,true,true,true,true,true]
["Meirionnydd45_64","Meirionnydd","Betsi Cadwaladr University LHB45_64","Betsi Cadwaladr University LHB","45_64",4589,4554,{"$f":"VLOOKUP(C295,'HB pops'!$A$2:$E$73,4,FALSE)","v":95574},{"$f":"VLOOKUP(C295,'HB pops'!$A$2:$E$73,5,FALSE)","v":94390},null,"Betsi Cadwaladr University LHB","Meirionnydd","45_64",4589,4554,true,true,true,true,true]
["Meirionnydd65_74","Meirionnydd","Betsi Cadwaladr University LHB65_74","Betsi Cadwaladr University LHB","65_74",2151,2229,{"$f":"VLOOKUP(C296,'HB pops'!$A$2:$E$73,4,FALSE)","v":37994},{"$f":"VLOOKUP(C296,'HB pops'!$A$2:$E$73,5,FALSE)","v":40008},null,"Betsi Cadwaladr University LHB","Meirionnydd","65_74",2151,2229,true,true,true,true,true]
["Meirionnydd75_84","Meirionnydd","Betsi Cadwaladr University LHB75_84","Betsi Cadwaladr University LHB","75_84",1254,1524,{"$f":"VLOOKUP(C297,'HB pops'!$A$2:$E$73,4,FALSE)","v":20623},{"$f":"VLOOKUP(C297,'HB pops'!$A$2:$E$73,5,FALSE)","v":25717},null,"Betsi Cadwaladr University LHB","Meirionnydd","75_84",1254,1524,true,true,true,true,true]
["Meirionnydd85+","Meirionnydd","Betsi Cadwaladr University LHB85+","Betsi Cadwaladr University LHB","85+",374,780,{"$f":"VLOOKUP(C298,'HB pops'!$A$2:$E$73,4,FALSE)","v":6296},{"$f":"VLOOKUP(C298,'HB pops'!$A$2:$E$73,5,FALSE)","v":13110},null,"Betsi Cadwaladr University LHB","Meirionnydd","85+",374,780,true,true,true,true,true]
["Mold, Buckley & Caergwle00_02","Mold, Buckley & Caergwle","Betsi Cadwaladr University LHB00_02","Betsi Cadwaladr University LHB","00_02",722,691,{"$f":"VLOOKUP(C299,'HB pops'!$A$2:$E$73,4,FALSE)","v":11668},{"$f":"VLOOKUP(C299,'HB pops'!$A$2:$E$73,5,FALSE)","v":11090},null,"Betsi Cadwaladr University LHB","Mold, Buckley & Caergwle","00_02",722,691,true,true,true,true,true]
["Mold, Buckley & Caergwle03_04","Mold, Buckley & Caergwle","Betsi Cadwaladr University LHB03_04","Betsi Cadwaladr University LHB","03_04",550,498,{"$f":"VLOOKUP(C300,'HB pops'!$A$2:$E$73,4,FALSE)","v":7958},{"$f":"VLOOKUP(C300,'HB pops'!$A$2:$E$73,5,FALSE)","v":7695},null,"Betsi Cadwaladr University LHB","Mold, Buckley & Caergwle","03_04",550,498,true,true,true,true,true]
["Mold, Buckley & Caergwle05_14","Mold, Buckley & Caergwle","Betsi Cadwaladr University LHB05_14","Betsi Cadwaladr University LHB","05_14",2656,2567,{"$f":"VLOOKUP(C301,'HB pops'!$A$2:$E$73,4,FALSE)","v":38681},{"$f":"VLOOKUP(C301,'HB pops'!$A$2:$E$73,5,FALSE)","v":36601},null,"Betsi Cadwaladr University LHB","Mold, Buckley & Caergwle","05_14",2656,2567,true,true,true,true,true]
["Mold, Buckley & Caergwle15_24","Mold, Buckley & Caergwle","Betsi Cadwaladr University LHB15_24","Betsi Cadwaladr University LHB","15_24",2838,2615,{"$f":"VLOOKUP(C302,'HB pops'!$A$2:$E$73,4,FALSE)","v":44469},{"$f":"VLOOKUP(C302,'HB pops'!$A$2:$E$73,5,FALSE)","v":42171},null,"Betsi Cadwaladr University LHB","Mold, Buckley & Caergwle","15_24",2838,2615,true,true,true,true,true]
["Mold, Buckley & Caergwle25_44","Mold, Buckley & Caergwle","Betsi Cadwaladr University LHB25_44","Betsi Cadwaladr University LHB","25_44",5849,5756,{"$f":"VLOOKUP(C303,'HB pops'!$A$2:$E$73,4,FALSE)","v":86593},{"$f":"VLOOKUP(C303,'HB pops'!$A$2:$E$73,5,FALSE)","v":83313},null,"Betsi Cadwaladr University LHB","Mold, Buckley & Caergwle","25_44",5849,5756,true,true,true,true,true]
["Mold, Buckley & Caergwle45_64","Mold, Buckley & Caergwle","Betsi Cadwaladr University LHB45_64","Betsi Cadwaladr University LHB","45_64",6991,7048,{"$f":"VLOOKUP(C304,'HB pops'!$A$2:$E$73,4,FALSE)","v":95574},{"$f":"VLOOKUP(C304,'HB pops'!$A$2:$E$73,5,FALSE)","v":94390},null,"Betsi Cadwaladr University LHB","Mold, Buckley & Caergwle","45_64",6991,7048,true,true,true,true,true]
["Mold, Buckley & Caergwle65_74","Mold, Buckley & Caergwle","Betsi Cadwaladr University LHB65_74","Betsi Cadwaladr University LHB","65_74",2830,2914,{"$f":"VLOOKUP(C305,'HB pops'!$A$2:$E$73,4,FALSE)","v":37994},{"$f":"VLOOKUP(C305,'HB pops'!$A$2:$E$73,5,FALSE)","v":40008},null,"Betsi Cadwaladr University LHB","Mold, Buckley & Caergwle","65_74",2830,2914,true,true,true,true,true]
["Mold, Buckley & Caergwle75_84","Mold, Buckley & Caergwle","Betsi Cadwaladr University LHB75_84","Betsi Cadwaladr University LHB","75_84",1336,1675,{"$f":"VLOOKUP(C306,'HB pops'!$A$2:$E$73,4,FALSE)","v":20623},{"$f":"VLOOKUP(C306,'HB pops'!$A$2:$E$73,5,FALSE)","v":25717},null,"Betsi Cadwaladr University LHB","Mold, Buckley & Caergwle","75_84",1336,1675,true,true,true,true,true]
["Mold, Buckley & Caergwle85+","Mold, Buckley & Caergwle","Betsi Cadwaladr University LHB85+","Betsi Cadwaladr University LHB","85+",387,774,{"$f":"VLOOKUP(C307,'HB pops'!$A$2:$E$73,4,FALSE)","v":6296},{"$f":"VLOOKUP(C307,'HB pops'!$A$2:$E$73,5,FALSE)","v":13110},null,"Betsi Cadwaladr University LHB","Mold, Buckley & Caergwle","85+",387,774,true,true,true,true,true]
["North Denbighshire00_02","North Denbighshire","Betsi Cadwaladr University LHB00_02","Betsi Cadwaladr University LHB","00_02",1053,944,{"$f":"VLOOKUP(C308,'HB pops'!$A$2:$E$73,4,FALSE)","v":11668},{"$f":"VLOOKUP(C308,'HB pops'!$A$2:$E$73,5,FALSE)","v":11090},null,"Betsi Cadwaladr University LHB","North Denbighshire","00_02",1053,944,true,true,true,true,true]
["North Denbighshire03_04","North Denbighshire","Betsi Cadwaladr University LHB03_04","Betsi Cadwaladr University LHB","03_04",707,667,{"$f":"VLOOKUP(C309,'HB pops'!$A$2:$E$73,4,FALSE)","v":7958},{"$f":"VLOOKUP(C309,'HB pops'!$A$2:$E$73,5,FALSE)","v":7695},null,"Betsi Cadwaladr University LHB","North Denbighshire","03_04",707,667,true,true,true,true,true]
["North Denbighshire05_14","North Denbighshire","Betsi Cadwaladr University LHB05_14","Betsi Cadwaladr University LHB","05_14",3474,3137,{"$f":"VLOOKUP(C310,'HB pops'!$A$2:$E$73,4,FALSE)","v":38681},{"$f":"VLOOKUP(C310,'HB pops'!$A$2:$E$73,5,FALSE)","v":36601},null,"Betsi Cadwaladr University LHB","North Denbighshire","05_14",3474,3137,true,true,true,true,true]
["North Denbighshire15_24","North Denbighshire","Betsi Cadwaladr University LHB15_24","Betsi Cadwaladr University LHB","15_24",3648,3615,{"$f":"VLOOKUP(C311,'HB pops'!$A$2:$E$73,4,FALSE)","v":44469},{"$f":"VLOOKUP(C311,'HB pops'!$A$2:$E$73,5,FALSE)","v":42171},null,"Betsi Cadwaladr University LHB","North Denbighshire","15_24",3648,3615,true,true,true,true,true]
["North Denbighshire25_44","North Denbighshire","Betsi Cadwaladr University LHB25_44","Betsi Cadwaladr University LHB","25_44",6721,6834,{"$f":"VLOOKUP(C312,'HB pops'!$A$2:$E$73,4,FALSE)","v":86593},{"$f":"VLOOKUP(C312,'HB pops'!$A$2:$E$73,5,FALSE)","v":83313},null,"Betsi Cadwaladr University LHB","North Denbighshire","25_44",6721,6834,true,true,true,true,true]
["North Denbighshire45_64","North Denbighshire","Betsi Cadwaladr University LHB45_64","Betsi Cadwaladr University LHB","45_64",7771,7690,{"$f":"VLOOKUP(C313,'HB pops'!$A$2:$E$73,4,FALSE)","v":95574},{"$f":"VLOOKUP(C313,'HB pops'!$A$2:$E$73,5,FALSE)","v":94390},null,"Betsi Cadwaladr University LHB","North Denbighshire","45_64",7771,7690,true,true,true,true,true]
["North Denbighshire65_74","North Denbighshire","Betsi Cadwaladr University LHB65_74","Betsi Cadwaladr University LHB","65_74",3329,3625,{"$f":"VLOOKUP(C314,'HB pops'!$A$2:$E$73,4,FALSE)","v":37994},{"$f":"VLOOKUP(C314,'HB pops'!$A$2:$E$73,5,FALSE)","v":40008},null,"Betsi Cadwaladr University LHB","North Denbighshire","65_74",3329,3625,true,true,true,true,true]
["North Denbighshire75_84","North Denbighshire","Betsi Cadwaladr University LHB75_84","Betsi Cadwaladr University LHB","75_84",1850,2357,{"$f":"VLOOKUP(C315,'HB pops'!$A$2:$E$73,4,FALSE)","v":20623},{"$f":"VLOOKUP(C315,'HB pops'!$A$2:$E$73,5,FALSE)","v":25717},null,"Betsi Cadwaladr University LHB","North Denbighshire","75_84",1850,2357,true,true,true,true,true]
["North Denbighshire85+","North Denbighshire","Betsi Cadwaladr University LHB85+","Betsi Cadwaladr University LHB","85+",567,1158,{"$f":"VLOOKUP(C316,'HB pops'!$A$2:$E$73,4,FALSE)","v":6296},{"$f":"VLOOKUP(C316,'HB pops'!$A$2:$E$73,5,FALSE)","v":13110},null,"Betsi Cadwaladr University LHB","North Denbighshire","85+",567,1158,true,true,true,true,true]
["South Wrexham00_02","South Wrexham","Betsi Cadwaladr University LHB00_02","Betsi Cadwaladr University LHB","00_02",917,915,{"$f":"VLOOKUP(C317,'HB pops'!$A$2:$E$73,4,FALSE)","v":11668},{"$f":"VLOOKUP(C317,'HB pops'!$A$2:$E$73,5,FALSE)","v":11090},null,"Betsi Cadwaladr University LHB","South Wrexham","00_02",917,915,true,true,true,true,true]
["South Wrexham03_04","South Wrexham","Betsi Cadwaladr University LHB03_04","Betsi Cadwaladr University LHB","03_04",669,598,{"$f":"VLOOKUP(C318,'HB pops'!$A$2:$E$73,4,FALSE)","v":7958},{"$f":"VLOOKUP(C318,'HB pops'!$A$2:$E$73,5,FALSE)","v":7695},null,"Betsi Cadwaladr University LHB","South Wrexham","03_04",669,598,true,true,true,true,true]
["South Wrexham05_14","South Wrexham","Betsi Cadwaladr University LHB05_14","Betsi Cadwaladr University LHB","05_14",2906,2850,{"$f":"VLOOKUP(C319,'HB pops'!$A$2:$E$73,4,FALSE)","v":38681},{"$f":"VLOOKUP(C319,'HB pops'!$A$2:$E$73,5,FALSE)","v":36601},null,"Betsi Cadwaladr University LHB","South Wrexham","05_14",2906,2850,true,true,true,true,true]
["South Wrexham15_24","South Wrexham","Betsi Cadwaladr University LHB15_24","Betsi Cadwaladr University LHB","15_24",3155,3140,{"$f":"VLOOKUP(C320,'HB pops'!$A$2:$E$73,4,FALSE)","v":44469},{"$f":"VLOOKUP(C320,'HB pops'!$A$2:$E$73,5,FALSE)","v":42171},null,"Betsi Cadwaladr University LHB","South Wrexham","15_24",3155,3140,true,true,true,true,true]
["South Wrexham25_44","South Wrexham","Betsi Cadwaladr University LHB25_44","Betsi Cadwaladr University LHB","25_44",6716,6607,{"$f":"VLOOKUP(C321,'HB pops'!$A$2:$E$73,4,FALSE)","v":86593},{"$f":"VLOOKUP(C321,'HB pops'!$A$2:$E$73,5,FALSE)","v":83313},null,"Betsi Cadwaladr University LHB","South Wrexham","25_44",6716,6607,true,true,true,true,true]
["South Wrexham45_64","South Wrexham","Betsi Cadwaladr University LHB45_64","Betsi Cadwaladr University LHB","45_64",7442,7223,{"$f":"VLOOKUP(C322,'HB pops'!$A$2:$E$73,4,FALSE)","v":95574},{"$f":"VLOOKUP(C322,'HB pops'!$A$2:$E$73,5,FALSE)","v":94390},null,"Betsi Cadwaladr University LHB","South Wrexham","45_64",7442,7223,true,true,true,true,true]
[{"$f":"B323&E323","v":"South Wrexham65_74"},"South Wrexham",{"$f":"D323&E323","v":"Betsi Cadwaladr University LHB65_74"},"Betsi Cadwaladr University LHB","65_74",2684,2740,{"$f":"VLOOKUP(C323,'HB pops'!$A$2:$E$73,4,FALSE)","v":37994},{"$f":"VLOOKUP(C323,'HB pops'!$A$2:$E$73,5,FALSE)","v":40008},null,"Betsi Cadwaladr University LHB","South Wrexham","65_74",2684,2740,true,true,true,true,true]
["South Wrexham75_84","South Wrexham","Betsi Cadwaladr University LHB75_84","Betsi Cadwaladr University LHB","75_84",1427,1805,{"$f":"VLOOKUP(C324,'HB pops'!$A$2:$E$73,4,FALSE)","v":20623},{"$f":"VLOOKUP(C324,'HB pops'!$A$2:$E$73,5,FALSE)","v":25717},null,"Betsi Cadwaladr University LHB","South Wrexham","75_84",1427,1805,true,true,true,true,true]
["South Wrexham85+","South Wrexham","Betsi Cadwaladr University LHB85+","Betsi Cadwaladr University LHB","85+",420,911,{"$f":"VLOOKUP(C325,'HB pops'!$A$2:$E$73,4,FALSE)","v":6296},{"$f":"VLOOKUP(C325,'HB pops'!$A$2:$E$73,5,FALSE)","v":13110},null,"Betsi Cadwaladr University LHB","South Wrexham","85+",420,911,true,true,true,true,true]
["West & North Wrexham00_02","West & North Wrexham","Betsi Cadwaladr University LHB00_02","Betsi Cadwaladr University LHB","00_02",726,694,{"$f":"VLOOKUP(C326,'HB pops'!$A$2:$E$73,4,FALSE)","v":11668},{"$f":"VLOOKUP(C326,'HB pops'!$A$2:$E$73,5,FALSE)","v":11090},null,"Betsi Cadwaladr University LHB","West & North Wrexham","00_02",726,694,true,true,true,true,true]
["West & North Wrexham03_04","West & North Wrexham","Betsi Cadwaladr University LHB03_04","Betsi Cadwaladr University LHB","03_04",483,528,{"$f":"VLOOKUP(C327,'HB pops'!$A$2:$E$73,4,FALSE)","v":7958},{"$f":"VLOOKUP(C327,'HB pops'!$A$2:$E$73,5,FALSE)","v":7695},null,"Betsi Cadwaladr University LHB","West & North Wrexham","03_04",483,528,true,true,true,true,true]
["West & North Wrexham05_14","West & North Wrexham","Betsi Cadwaladr University LHB05_14","Betsi Cadwaladr University LHB","05_14",2395,2246,{"$f":"VLOOKUP(C328,'HB pops'!$A$2:$E$73,4,FALSE)","v":38681},{"$f":"VLOOKUP(C328,'HB pops'!$A$2:$E$73,5,FALSE)","v":36601},null,"Betsi Cadwaladr University LHB","West & North Wrexham","05_14",2395,2246,true,true,true,true,true]
["West & North Wrexham15_24","West & North Wrexham","Betsi Cadwaladr University LHB15_24","Betsi Cadwaladr University LHB","15_24",2612,2321,{"$f":"VLOOKUP(C329,'HB pops'!$A$2:$E$73,4,FALSE)","v":44469},{"$f":"VLOOKUP(C329,'HB pops'!$A$2:$E$73,5,FALSE)","v":42171},null,"Betsi Cadwaladr University LHB","West & North Wrexham","15_24",2612,2321,true,true,true,true,true]
["West & North Wrexham25_44","West & North Wrexham","Betsi Cadwaladr University LHB25_44","Betsi Cadwaladr University LHB","25_44",5450,5192,{"$f":"VLOOKUP(C330,'HB pops'!$A$2:$E$73,4,FALSE)","v":86593},{"$f":"VLOOKUP(C330,'HB pops'!$A$2:$E$73,5,FALSE)","v":83313},null,"Betsi Cadwaladr University LHB","West & North Wrexham","25_44",5450,5192,true,true,true,true,true]
["West & North Wrexham45_64","West & North Wrexham","Betsi Cadwaladr University LHB45_64","Betsi Cadwaladr University LHB","45_64",5258,5194,{"$f":"VLOOKUP(C331,'HB pops'!$A$2:$E$73,4,FALSE)","v":95574},{"$f":"VLOOKUP(C331,'HB pops'!$A$2:$E$73,5,FALSE)","v":94390},null,"Betsi Cadwaladr University LHB","West & North Wrexham","45_64",5258,5194,true,true,true,true,true]
["West & North Wrexham65_74","West & North Wrexham","Betsi Cadwaladr University LHB65_74","Betsi Cadwaladr University LHB","65_74",1999,2037,{"$f":"VLOOKUP(C332,'HB pops'!$A$2:$E$73,4,FALSE)","v":37994},{"$f":"VLOOKUP(C332,'HB pops'!$A$2:$E$73,5,FALSE)","v":40008},null,"Betsi Cadwaladr University LHB","West & North Wrexham","65_74",1999,2037,{"$f":"K332=D332","v":true},{"$f":"L332=B332","v":true},{"$f":"M332=E332","v":true},{"$f":"N332=F332","v":true},{"$f":"O332=G332","v":true}]
["West & North Wrexham75_84","West & North Wrexham","Betsi Cadwaladr University LHB75_84","Betsi Cadwaladr University LHB","75_84",966,1199,{"$f":"VLOOKUP(C333,'HB pops'!$A$2:$E$73,4,FALSE)","v":20623},{"$f":"VLOOKUP(C333,'HB pops'!$A$2:$E$73,5,FALSE)","v":25717},null,"Betsi Cadwaladr University LHB","West & North Wrexham","75_84",966,1199,true,true,true,true,true]
["West & North Wrexham85+","West & North Wrexham","Betsi Cadwaladr University LHB85+","Betsi Cadwaladr University LHB","85+",268,545,{"$f":"VLOOKUP(C334,'HB pops'!$A$2:$E$73,4,FALSE)","v":6296},{"$f":"VLOOKUP(C334,'HB pops'!$A$2:$E$73,5,FALSE)","v":13110},null,"Betsi Cadwaladr University LHB","West & North Wrexham","85+",268,545,true,true,true,true,true]
["Wrexham Town00_02","Wrexham Town","Betsi Cadwaladr University LHB00_02","Betsi Cadwaladr University LHB","00_02",954,986,{"$f":"VLOOKUP(C335,'HB pops'!$A$2:$E$73,4,FALSE)","v":11668},{"$f":"VLOOKUP(C335,'HB pops'!$A$2:$E$73,5,FALSE)","v":11090},null,"Betsi Cadwaladr University LHB","Wrexham Town","00_02",954,986,true,true,true,true,true]
["Wrexham Town03_04","Wrexham Town","Betsi Cadwaladr University LHB03_04","Betsi Cadwaladr University LHB","03_04",648,635,{"$f":"VLOOKUP(C336,'HB pops'!$A$2:$E$73,4,FALSE)","v":7958},{"$f":"VLOOKUP(C336,'HB pops'!$A$2:$E$73,5,FALSE)","v":7695},null,"Betsi Cadwaladr University LHB","Wrexham Town","03_04",648,635,true,true,true,true,true]
["Wrexham Town05_14","Wrexham Town","Betsi Cadwaladr University LHB05_14","Betsi Cadwaladr University LHB","05_14",2943,2762,{"$f":"VLOOKUP(C337,'HB pops'!$A$2:$E$73,4,FALSE)","v":38681},{"$f":"VLOOKUP(C337,'HB pops'!$A$2:$E$73,5,FALSE)","v":36601},null,"Betsi Cadwaladr University LHB","Wrexham Town","05_14",2943,2762,true,true,true,true,true]
["Wrexham Town15_24","Wrexham Town","Betsi Cadwaladr University LHB15_24","Betsi Cadwaladr University LHB","15_24",3156,3014,{"$f":"VLOOKUP(C338,'HB pops'!$A$2:$E$73,4,FALSE)","v":44469},{"$f":"VLOOKUP(C338,'HB pops'!$A$2:$E$73,5,FALSE)","v":42171},null,"Betsi Cadwaladr University LHB","Wrexham Town","15_24",3156,3014,true,true,true,true,true]
["Wrexham Town25_44","Wrexham Town","Betsi Cadwaladr University LHB25_44","Betsi Cadwaladr University LHB","25_44",7700,7174,{"$f":"VLOOKUP(C339,'HB pops'!$A$2:$E$73,4,FALSE)","v":86593},{"$f":"VLOOKUP(C339,'HB pops'!$A$2:$E$73,5,FALSE)","v":83313},null,"Betsi Cadwaladr University LHB","Wrexham Town","25_44",7700,7174,true,true,true,true,true]
["Wrexham Town45_64","Wrexham Town","Betsi Cadwaladr University LHB45_64","Betsi Cadwaladr University LHB","45_64",6511,6526,{"$f":"VLOOKUP(C340,'HB pops'!$A$2:$E$73,4,FALSE)","v":95574},{"$f":"VLOOKUP(C340,'HB pops'!$A$2:$E$73,5,FALSE)","v":94390},null,"Betsi Cadwaladr University LHB","Wrexham Town","45_64",6511,6526,true,true,true,true,true]
["Wrexham Town65_74","Wrexham Town","Betsi Cadwaladr University LHB65_74","Betsi Cadwaladr University LHB","65_74",2328,2482,{"$f":"VLOOKUP(C341,'HB pops'!$A$2:$E$73,4,FALSE)","v":37994},{"$f":"VLOOKUP(C341,'HB pops'!$A$2:$E$73,5,FALSE)","v":40008},null,"Betsi Cadwaladr University LHB","Wrexham Town","65_74",2328,2482,true,true,true,true,true]
["Wrexham Town75_84","Wrexham Town","Betsi Cadwaladr University LHB75_84","Betsi Cadwaladr University LHB","75_84",1214,1564,{"$f":"VLOOKUP(C342,'HB pops'!$A$2:$E$73,4,FALSE)","v":20623},{"$f":"VLOOKUP(C342,'HB pops'!$A$2:$E$73,5,FALSE)","v":25717},null,"Betsi Cadwaladr University LHB","Wrexham Town","75_84",1214,1564,true,true,true,true,true]
["Wrexham Town85+","Wrexham Town","Betsi Cadwaladr University LHB85+","Betsi Cadwaladr University LHB","85+",375,844,{"$f":"VLOOKUP(C343,'HB pops'!$A$2:$E$73,4,FALSE)","v":6296},{"$f":"VLOOKUP(C343,'HB pops'!$A$2:$E$73,5,FALSE)","v":13110},null,"Betsi Cadwaladr University LHB","Wrexham Town","85+",375,844,true,true,true,true,true]
["Cardiff East00_02","Cardiff East","Cardiff and Vale University LHB00_02","Cardiff and Vale University LHB","00_02",1219,1168,{"$f":"VLOOKUP(C344,'HB pops'!$A$2:$E$73,4,FALSE)","v":9234},{"$f":"VLOOKUP(C344,'HB pops'!$A$2:$E$73,5,FALSE)","v":8819},null,"Cardiff and Vale University LHB","Cardiff East","00_02",1219,1168,true,true,true,true,true]
["Cardiff East03_04","Cardiff East","Cardiff and Vale University LHB03_04","Cardiff and Vale University LHB","03_04",820,783,{"$f":"VLOOKUP(C345,'HB pops'!$A$2:$E$73,4,FALSE)","v":6236},{"$f":"VLOOKUP(C345,'HB pops'!$A$2:$E$73,5,FALSE)","v":5962},null,"Cardiff and Vale University LHB","Cardiff East","03_04",820,783,true,true,true,true,true]
["Cardiff East05_14","Cardiff East","Cardiff and Vale University LHB05_14","Cardiff and Vale University LHB","05_14",3587,3492,{"$f":"VLOOKUP(C346,'HB pops'!$A$2:$E$73,4,FALSE)","v":27093},{"$f":"VLOOKUP(C346,'HB pops'!$A$2:$E$73,5,FALSE)","v":26014},null,"Cardiff and Vale University LHB","Cardiff East","05_14",3587,3492,true,true,true,true,true]
["Cardiff East15_24","Cardiff East","Cardiff and Vale University LHB15_24","Cardiff and Vale University LHB","15_24",4857,4811,{"$f":"VLOOKUP(C347,'HB pops'!$A$2:$E$73,4,FALSE)","v":38100},{"$f":"VLOOKUP(C347,'HB pops'!$A$2:$E$73,5,FALSE)","v":38944},null,"Cardiff and Vale University LHB","Cardiff East","15_24",4857,4811,true,true,true,true,true]
["Cardiff East25_44","Cardiff East","Cardiff and Vale University LHB25_44","Cardiff and Vale University LHB","25_44",7686,7836,{"$f":"VLOOKUP(C348,'HB pops'!$A$2:$E$73,4,FALSE)","v":77328},{"$f":"VLOOKUP(C348,'HB pops'!$A$2:$E$73,5,FALSE)","v":70100},null,"Cardiff and Vale University LHB","Cardiff East","25_44",7686,7836,true,true,true,true,true]
["Cardiff East45_64","Cardiff East","Cardiff and Vale University LHB45_64","Cardiff and Vale University LHB","45_64",6613,6817,{"$f":"VLOOKUP(C349,'HB pops'!$A$2:$E$73,4,FALSE)","v":60628},{"$f":"VLOOKUP(C349,'HB pops'!$A$2:$E$73,5,FALSE)","v":57152},null,"Cardiff and Vale University LHB","Cardiff East","45_64",6613,6817,true,true,true,true,true]
["Cardiff East65_74","Cardiff East","Cardiff and Vale University LHB65_74","Cardiff and Vale University LHB","65_74",1807,1999,{"$f":"VLOOKUP(C350,'HB pops'!$A$2:$E$73,4,FALSE)","v":18257},{"$f":"VLOOKUP(C350,'HB pops'!$A$2:$E$73,5,FALSE)","v":19314},null,"Cardiff and Vale University LHB","Cardiff East","65_74",1807,1999,true,true,true,true,true]
["Cardiff East75_84","Cardiff East","Cardiff and Vale University LHB75_84","Cardiff and Vale University LHB","75_84",971,1368,{"$f":"VLOOKUP(C351,'HB pops'!$A$2:$E$73,4,FALSE)","v":10562},{"$f":"VLOOKUP(C351,'HB pops'!$A$2:$E$73,5,FALSE)","v":13593},null,"Cardiff and Vale University LHB","Cardiff East","75_84",971,1368,true,true,true,true,true]
["Cardiff East85+","Cardiff East","Cardiff and Vale University LHB85+","Cardiff and Vale University LHB","85+",330,677,{"$f":"VLOOKUP(C352,'HB pops'!$A$2:$E$73,4,FALSE)","v":3536},{"$f":"VLOOKUP(C352,'HB pops'!$A$2:$E$73,5,FALSE)","v":7055},null,"Cardiff and Vale University LHB","Cardiff East","85+",330,677,true,true,true,true,true]
["Cardiff North00_02","Cardiff North","Cardiff and Vale University LHB00_02","Cardiff and Vale University LHB","00_02",1749,1695,{"$f":"VLOOKUP(C353,'HB pops'!$A$2:$E$73,4,FALSE)","v":9234},{"$f":"VLOOKUP(C353,'HB pops'!$A$2:$E$73,5,FALSE)","v":8819},null,"Cardiff and Vale University LHB","Cardiff North","00_02",1749,1695,true,true,true,true,true]
["Cardiff North03_04","Cardiff North","Cardiff and Vale University LHB03_04","Cardiff and Vale University LHB","03_04",1196,1166,{"$f":"VLOOKUP(C354,'HB pops'!$A$2:$E$73,4,FALSE)","v":6236},{"$f":"VLOOKUP(C354,'HB pops'!$A$2:$E$73,5,FALSE)","v":5962},null,"Cardiff and Vale University LHB","Cardiff North","03_04",1196,1166,true,true,true,true,true]
["Cardiff North05_14","Cardiff North","Cardiff and Vale University LHB05_14","Cardiff and Vale University LHB","05_14",5387,5068,{"$f":"VLOOKUP(C355,'HB pops'!$A$2:$E$73,4,FALSE)","v":27093},{"$f":"VLOOKUP(C355,'HB pops'!$A$2:$E$73,5,FALSE)","v":26014},null,"Cardiff and Vale University LHB","Cardiff North","05_14",5387,5068,true,true,true,true,true]
["Cardiff North15_24","Cardiff North","Cardiff and Vale University LHB15_24","Cardiff and Vale University LHB","15_24",8190,8592,{"$f":"VLOOKUP(C356,'HB pops'!$A$2:$E$73,4,FALSE)","v":38100},{"$f":"VLOOKUP(C356,'HB pops'!$A$2:$E$73,5,FALSE)","v":38944},null,"Cardiff and Vale University LHB","Cardiff North","15_24",8190,8592,true,true,true,true,true]
["Cardiff North25_44","Cardiff North","Cardiff and Vale University LHB25_44","Cardiff and Vale University LHB","25_44",15438,14427,{"$f":"VLOOKUP(C357,'HB pops'!$A$2:$E$73,4,FALSE)","v":77328},{"$f":"VLOOKUP(C357,'HB pops'!$A$2:$E$73,5,FALSE)","v":70100},null,"Cardiff and Vale University LHB","Cardiff North","25_44",15438,14427,true,true,true,true,true]
["Cardiff North45_64","Cardiff North","Cardiff and Vale University LHB45_64","Cardiff and Vale University LHB","45_64",12160,11883,{"$f":"VLOOKUP(C358,'HB pops'!$A$2:$E$73,4,FALSE)","v":60628},{"$f":"VLOOKUP(C358,'HB pops'!$A$2:$E$73,5,FALSE)","v":57152},null,"Cardiff and Vale University LHB","Cardiff North","45_64",12160,11883,true,true,true,true,true]
["Cardiff North65_74","Cardiff North","Cardiff and Vale University LHB65_74","Cardiff and Vale University LHB","65_74",3604,3965,{"$f":"VLOOKUP(C359,'HB pops'!$A$2:$E$73,4,FALSE)","v":18257},{"$f":"VLOOKUP(C359,'HB pops'!$A$2:$E$73,5,FALSE)","v":19314},null,"Cardiff and Vale University LHB","Cardiff North","65_74",3604,3965,true,true,true,true,true]
["Cardiff North75_84","Cardiff North","Cardiff and Vale University LHB75_84","Cardiff and Vale University LHB","75_84",2239,3168,{"$f":"VLOOKUP(C360,'HB pops'!$A$2:$E$73,4,FALSE)","v":10562},{"$f":"VLOOKUP(C360,'HB pops'!$A$2:$E$73,5,FALSE)","v":13593},null,"Cardiff and Vale University LHB","Cardiff North","75_84",2239,3168,true,true,true,true,true]
["Cardiff North85+","Cardiff North","Cardiff and Vale University LHB85+","Cardiff and Vale University LHB","85+",867,1652,{"$f":"VLOOKUP(C361,'HB pops'!$A$2:$E$73,4,FALSE)","v":3536},{"$f":"VLOOKUP(C361,'HB pops'!$A$2:$E$73,5,FALSE)","v":7055},null,"Cardiff and Vale University LHB","Cardiff North","85+",867,1652,true,true,true,true,true]
["Cardiff South East00_02","Cardiff South East","Cardiff and Vale University LHB00_02","Cardiff and Vale University LHB","00_02",923,866,{"$f":"VLOOKUP(C362,'HB pops'!$A$2:$E$73,4,FALSE)","v":9234},{"$f":"VLOOKUP(C362,'HB pops'!$A$2:$E$73,5,FALSE)","v":8819},null,"Cardiff and Vale University LHB","Cardiff South East","00_02",923,866,true,true,true,true,true]
["Cardiff South East03_04","Cardiff South East","Cardiff and Vale University LHB03_04","Cardiff and Vale University LHB","03_04",572,573,{"$f":"VLOOKUP(C363,'HB pops'!$A$2:$E$73,4,FALSE)","v":6236},{"$f":"VLOOKUP(C363,'HB pops'!$A$2:$E$73,5,FALSE)","v":5962},null,"Cardiff and Vale University LHB","Cardiff South East","03_04",572,573,true,true,true,true,true]
["Cardiff South East05_14","Cardiff South East","Cardiff and Vale University LHB05_14","Cardiff and Vale University LHB","05_14",2394,2180,{"$f":"VLOOKUP(C364,'HB pops'!$A$2:$E$73,4,FALSE)","v":27093},{"$f":"VLOOKUP(C364,'HB pops'!$A$2:$E$73,5,FALSE)","v":26014},null,"Cardiff and Vale University LHB","Cardiff South East","05_14",2394,2180,true,true,true,true,true]
["Cardiff South East15_24","Cardiff South East","Cardiff and Vale University LHB15_24","Cardiff and Vale University LHB","15_24",7443,8383,{"$f":"VLOOKUP(C365,'HB pops'!$A$2:$E$73,4,FALSE)","v":38100},{"$f":"VLOOKUP(C365,'HB pops'!$A$2:$E$73,5,FALSE)","v":38944},null,"Cardiff and Vale University LHB","Cardiff South East","15_24",7443,8383,true,true,true,true,true]
["Cardiff South East25_44","Cardiff South East","Cardiff and Vale University LHB25_44","Cardiff and Vale University LHB","25_44",12753,8815,{"$f":"VLOOKUP(C366,'HB pops'!$A$2:$E$73,4,FALSE)","v":77328},{"$f":"VLOOKUP(C366,'HB pops'!$A$2:$E$73,5,FALSE)","v":70100},null,"Cardiff and Vale University LHB","Cardiff South East","25_44",12753,8815,true,true,true,true,true]
["Cardiff South East45_64","Cardiff South East","Cardiff and Vale University LHB45_64","Cardiff and Vale University LHB","45_64",6043,4617,{"$f":"VLOOKUP(C367,'HB pops'!$A$2:$E$73,4,FALSE)","v":60628},{"$f":"VLOOKUP(C367,'HB pops'!$A$2:$E$73,5,FALSE)","v":57152},null,"Cardiff and Vale University LHB","Cardiff South East","45_64",6043,4617,true,true,true,true,true]
["Cardiff South East65_74","Cardiff South East","Cardiff and Vale University LHB65_74","Cardiff and Vale University LHB","65_74",1495,1471,{"$f":"VLOOKUP(C368,'HB pops'!$A$2:$E$73,4,FALSE)","v":18257},{"$f":"VLOOKUP(C368,'HB pops'!$A$2:$E$73,5,FALSE)","v":19314},null,"Cardiff and Vale University LHB","Cardiff South East","65_74",1495,1471,true,true,true,true,true]
["Cardiff South East75_84","Cardiff South East","Cardiff and Vale University LHB75_84","Cardiff and Vale University LHB","75_84",964,1162,{"$f":"VLOOKUP(C369,'HB pops'!$A$2:$E$73,4,FALSE)","v":10562},{"$f":"VLOOKUP(C369,'HB pops'!$A$2:$E$73,5,FALSE)","v":13593},null,"Cardiff and Vale University LHB","Cardiff South East","75_84",964,1162,true,true,true,true,true]
["Cardiff South East85+","Cardiff South East","Cardiff and Vale University LHB85+","Cardiff and Vale University LHB","85+",305,605,{"$f":"VLOOKUP(C370,'HB pops'!$A$2:$E$73,4,FALSE)","v":3536},{"$f":"VLOOKUP(C370,'HB pops'!$A$2:$E$73,5,FALSE)","v":7055},null,"Cardiff and Vale University LHB","Cardiff South East","85+",305,605,true,true,true,true,true]
["Cardiff South West00_02","Cardiff South West","Cardiff and Vale University LHB00_02","Cardiff and Vale University LHB","00_02",1405,1345,{"$f":"VLOOKUP(C371,'HB pops'!$A$2:$E$73,4,FALSE)","v":9234},{"$f":"VLOOKUP(C371,'HB pops'!$A$2:$E$73,5,FALSE)","v":8819},null,"Cardiff and Vale University LHB","Cardiff South West","00_02",1405,1345,true,true,true,true,true]
["Cardiff South West03_04","Cardiff South West","Cardiff and Vale University LHB03_04","Cardiff and Vale University LHB","03_04",955,920,{"$f":"VLOOKUP(C372,'HB pops'!$A$2:$E$73,4,FALSE)","v":6236},{"$f":"VLOOKUP(C372,'HB pops'!$A$2:$E$73,5,FALSE)","v":5962},null,"Cardiff and Vale University LHB","Cardiff South West","03_04",955,920,true,true,true,true,true]
["Cardiff South West05_14","Cardiff South West","Cardiff and Vale University LHB05_14","Cardiff and Vale University LHB","05_14",3798,3701,{"$f":"VLOOKUP(C373,'HB pops'!$A$2:$E$73,4,FALSE)","v":27093},{"$f":"VLOOKUP(C373,'HB pops'!$A$2:$E$73,5,FALSE)","v":26014},null,"Cardiff and Vale University LHB","Cardiff South West","05_14",3798,3701,true,true,true,true,true]
["Cardiff South West15_24","Cardiff South West","Cardiff and Vale University LHB15_24","Cardiff and Vale University LHB","15_24",4291,4226,{"$f":"VLOOKUP(C374,'HB pops'!$A$2:$E$73,4,FALSE)","v":38100},{"$f":"VLOOKUP(C374,'HB pops'!$A$2:$E$73,5,FALSE)","v":38944},null,"Cardiff and Vale University LHB","Cardiff South West","15_24",4291,4226,true,true,true,true,true]
["Cardiff South West25_44","Cardiff South West","Cardiff and Vale University LHB25_44","Cardiff and Vale University LHB","25_44",11155,10101,{"$f":"VLOOKUP(C375,'HB pops'!$A$2:$E$73,4,FALSE)","v":77328},{"$f":"VLOOKUP(C375,'HB pops'!$A$2:$E$73,5,FALSE)","v":70100},null,"Cardiff and Vale University LHB","Cardiff South West","25_44",11155,10101,true,true,true,true,true]
["Cardiff South West45_64","Cardiff South West","Cardiff and Vale University LHB45_64","Cardiff and Vale University LHB","45_64",7968,7072,{"$f":"VLOOKUP(C376,'HB pops'!$A$2:$E$73,4,FALSE)","v":60628},{"$f":"VLOOKUP(C376,'HB pops'!$A$2:$E$73,5,FALSE)","v":57152},null,"Cardiff and Vale University LHB","Cardiff South West","45_64",7968,7072,true,true,true,true,true]
["Cardiff South West65_74","Cardiff South West","Cardiff and Vale University LHB65_74","Cardiff and Vale University LHB","65_74",2219,2237,{"$f":"VLOOKUP(C377,'HB pops'!$A$2:$E$73,4,FALSE)","v":18257},{"$f":"VLOOKUP(C377,'HB pops'!$A$2:$E$73,5,FALSE)","v":19314},null,"Cardiff and Vale University LHB","Cardiff South West","65_74",2219,2237,true,true,true,true,true]
["Cardiff South West75_84","Cardiff South West","Cardiff and Vale University LHB75_84","Cardiff and Vale University LHB","75_84",1235,1505,{"$f":"VLOOKUP(C378,'HB pops'!$A$2:$E$73,4,FALSE)","v":10562},{"$f":"VLOOKUP(C378,'HB pops'!$A$2:$E$73,5,FALSE)","v":13593},null,"Cardiff and Vale University LHB","Cardiff South West","75_84",1235,1505,true,true,true,true,true]
["Cardiff South West85+","Cardiff South West","Cardiff and Vale University LHB85+","Cardiff and Vale University LHB","85+",441,843,{"$f":"VLOOKUP(C379,'HB pops'!$A$2:$E$73,4,FALSE)","v":3536},{"$f":"VLOOKUP(C379,'HB pops'!$A$2:$E$73,5,FALSE)","v":7055},null,"Cardiff and Vale University LHB","Cardiff South West","85+",441,843,true,true,true,true,true]
["Cardiff West00_02","Cardiff West","Cardiff and Vale University LHB00_02","Cardiff and Vale University LHB","00_02",928,871,{"$f":"VLOOKUP(C380,'HB pops'!$A$2:$E$73,4,FALSE)","v":9234},{"$f":"VLOOKUP(C380,'HB pops'!$A$2:$E$73,5,FALSE)","v":8819},null,"Cardiff and Vale University LHB","Cardiff West","00_02",928,871,true,true,true,true,true]
["Cardiff West03_04","Cardiff West","Cardiff and Vale University LHB03_04","Cardiff and Vale University LHB","03_04",628,620,{"$f":"VLOOKUP(C381,'HB pops'!$A$2:$E$73,4,FALSE)","v":6236},{"$f":"VLOOKUP(C381,'HB pops'!$A$2:$E$73,5,FALSE)","v":5962},null,"Cardiff and Vale University LHB","Cardiff West","03_04",628,620,true,true,true,true,true]
["Cardiff West05_14","Cardiff West","Cardiff and Vale University LHB05_14","Cardiff and Vale University LHB","05_14",2919,2794,{"$f":"VLOOKUP(C382,'HB pops'!$A$2:$E$73,4,FALSE)","v":27093},{"$f":"VLOOKUP(C382,'HB pops'!$A$2:$E$73,5,FALSE)","v":26014},null,"Cardiff and Vale University LHB","Cardiff West","05_14",2919,2794,true,true,true,true,true]
["Cardiff West15_24","Cardiff West","Cardiff and Vale University LHB15_24","Cardiff and Vale University LHB","15_24",3256,3206,{"$f":"VLOOKUP(C383,'HB pops'!$A$2:$E$73,4,FALSE)","v":38100},{"$f":"VLOOKUP(C383,'HB pops'!$A$2:$E$73,5,FALSE)","v":38944},null,"Cardiff and Vale University LHB","Cardiff West","15_24",3256,3206,true,true,true,true,true]
["Cardiff West25_44","Cardiff West","Cardiff and Vale University LHB25_44","Cardiff and Vale University LHB","25_44",7024,7126,{"$f":"VLOOKUP(C384,'HB pops'!$A$2:$E$73,4,FALSE)","v":77328},{"$f":"VLOOKUP(C384,'HB pops'!$A$2:$E$73,5,FALSE)","v":70100},null,"Cardiff and Vale University LHB","Cardiff West","25_44",7024,7126,true,true,true,true,true]
["Cardiff West45_64","Cardiff West","Cardiff and Vale University LHB45_64","Cardiff and Vale University LHB","45_64",7030,7016,{"$f":"VLOOKUP(C385,'HB pops'!$A$2:$E$73,4,FALSE)","v":60628},{"$f":"VLOOKUP(C385,'HB pops'!$A$2:$E$73,5,FALSE)","v":57152},null,"Cardiff and Vale University LHB","Cardiff West","45_64",7030,7016,true,true,true,true,true]
["Cardiff West65_74","Cardiff West","Cardiff and Vale University LHB65_74","Cardiff and Vale University LHB","65_74",2142,2347,{"$f":"VLOOKUP(C386,'HB pops'!$A$2:$E$73,4,FALSE)","v":18257},{"$f":"VLOOKUP(C386,'HB pops'!$A$2:$E$73,5,FALSE)","v":19314},null,"Cardiff and Vale University LHB","Cardiff West","65_74",2142,2347,true,true,true,true,true]
[{"$f":"B387&E387","v":"Cardiff West75_84"},"Cardiff West",{"$f":"D387&E387","v":"Cardiff and Vale University LHB75_84"},"Cardiff and Vale University LHB","75_84",1229,1734,{"$f":"VLOOKUP(C387,'HB pops'!$A$2:$E$73,4,FALSE)","v":10562},{"$f":"VLOOKUP(C387,'HB pops'!$A$2:$E$73,5,FALSE)","v":13593},null,"Cardiff and Vale University LHB","Cardiff West","75_84",1229,1734,true,true,true,true,true]
["Cardiff West85+","Cardiff West","Cardiff and Vale University LHB85+","Cardiff and Vale University LHB","85+",397,861,{"$f":"VLOOKUP(C388,'HB pops'!$A$2:$E$73,4,FALSE)","v":3536},{"$f":"VLOOKUP(C388,'HB pops'!$A$2:$E$73,5,FALSE)","v":7055},null,"Cardiff and Vale University LHB","Cardiff West","85+",397,861,true,true,true,true,true]
["Central Vale00_02","Central Vale","Cardiff and Vale University LHB00_02","Cardiff and Vale University LHB","00_02",1220,1174,{"$f":"VLOOKUP(C389,'HB pops'!$A$2:$E$73,4,FALSE)","v":9234},{"$f":"VLOOKUP(C389,'HB pops'!$A$2:$E$73,5,FALSE)","v":8819},null,"Cardiff and Vale University LHB","Central Vale","00_02",1220,1174,true,true,true,true,true]
["Central Vale03_04","Central Vale","Cardiff and Vale University LHB03_04","Cardiff and Vale University LHB","03_04",843,751,{"$f":"VLOOKUP(C390,'HB pops'!$A$2:$E$73,4,FALSE)","v":6236},{"$f":"VLOOKUP(C390,'HB pops'!$A$2:$E$73,5,FALSE)","v":5962},null,"Cardiff and Vale University LHB","Central Vale","03_04",843,751,true,true,true,true,true]
["Central Vale05_14","Central Vale","Cardiff and Vale University LHB05_14","Cardiff and Vale University LHB","05_14",3562,3431,{"$f":"VLOOKUP(C391,'HB pops'!$A$2:$E$73,4,FALSE)","v":27093},{"$f":"VLOOKUP(C391,'HB pops'!$A$2:$E$73,5,FALSE)","v":26014},null,"Cardiff and Vale University LHB","Central Vale","05_14",3562,3431,true,true,true,true,true]
["Central Vale15_24","Central Vale","Cardiff and Vale University LHB15_24","Cardiff and Vale University LHB","15_24",3989,3911,{"$f":"VLOOKUP(C392,'HB pops'!$A$2:$E$73,4,FALSE)","v":38100},{"$f":"VLOOKUP(C392,'HB pops'!$A$2:$E$73,5,FALSE)","v":38944},null,"Cardiff and Vale University LHB","Central Vale","15_24",3989,3911,true,true,true,true,true]
["Central Vale25_44","Central Vale","Cardiff and Vale University LHB25_44","Cardiff and Vale University LHB","25_44",8211,8158,{"$f":"VLOOKUP(C393,'HB pops'!$A$2:$E$73,4,FALSE)","v":77328},{"$f":"VLOOKUP(C393,'HB pops'!$A$2:$E$73,5,FALSE)","v":70100},null,"Cardiff and Vale University LHB","Central Vale","25_44",8211,8158,true,true,true,true,true]
["Central Vale45_64","Central Vale","Cardiff and Vale University LHB45_64","Cardiff and Vale University LHB","45_64",8286,8037,{"$f":"VLOOKUP(C394,'HB pops'!$A$2:$E$73,4,FALSE)","v":60628},{"$f":"VLOOKUP(C394,'HB pops'!$A$2:$E$73,5,FALSE)","v":57152},null,"Cardiff and Vale University LHB","Central Vale","45_64",8286,8037,true,true,true,true,true]
["Central Vale65_74","Central Vale","Cardiff and Vale University LHB65_74","Cardiff and Vale University LHB","65_74",2585,2756,{"$f":"VLOOKUP(C395,'HB pops'!$A$2:$E$73,4,FALSE)","v":18257},{"$f":"VLOOKUP(C395,'HB pops'!$A$2:$E$73,5,FALSE)","v":19314},null,"Cardiff and Vale University LHB","Central Vale","65_74",2585,2756,true,true,true,true,true]
["Central Vale75_84","Central Vale","Cardiff and Vale University LHB75_84","Cardiff and Vale University LHB","75_84",1406,1816,{"$f":"VLOOKUP(C396,'HB pops'!$A$2:$E$73,4,FALSE)","v":10562},{"$f":"VLOOKUP(C396,'HB pops'!$A$2:$E$73,5,FALSE)","v":13593},null,"Cardiff and Vale University LHB","Central Vale","75_84",1406,1816,{"$f":"K396=D396","v":true},{"$f":"L396=B396","v":true},{"$f":"M396=E396","v":true},{"$f":"N396=F396","v":true},{"$f":"O396=G396","v":true}]
["Central Vale85+","Central Vale","Cardiff and Vale University LHB85+","Cardiff and Vale University LHB","85+",436,937,{"$f":"VLOOKUP(C397,'HB pops'!$A$2:$E$73,4,FALSE)","v":3536},{"$f":"VLOOKUP(C397,'HB pops'!$A$2:$E$73,5,FALSE)","v":7055},null,"Cardiff and Vale University LHB","Central Vale","85+",436,937,true,true,true,true,true]
["City & Cardiff South00_02","City & Cardiff South","Cardiff and Vale University LHB00_02","Cardiff and Vale University LHB","00_02",852,804,{"$f":"VLOOKUP(C398,'HB pops'!$A$2:$E$73,4,FALSE)","v":9234},{"$f":"VLOOKUP(C398,'HB pops'!$A$2:$E$73,5,FALSE)","v":8819},null,"Cardiff and Vale University LHB","City & Cardiff South","00_02",852,804,true,true,true,true,true]
["City & Cardiff South03_04","City & Cardiff South","Cardiff and Vale University LHB03_04","Cardiff and Vale University LHB","03_04",512,475,{"$f":"VLOOKUP(C399,'HB pops'!$A$2:$E$73,4,FALSE)","v":6236},{"$f":"VLOOKUP(C399,'HB pops'!$A$2:$E$73,5,FALSE)","v":5962},null,"Cardiff and Vale University LHB","City & Cardiff South","03_04",512,475,true,true,true,true,true]
["City & Cardiff South05_14","City & Cardiff South","Cardiff and Vale University LHB05_14","Cardiff and Vale University LHB","05_14",1935,1965,{"$f":"VLOOKUP(C400,'HB pops'!$A$2:$E$73,4,FALSE)","v":27093},{"$f":"VLOOKUP(C400,'HB pops'!$A$2:$E$73,5,FALSE)","v":26014},null,"Cardiff and Vale University LHB","City & Cardiff South","05_14",1935,1965,true,true,true,true,true]
["City & Cardiff South15_24","City & Cardiff South","Cardiff and Vale University LHB15_24","Cardiff and Vale University LHB","15_24",2341,2309,{"$f":"VLOOKUP(C401,'HB pops'!$A$2:$E$73,4,FALSE)","v":38100},{"$f":"VLOOKUP(C401,'HB pops'!$A$2:$E$73,5,FALSE)","v":38944},null,"Cardiff and Vale University LHB","City & Cardiff South","15_24",2341,2309,true,true,true,true,true]
["City & Cardiff South25_44","City & Cardiff South","Cardiff and Vale University LHB25_44","Cardiff and Vale University LHB","25_44",7588,6007,{"$f":"VLOOKUP(C402,'HB pops'!$A$2:$E$73,4,FALSE)","v":77328},{"$f":"VLOOKUP(C402,'HB pops'!$A$2:$E$73,5,FALSE)","v":70100},null,"Cardiff and Vale University LHB","City & Cardiff South","25_44",7588,6007,true,true,true,true,true]
["City & Cardiff South45_64","City & Cardiff South","Cardiff and Vale University LHB45_64","Cardiff and Vale University LHB","45_64",3696,2620,{"$f":"VLOOKUP(C403,'HB pops'!$A$2:$E$73,4,FALSE)","v":60628},{"$f":"VLOOKUP(C403,'HB pops'!$A$2:$E$73,5,FALSE)","v":57152},null,"Cardiff and Vale University LHB","City & Cardiff South","45_64",3696,2620,true,true,true,true,true]
["City & Cardiff South65_74","City & Cardiff South","Cardiff and Vale University LHB65_74","Cardiff and Vale University LHB","65_74",962,851,{"$f":"VLOOKUP(C404,'HB pops'!$A$2:$E$73,4,FALSE)","v":18257},{"$f":"VLOOKUP(C404,'HB pops'!$A$2:$E$73,5,FALSE)","v":19314},null,"Cardiff and Vale University LHB","City & Cardiff South","65_74",962,851,true,true,true,true,true]
["City & Cardiff South75_84","City & Cardiff South","Cardiff and Vale University LHB75_84","Cardiff and Vale University LHB","75_84",622,544,{"$f":"VLOOKUP(C405,'HB pops'!$A$2:$E$73,4,FALSE)","v":10562},{"$f":"VLOOKUP(C405,'HB pops'!$A$2:$E$73,5,FALSE)","v":13593},null,"Cardiff and Vale University LHB","City & Cardiff South","75_84",622,544,true,true,true,true,true]
["City & Cardiff South85+","City & Cardiff South","Cardiff and Vale University LHB85+","Cardiff and Vale University LHB","85+",171,225,{"$f":"VLOOKUP(C406,'HB pops'!$A$2:$E$73,4,FALSE)","v":3536},{"$f":"VLOOKUP(C406,'HB pops'!$A$2:$E$73,5,FALSE)","v":7055},null,"Cardiff and Vale University LHB","City & Cardiff South","85+",171,225,true,true,true,true,true]
["Eastern Vale00_02","Eastern Vale","Cardiff and Vale University LHB00_02","Cardiff and Vale University LHB","00_02",537,517,{"$f":"VLOOKUP(C407,'HB pops'!$A$2:$E$73,4,FALSE)","v":9234},{"$f":"VLOOKUP(C407,'HB pops'!$A$2:$E$73,5,FALSE)","v":8819},null,"Cardiff and Vale University LHB","Eastern Vale","00_02",537,517,true,true,true,true,true]
["Eastern Vale03_04","Eastern Vale","Cardiff and Vale University LHB03_04","Cardiff and Vale University LHB","03_04",407,412,{"$f":"VLOOKUP(C408,'HB pops'!$A$2:$E$73,4,FALSE)","v":6236},{"$f":"VLOOKUP(C408,'HB pops'!$A$2:$E$73,5,FALSE)","v":5962},null,"Cardiff and Vale University LHB","Eastern Vale","03_04",407,412,true,true,true,true,true]
["Eastern Vale05_14","Eastern Vale","Cardiff and Vale University LHB05_14","Cardiff and Vale University LHB","05_14",1945,1868,{"$f":"VLOOKUP(C409,'HB pops'!$A$2:$E$73,4,FALSE)","v":27093},{"$f":"VLOOKUP(C409,'HB pops'!$A$2:$E$73,5,FALSE)","v":26014},null,"Cardiff and Vale University LHB","Eastern Vale","05_14",1945,1868,true,true,true,true,true]
["Eastern Vale15_24","Eastern Vale","Cardiff and Vale University LHB15_24","Cardiff and Vale University LHB","15_24",2027,1909,{"$f":"VLOOKUP(C410,'HB pops'!$A$2:$E$73,4,FALSE)","v":38100},{"$f":"VLOOKUP(C410,'HB pops'!$A$2:$E$73,5,FALSE)","v":38944},null,"Cardiff and Vale University LHB","Eastern Vale","15_24",2027,1909,true,true,true,true,true]
["Eastern Vale25_44","Eastern Vale","Cardiff and Vale University LHB25_44","Cardiff and Vale University LHB","25_44",4603,4672,{"$f":"VLOOKUP(C411,'HB pops'!$A$2:$E$73,4,FALSE)","v":77328},{"$f":"VLOOKUP(C411,'HB pops'!$A$2:$E$73,5,FALSE)","v":70100},null,"Cardiff and Vale University LHB","Eastern Vale","25_44",4603,4672,true,true,true,true,true]
["Eastern Vale45_64","Eastern Vale","Cardiff and Vale University LHB45_64","Cardiff and Vale University LHB","45_64",4968,5078,{"$f":"VLOOKUP(C412,'HB pops'!$A$2:$E$73,4,FALSE)","v":60628},{"$f":"VLOOKUP(C412,'HB pops'!$A$2:$E$73,5,FALSE)","v":57152},null,"Cardiff and Vale University LHB","Eastern Vale","45_64",4968,5078,true,true,true,true,true]
["Eastern Vale65_74","Eastern Vale","Cardiff and Vale University LHB65_74","Cardiff and Vale University LHB","65_74",1874,2060,{"$f":"VLOOKUP(C413,'HB pops'!$A$2:$E$73,4,FALSE)","v":18257},{"$f":"VLOOKUP(C413,'HB pops'!$A$2:$E$73,5,FALSE)","v":19314},null,"Cardiff and Vale University LHB","Eastern Vale","65_74",1874,2060,true,true,true,true,true]
["Eastern Vale75_84","Eastern Vale","Cardiff and Vale University LHB75_84","Cardiff and Vale University LHB","75_84",1091,1393,{"$f":"VLOOKUP(C414,'HB pops'!$A$2:$E$73,4,FALSE)","v":10562},{"$f":"VLOOKUP(C414,'HB pops'!$A$2:$E$73,5,FALSE)","v":13593},null,"Cardiff and Vale University LHB","Eastern Vale","75_84",1091,1393,true,true,true,true,true]
["Eastern Vale85+","Eastern Vale","Cardiff and Vale University LHB85+","Cardiff and Vale University LHB","85+",364,854,{"$f":"VLOOKUP(C415,'HB pops'!$A$2:$E$73,4,FALSE)","v":3536},{"$f":"VLOOKUP(C415,'HB pops'!$A$2:$E$73,5,FALSE)","v":7055},null,"Cardiff and Vale University LHB","Eastern Vale","85+",364,854,true,true,true,true,true]
["Western Vale00_02","Western Vale","Cardiff and Vale University LHB00_02","Cardiff and Vale University LHB","00_02",401,379,{"$f":"VLOOKUP(C416,'HB pops'!$A$2:$E$73,4,FALSE)","v":9234},{"$f":"VLOOKUP(C416,'HB pops'!$A$2:$E$73,5,FALSE)","v":8819},null,"Cardiff and Vale University LHB","Western Vale","00_02",401,379,true,true,true,true,true]
["Western Vale03_04","Western Vale","Cardiff and Vale University LHB03_04","Cardiff and Vale University LHB","03_04",303,262,{"$f":"VLOOKUP(C417,'HB pops'!$A$2:$E$73,4,FALSE)","v":6236},{"$f":"VLOOKUP(C417,'HB pops'!$A$2:$E$73,5,FALSE)","v":5962},null,"Cardiff and Vale University LHB","Western Vale","03_04",303,262,true,true,true,true,true]
["Western Vale05_14","Western Vale","Cardiff and Vale University LHB05_14","Cardiff and Vale University LHB","05_14",1566,1515,{"$f":"VLOOKUP(C418,'HB pops'!$A$2:$E$73,4,FALSE)","v":27093},{"$f":"VLOOKUP(C418,'HB pops'!$A$2:$E$73,5,FALSE)","v":26014},null,"Cardiff and Vale University LHB","Western Vale","05_14",1566,1515,true,true,true,true,true]
["Western Vale15_24","Western Vale","Cardiff and Vale University LHB15_24","Cardiff and Vale University LHB","15_24",1706,1597,{"$f":"VLOOKUP(C419,'HB pops'!$A$2:$E$73,4,FALSE)","v":38100},{"$f":"VLOOKUP(C419,'HB pops'!$A$2:$E$73,5,FALSE)","v":38944},null,"Cardiff and Vale University LHB","Western Vale","15_24",1706,1597,true,true,true,true,true]
["Western Vale25_44","Western Vale","Cardiff and Vale University LHB25_44","Cardiff and Vale University LHB","25_44",2870,2958,{"$f":"VLOOKUP(C420,'HB pops'!$A$2:$E$73,4,FALSE)","v":77328},{"$f":"VLOOKUP(C420,'HB pops'!$A$2:$E$73,5,FALSE)","v":70100},null,"Cardiff and Vale University LHB","Western Vale","25_44",2870,2958,true,true,true,true,true]
["Western Vale45_64","Western Vale","Cardiff and Vale University LHB45_64","Cardiff and Vale University LHB","45_64",3864,4012,{"$f":"VLOOKUP(C421,'HB pops'!$A$2:$E$73,4,FALSE)","v":60628},{"$f":"VLOOKUP(C421,'HB pops'!$A$2:$E$73,5,FALSE)","v":57152},null,"Cardiff and Vale University LHB","Western Vale","45_64",3864,4012,true,true,true,true,true]
["Western Vale65_74","Western Vale","Cardiff and Vale University LHB65_74","Cardiff and Vale University LHB","65_74",1569,1628,{"$f":"VLOOKUP(C422,'HB pops'!$A$2:$E$73,4,FALSE)","v":18257},{"$f":"VLOOKUP(C422,'HB pops'!$A$2:$E$73,5,FALSE)","v":19314},null,"Cardiff and Vale University LHB","Western Vale","65_74",1569,1628,true,true,true,true,true]
["Western Vale75_84","Western Vale","Cardiff and Vale University LHB75_84","Cardiff and Vale University LHB","75_84",805,903,{"$f":"VLOOKUP(C423,'HB pops'!$A$2:$E$73,4,FALSE)","v":10562},{"$f":"VLOOKUP(C423,'HB pops'!$A$2:$E$73,5,FALSE)","v":13593},null,"Cardiff and Vale University LHB","Western Vale","75_84",805,903,true,true,true,true,true]
["Western Vale85+","Western Vale","Cardiff and Vale University LHB85+","Cardiff and Vale University LHB","85+",225,401,{"$f":"VLOOKUP(C424,'HB pops'!$A$2:$E$73,4,FALSE)","v":3536},{"$f":"VLOOKUP(C424,'HB pops'!$A$2:$E$73,5,FALSE)","v":7055},null,"Cardiff and Vale University LHB","Western Vale","85+",225,401,true,true,true,true,true]
["North Cynon00_02","North Cynon","Cwm Taf LHB00_02","Cwm Taf LHB","00_02",673,709,{"$f":"VLOOKUP(C425,'HB pops'!$A$2:$E$73,4,FALSE)","v":5305},{"$f":"VLOOKUP(C425,'HB pops'!$A$2:$E$73,5,FALSE)","v":5189},null,"Cwm Taf LHB","North Cynon","00_02",673,709,true,true,true,true,true]
["North Cynon03_04","North Cynon","Cwm Taf LHB03_04","Cwm Taf LHB","03_04",486,459,{"$f":"VLOOKUP(C426,'HB pops'!$A$2:$E$73,4,FALSE)","v":3711},{"$f":"VLOOKUP(C426,'HB pops'!$A$2:$E$73,5,FALSE)","v":3609},null,"Cwm Taf LHB","North Cynon","03_04",486,459,true,true,true,true,true]
["North Cynon05_14","North Cynon","Cwm Taf LHB05_14","Cwm Taf LHB","05_14",2236,2183,{"$f":"VLOOKUP(C427,'HB pops'!$A$2:$E$73,4,FALSE)","v":17228},{"$f":"VLOOKUP(C427,'HB pops'!$A$2:$E$73,5,FALSE)","v":16308},null,"Cwm Taf LHB","North Cynon","05_14",2236,2183,true,true,true,true,true]
["North Cynon15_24","North Cynon","Cwm Taf LHB15_24","Cwm Taf LHB","15_24",2677,2504,{"$f":"VLOOKUP(C428,'HB pops'!$A$2:$E$73,4,FALSE)","v":20099},{"$f":"VLOOKUP(C428,'HB pops'!$A$2:$E$73,5,FALSE)","v":19344},null,"Cwm Taf LHB","North Cynon","15_24",2677,2504,true,true,true,true,true]
["North Cynon25_44","North Cynon","Cwm Taf LHB25_44","Cwm Taf LHB","25_44",4972,5014,{"$f":"VLOOKUP(C429,'HB pops'!$A$2:$E$73,4,FALSE)","v":41431},{"$f":"VLOOKUP(C429,'HB pops'!$A$2:$E$73,5,FALSE)","v":39269},null,"Cwm Taf LHB","North Cynon","25_44",4972,5014,true,true,true,true,true]
["North Cynon45_64","North Cynon","Cwm Taf LHB45_64","Cwm Taf LHB","45_64",5234,5249,{"$f":"VLOOKUP(C430,'HB pops'!$A$2:$E$73,4,FALSE)","v":40262},{"$f":"VLOOKUP(C430,'HB pops'!$A$2:$E$73,5,FALSE)","v":39398},null,"Cwm Taf LHB","North Cynon","45_64",5234,5249,true,true,true,true,true]
["North Cynon65_74","North Cynon","Cwm Taf LHB65_74","Cwm Taf LHB","65_74",2023,2105,{"$f":"VLOOKUP(C431,'HB pops'!$A$2:$E$73,4,FALSE)","v":14371},{"$f":"VLOOKUP(C431,'HB pops'!$A$2:$E$73,5,FALSE)","v":14912},null,"Cwm Taf LHB","North Cynon","65_74",2023,2105,true,true,true,true,true]
["North Cynon75_84","North Cynon","Cwm Taf LHB75_84","Cwm Taf LHB","75_84",993,1280,{"$f":"VLOOKUP(C432,'HB pops'!$A$2:$E$73,4,FALSE)","v":7374},{"$f":"VLOOKUP(C432,'HB pops'!$A$2:$E$73,5,FALSE)","v":9394},null,"Cwm Taf LHB","North Cynon","75_84",993,1280,true,true,true,true,true]
["North Cynon85+","North Cynon","Cwm Taf LHB85+","Cwm Taf LHB","85+",269,697,{"$f":"VLOOKUP(C433,'HB pops'!$A$2:$E$73,4,FALSE)","v":2033},{"$f":"VLOOKUP(C433,'HB pops'!$A$2:$E$73,5,FALSE)","v":4459},null,"Cwm Taf LHB","North Cynon","85+",269,697,true,true,true,true,true]
["North Merthyr Tydfil00_02","North Merthyr Tydfil","Cwm Taf LHB00_02","Cwm Taf LHB","00_02",580,551,{"$f":"VLOOKUP(C434,'HB pops'!$A$2:$E$73,4,FALSE)","v":5305},{"$f":"VLOOKUP(C434,'HB pops'!$A$2:$E$73,5,FALSE)","v":5189},null,"Cwm Taf LHB","North Merthyr Tydfil","00_02",580,551,true,true,true,true,true]
["North Merthyr Tydfil03_04","North Merthyr Tydfil","Cwm Taf LHB03_04","Cwm Taf LHB","03_04",401,378,{"$f":"VLOOKUP(C435,'HB pops'!$A$2:$E$73,4,FALSE)","v":3711},{"$f":"VLOOKUP(C435,'HB pops'!$A$2:$E$73,5,FALSE)","v":3609},null,"Cwm Taf LHB","North Merthyr Tydfil","03_04",401,378,true,true,true,true,true]
["North Merthyr Tydfil05_14","North Merthyr Tydfil","Cwm Taf LHB05_14","Cwm Taf LHB","05_14",1747,1651,{"$f":"VLOOKUP(C436,'HB pops'!$A$2:$E$73,4,FALSE)","v":17228},{"$f":"VLOOKUP(C436,'HB pops'!$A$2:$E$73,5,FALSE)","v":16308},null,"Cwm Taf LHB","North Merthyr Tydfil","05_14",1747,1651,true,true,true,true,true]
["North Merthyr Tydfil15_24","North Merthyr Tydfil","Cwm Taf LHB15_24","Cwm Taf LHB","15_24",2154,2076,{"$f":"VLOOKUP(C437,'HB pops'!$A$2:$E$73,4,FALSE)","v":20099},{"$f":"VLOOKUP(C437,'HB pops'!$A$2:$E$73,5,FALSE)","v":19344},null,"Cwm Taf LHB","North Merthyr Tydfil","15_24",2154,2076,true,true,true,true,true]
["North Merthyr Tydfil25_44","North Merthyr Tydfil","Cwm Taf LHB25_44","Cwm Taf LHB","25_44",4294,4203,{"$f":"VLOOKUP(C438,'HB pops'!$A$2:$E$73,4,FALSE)","v":41431},{"$f":"VLOOKUP(C438,'HB pops'!$A$2:$E$73,5,FALSE)","v":39269},null,"Cwm Taf LHB","North Merthyr Tydfil","25_44",4294,4203,true,true,true,true,true]
["North Merthyr Tydfil45_64","North Merthyr Tydfil","Cwm Taf LHB45_64","Cwm Taf LHB","45_64",4253,4165,{"$f":"VLOOKUP(C439,'HB pops'!$A$2:$E$73,4,FALSE)","v":40262},{"$f":"VLOOKUP(C439,'HB pops'!$A$2:$E$73,5,FALSE)","v":39398},null,"Cwm Taf LHB","North Merthyr Tydfil","45_64",4253,4165,true,true,true,true,true]
["North Merthyr Tydfil65_74","North Merthyr Tydfil","Cwm Taf LHB65_74","Cwm Taf LHB","65_74",1416,1463,{"$f":"VLOOKUP(C440,'HB pops'!$A$2:$E$73,4,FALSE)","v":14371},{"$f":"VLOOKUP(C440,'HB pops'!$A$2:$E$73,5,FALSE)","v":14912},null,"Cwm Taf LHB","North Merthyr Tydfil","65_74",1416,1463,true,true,true,true,true]
["North Merthyr Tydfil75_84","North Merthyr Tydfil","Cwm Taf LHB75_84","Cwm Taf LHB","75_84",791,1005,{"$f":"VLOOKUP(C441,'HB pops'!$A$2:$E$73,4,FALSE)","v":7374},{"$f":"VLOOKUP(C441,'HB pops'!$A$2:$E$73,5,FALSE)","v":9394},null,"Cwm Taf LHB","North Merthyr Tydfil","75_84",791,1005,true,true,true,true,true]
["North Merthyr Tydfil85+","North Merthyr Tydfil","Cwm Taf LHB85+","Cwm Taf LHB","85+",214,437,{"$f":"VLOOKUP(C442,'HB pops'!$A$2:$E$73,4,FALSE)","v":2033},{"$f":"VLOOKUP(C442,'HB pops'!$A$2:$E$73,5,FALSE)","v":4459},null,"Cwm Taf LHB","North Merthyr Tydfil","85+",214,437,true,true,true,true,true]
["North Rhondda00_02","North Rhondda","Cwm Taf LHB00_02","Cwm Taf LHB","00_02",636,609,{"$f":"VLOOKUP(C443,'HB pops'!$A$2:$E$73,4,FALSE)","v":5305},{"$f":"VLOOKUP(C443,'HB pops'!$A$2:$E$73,5,FALSE)","v":5189},null,"Cwm Taf LHB","North Rhondda","00_02",636,609,true,true,true,true,true]
["North Rhondda03_04","North Rhondda","Cwm Taf LHB03_04","Cwm Taf LHB","03_04",403,430,{"$f":"VLOOKUP(C444,'HB pops'!$A$2:$E$73,4,FALSE)","v":3711},{"$f":"VLOOKUP(C444,'HB pops'!$A$2:$E$73,5,FALSE)","v":3609},null,"Cwm Taf LHB","North Rhondda","03_04",403,430,true,true,true,true,true]
["North Rhondda05_14","North Rhondda","Cwm Taf LHB05_14","Cwm Taf LHB","05_14",2034,1889,{"$f":"VLOOKUP(C445,'HB pops'!$A$2:$E$73,4,FALSE)","v":17228},{"$f":"VLOOKUP(C445,'HB pops'!$A$2:$E$73,5,FALSE)","v":16308},null,"Cwm Taf LHB","North Rhondda","05_14",2034,1889,true,true,true,true,true]
["North Rhondda15_24","North Rhondda","Cwm Taf LHB15_24","Cwm Taf LHB","15_24",2390,2338,{"$f":"VLOOKUP(C446,'HB pops'!$A$2:$E$73,4,FALSE)","v":20099},{"$f":"VLOOKUP(C446,'HB pops'!$A$2:$E$73,5,FALSE)","v":19344},null,"Cwm Taf LHB","North Rhondda","15_24",2390,2338,true,true,true,true,true]
["North Rhondda25_44","North Rhondda","Cwm Taf LHB25_44","Cwm Taf LHB","25_44",4647,4344,{"$f":"VLOOKUP(C447,'HB pops'!$A$2:$E$73,4,FALSE)","v":41431},{"$f":"VLOOKUP(C447,'HB pops'!$A$2:$E$73,5,FALSE)","v":39269},null,"Cwm Taf LHB","North Rhondda","25_44",4647,4344,true,true,true,true,true]
["North Rhondda45_64","North Rhondda","Cwm Taf LHB45_64","Cwm Taf LHB","45_64",4923,4690,{"$f":"VLOOKUP(C448,'HB pops'!$A$2:$E$73,4,FALSE)","v":40262},{"$f":"VLOOKUP(C448,'HB pops'!$A$2:$E$73,5,FALSE)","v":39398},null,"Cwm Taf LHB","North Rhondda","45_64",4923,4690,true,true,true,true,true]
["North Rhondda65_74","North Rhondda","Cwm Taf LHB65_74","Cwm Taf LHB","65_74",1821,1941,{"$f":"VLOOKUP(C449,'HB pops'!$A$2:$E$73,4,FALSE)","v":14371},{"$f":"VLOOKUP(C449,'HB pops'!$A$2:$E$73,5,FALSE)","v":14912},null,"Cwm Taf LHB","North Rhondda","65_74",1821,1941,true,true,true,true,true]
["North Rhondda75_84","North Rhondda","Cwm Taf LHB75_84","Cwm Taf LHB","75_84",1035,1348,{"$f":"VLOOKUP(C450,'HB pops'!$A$2:$E$73,4,FALSE)","v":7374},{"$f":"VLOOKUP(C450,'HB pops'!$A$2:$E$73,5,FALSE)","v":9394},null,"Cwm Taf LHB","North Rhondda","75_84",1035,1348,true,true,true,true,true]
[{"$f":"B451&E451","v":"North Rhondda85+"},"North Rhondda",{"$f":"D451&E451","v":"Cwm Taf LHB85+"},"Cwm Taf LHB","85+",304,641,{"$f":"VLOOKUP(C451,'HB pops'!$A$2:$E$73,4,FALSE)","v":2033},{"$f":"VLOOKUP(C451,'HB pops'!$A$2:$E$73,5,FALSE)","v":4459},null,"Cwm Taf LHB","North Rhondda","85+",304,641,true,true,true,true,true]
["North Taf Ely00_02","North Taf Ely","Cwm Taf LHB00_02","Cwm Taf LHB","00_02",686,712,{"$f":"VLOOKUP(C452,'HB pops'!$A$2:$E$73,4,FALSE)","v":5305},{"$f":"VLOOKUP(C452,'HB pops'!$A$2:$E$73,5,FALSE)","v":5189},null,"Cwm Taf LHB","North Taf Ely","00_02",686,712,true,true,true,true,true]
["North Taf Ely03_04","North Taf Ely","Cwm Taf LHB03_04","Cwm Taf LHB","03_04",495,526,{"$f":"VLOOKUP(C453,'HB pops'!$A$2:$E$73,4,FALSE)","v":3711},{"$f":"VLOOKUP(C453,'HB pops'!$A$2:$E$73,5,FALSE)","v":3609},null,"Cwm Taf LHB","North Taf Ely","03_04",495,526,true,true,true,true,true]
["North Taf Ely05_14","North Taf Ely","Cwm Taf LHB05_14","Cwm Taf LHB","05_14",2342,2272,{"$f":"VLOOKUP(C454,'HB pops'!$A$2:$E$73,4,FALSE)","v":17228},{"$f":"VLOOKUP(C454,'HB pops'!$A$2:$E$73,5,FALSE)","v":16308},null,"Cwm Taf LHB","North Taf Ely","05_14",2342,2272,true,true,true,true,true]
["North Taf Ely15_24","North Taf Ely","Cwm Taf LHB15_24","Cwm Taf LHB","15_24",3692,3356,{"$f":"VLOOKUP(C455,'HB pops'!$A$2:$E$73,4,FALSE)","v":20099},{"$f":"VLOOKUP(C455,'HB pops'!$A$2:$E$73,5,FALSE)","v":19344},null,"Cwm Taf LHB","North Taf Ely","15_24",3692,3356,true,true,true,true,true]
["North Taf Ely25_44","North Taf Ely","Cwm Taf LHB25_44","Cwm Taf LHB","25_44",7571,5892,{"$f":"VLOOKUP(C456,'HB pops'!$A$2:$E$73,4,FALSE)","v":41431},{"$f":"VLOOKUP(C456,'HB pops'!$A$2:$E$73,5,FALSE)","v":39269},null,"Cwm Taf LHB","North Taf Ely","25_44",7571,5892,true,true,true,true,true]
["North Taf Ely45_64","North Taf Ely","Cwm Taf LHB45_64","Cwm Taf LHB","45_64",5997,5524,{"$f":"VLOOKUP(C457,'HB pops'!$A$2:$E$73,4,FALSE)","v":40262},{"$f":"VLOOKUP(C457,'HB pops'!$A$2:$E$73,5,FALSE)","v":39398},null,"Cwm Taf LHB","North Taf Ely","45_64",5997,5524,true,true,true,true,true]
["North Taf Ely65_74","North Taf Ely","Cwm Taf LHB65_74","Cwm Taf LHB","65_74",2034,2147,{"$f":"VLOOKUP(C458,'HB pops'!$A$2:$E$73,4,FALSE)","v":14371},{"$f":"VLOOKUP(C458,'HB pops'!$A$2:$E$73,5,FALSE)","v":14912},null,"Cwm Taf LHB","North Taf Ely","65_74",2034,2147,true,true,true,true,true]
["North Taf Ely75_84","North Taf Ely","Cwm Taf LHB75_84","Cwm Taf LHB","75_84",1076,1389,{"$f":"VLOOKUP(C459,'HB pops'!$A$2:$E$73,4,FALSE)","v":7374},{"$f":"VLOOKUP(C459,'HB pops'!$A$2:$E$73,5,FALSE)","v":9394},null,"Cwm Taf LHB","North Taf Ely","75_84",1076,1389,true,true,true,true,true]
["North Taf Ely85+","North Taf Ely","Cwm Taf LHB85+","Cwm Taf LHB","85+",355,677,{"$f":"VLOOKUP(C460,'HB pops'!$A$2:$E$73,4,FALSE)","v":2033},{"$f":"VLOOKUP(C460,'HB pops'!$A$2:$E$73,5,FALSE)","v":4459},null,"Cwm Taf LHB","North Taf Ely","85+",355,677,{"$f":"K460=D460","v":true},{"$f":"L460=B460","v":true},{"$f":"M460=E460","v":true},{"$f":"N460=F460","v":true},{"$f":"O460=G460","v":true}]
["South Cynon00_02","South Cynon","Cwm Taf LHB00_02","Cwm Taf LHB","00_02",347,396,{"$f":"VLOOKUP(C461,'HB pops'!$A$2:$E$73,4,FALSE)","v":5305},{"$f":"VLOOKUP(C461,'HB pops'!$A$2:$E$73,5,FALSE)","v":5189},null,"Cwm Taf LHB","South Cynon","00_02",347,396,true,true,true,true,true]
["South Cynon03_04","South Cynon","Cwm Taf LHB03_04","Cwm Taf LHB","03_04",281,256,{"$f":"VLOOKUP(C462,'HB pops'!$A$2:$E$73,4,FALSE)","v":3711},{"$f":"VLOOKUP(C462,'HB pops'!$A$2:$E$73,5,FALSE)","v":3609},null,"Cwm Taf LHB","South Cynon","03_04",281,256,true,true,true,true,true]
["South Cynon05_14","South Cynon","Cwm Taf LHB05_14","Cwm Taf LHB","05_14",1287,1156,{"$f":"VLOOKUP(C463,'HB pops'!$A$2:$E$73,4,FALSE)","v":17228},{"$f":"VLOOKUP(C463,'HB pops'!$A$2:$E$73,5,FALSE)","v":16308},null,"Cwm Taf LHB","South Cynon","05_14",1287,1156,true,true,true,true,true]
["South Cynon15_24","South Cynon","Cwm Taf LHB15_24","Cwm Taf LHB","15_24",1374,1373,{"$f":"VLOOKUP(C464,'HB pops'!$A$2:$E$73,4,FALSE)","v":20099},{"$f":"VLOOKUP(C464,'HB pops'!$A$2:$E$73,5,FALSE)","v":19344},null,"Cwm Taf LHB","South Cynon","15_24",1374,1373,true,true,true,true,true]
["South Cynon25_44","South Cynon","Cwm Taf LHB25_44","Cwm Taf LHB","25_44",2751,2681,{"$f":"VLOOKUP(C465,'HB pops'!$A$2:$E$73,4,FALSE)","v":41431},{"$f":"VLOOKUP(C465,'HB pops'!$A$2:$E$73,5,FALSE)","v":39269},null,"Cwm Taf LHB","South Cynon","25_44",2751,2681,true,true,true,true,true]
["South Cynon45_64","South Cynon","Cwm Taf LHB45_64","Cwm Taf LHB","45_64",2681,2676,{"$f":"VLOOKUP(C466,'HB pops'!$A$2:$E$73,4,FALSE)","v":40262},{"$f":"VLOOKUP(C466,'HB pops'!$A$2:$E$73,5,FALSE)","v":39398},null,"Cwm Taf LHB","South Cynon","45_64",2681,2676,true,true,true,true,true]
["South Cynon65_74","South Cynon","Cwm Taf LHB65_74","Cwm Taf LHB","65_74",1014,974,{"$f":"VLOOKUP(C467,'HB pops'!$A$2:$E$73,4,FALSE)","v":14371},{"$f":"VLOOKUP(C467,'HB pops'!$A$2:$E$73,5,FALSE)","v":14912},null,"Cwm Taf LHB","South Cynon","65_74",1014,974,true,true,true,true,true]
["South Cynon75_84","South Cynon","Cwm Taf LHB75_84","Cwm Taf LHB","75_84",478,679,{"$f":"VLOOKUP(C468,'HB pops'!$A$2:$E$73,4,FALSE)","v":7374},{"$f":"VLOOKUP(C468,'HB pops'!$A$2:$E$73,5,FALSE)","v":9394},null,"Cwm Taf LHB","South Cynon","75_84",478,679,true,true,true,true,true]
["South Cynon85+","South Cynon","Cwm Taf LHB85+","Cwm Taf LHB","85+",127,290,{"$f":"VLOOKUP(C469,'HB pops'!$A$2:$E$73,4,FALSE)","v":2033},{"$f":"VLOOKUP(C469,'HB pops'!$A$2:$E$73,5,FALSE)","v":4459},null,"Cwm Taf LHB","South Cynon","85+",127,290,true,true,true,true,true]
["South Merthyr Tydfil00_02","South Merthyr Tydfil","Cwm Taf LHB00_02","Cwm Taf LHB","00_02",496,439,{"$f":"VLOOKUP(C470,'HB pops'!$A$2:$E$73,4,FALSE)","v":5305},{"$f":"VLOOKUP(C470,'HB pops'!$A$2:$E$73,5,FALSE)","v":5189},null,"Cwm Taf LHB","South Merthyr Tydfil","00_02",496,439,true,true,true,true,true]
["South Merthyr Tydfil03_04","South Merthyr Tydfil","Cwm Taf LHB03_04","Cwm Taf LHB","03_04",347,336,{"$f":"VLOOKUP(C471,'HB pops'!$A$2:$E$73,4,FALSE)","v":3711},{"$f":"VLOOKUP(C471,'HB pops'!$A$2:$E$73,5,FALSE)","v":3609},null,"Cwm Taf LHB","South Merthyr Tydfil","03_04",347,336,true,true,true,true,true]
["South Merthyr Tydfil05_14","South Merthyr Tydfil","Cwm Taf LHB05_14","Cwm Taf LHB","05_14",1633,1442,{"$f":"VLOOKUP(C472,'HB pops'!$A$2:$E$73,4,FALSE)","v":17228},{"$f":"VLOOKUP(C472,'HB pops'!$A$2:$E$73,5,FALSE)","v":16308},null,"Cwm Taf LHB","South Merthyr Tydfil","05_14",1633,1442,true,true,true,true,true]
["South Merthyr Tydfil15_24","South Merthyr Tydfil","Cwm Taf LHB15_24","Cwm Taf LHB","15_24",1717,1765,{"$f":"VLOOKUP(C473,'HB pops'!$A$2:$E$73,4,FALSE)","v":20099},{"$f":"VLOOKUP(C473,'HB pops'!$A$2:$E$73,5,FALSE)","v":19344},null,"Cwm Taf LHB","South Merthyr Tydfil","15_24",1717,1765,true,true,true,true,true]
["South Merthyr Tydfil25_44","South Merthyr Tydfil","Cwm Taf LHB25_44","Cwm Taf LHB","25_44",3688,3587,{"$f":"VLOOKUP(C474,'HB pops'!$A$2:$E$73,4,FALSE)","v":41431},{"$f":"VLOOKUP(C474,'HB pops'!$A$2:$E$73,5,FALSE)","v":39269},null,"Cwm Taf LHB","South Merthyr Tydfil","25_44",3688,3587,true,true,true,true,true]
["South Merthyr Tydfil45_64","South Merthyr Tydfil","Cwm Taf LHB45_64","Cwm Taf LHB","45_64",3698,3645,{"$f":"VLOOKUP(C475,'HB pops'!$A$2:$E$73,4,FALSE)","v":40262},{"$f":"VLOOKUP(C475,'HB pops'!$A$2:$E$73,5,FALSE)","v":39398},null,"Cwm Taf LHB","South Merthyr Tydfil","45_64",3698,3645,true,true,true,true,true]
["South Merthyr Tydfil65_74","South Merthyr Tydfil","Cwm Taf LHB65_74","Cwm Taf LHB","65_74",1253,1297,{"$f":"VLOOKUP(C476,'HB pops'!$A$2:$E$73,4,FALSE)","v":14371},{"$f":"VLOOKUP(C476,'HB pops'!$A$2:$E$73,5,FALSE)","v":14912},null,"Cwm Taf LHB","South Merthyr Tydfil","65_74",1253,1297,true,true,true,true,true]
["South Merthyr Tydfil75_84","South Merthyr Tydfil","Cwm Taf LHB75_84","Cwm Taf LHB","75_84",672,827,{"$f":"VLOOKUP(C477,'HB pops'!$A$2:$E$73,4,FALSE)","v":7374},{"$f":"VLOOKUP(C477,'HB pops'!$A$2:$E$73,5,FALSE)","v":9394},null,"Cwm Taf LHB","South Merthyr Tydfil","75_84",672,827,true,true,true,true,true]
["South Merthyr Tydfil85+","South Merthyr Tydfil","Cwm Taf LHB85+","Cwm Taf LHB","85+",161,398,{"$f":"VLOOKUP(C478,'HB pops'!$A$2:$E$73,4,FALSE)","v":2033},{"$f":"VLOOKUP(C478,'HB pops'!$A$2:$E$73,5,FALSE)","v":4459},null,"Cwm Taf LHB","South Merthyr Tydfil","85+",161,398,true,true,true,true,true]
["South Rhondda00_02","South Rhondda","Cwm Taf LHB00_02","Cwm Taf LHB","00_02",820,740,{"$f":"VLOOKUP(C479,'HB pops'!$A$2:$E$73,4,FALSE)","v":5305},{"$f":"VLOOKUP(C479,'HB pops'!$A$2:$E$73,5,FALSE)","v":5189},null,"Cwm Taf LHB","South Rhondda","00_02",820,740,true,true,true,true,true]
["South Rhondda03_04","South Rhondda","Cwm Taf LHB03_04","Cwm Taf LHB","03_04",531,509,{"$f":"VLOOKUP(C480,'HB pops'!$A$2:$E$73,4,FALSE)","v":3711},{"$f":"VLOOKUP(C480,'HB pops'!$A$2:$E$73,5,FALSE)","v":3609},null,"Cwm Taf LHB","South Rhondda","03_04",531,509,true,true,true,true,true]
["South Rhondda05_14","South Rhondda","Cwm Taf LHB05_14","Cwm Taf LHB","05_14",2508,2430,{"$f":"VLOOKUP(C481,'HB pops'!$A$2:$E$73,4,FALSE)","v":17228},{"$f":"VLOOKUP(C481,'HB pops'!$A$2:$E$73,5,FALSE)","v":16308},null,"Cwm Taf LHB","South Rhondda","05_14",2508,2430,true,true,true,true,true]
["South Rhondda15_24","South Rhondda","Cwm Taf LHB15_24","Cwm Taf LHB","15_24",2880,2746,{"$f":"VLOOKUP(C482,'HB pops'!$A$2:$E$73,4,FALSE)","v":20099},{"$f":"VLOOKUP(C482,'HB pops'!$A$2:$E$73,5,FALSE)","v":19344},null,"Cwm Taf LHB","South Rhondda","15_24",2880,2746,true,true,true,true,true]
["South Rhondda25_44","South Rhondda","Cwm Taf LHB25_44","Cwm Taf LHB","25_44",5853,5586,{"$f":"VLOOKUP(C483,'HB pops'!$A$2:$E$73,4,FALSE)","v":41431},{"$f":"VLOOKUP(C483,'HB pops'!$A$2:$E$73,5,FALSE)","v":39269},null,"Cwm Taf LHB","South Rhondda","25_44",5853,5586,true,true,true,true,true]
["South Rhondda45_64","South Rhondda","Cwm Taf LHB45_64","Cwm Taf LHB","45_64",5936,5758,{"$f":"VLOOKUP(C484,'HB pops'!$A$2:$E$73,4,FALSE)","v":40262},{"$f":"VLOOKUP(C484,'HB pops'!$A$2:$E$73,5,FALSE)","v":39398},null,"Cwm Taf LHB","South Rhondda","45_64",5936,5758,true,true,true,true,true]
["South Rhondda65_74","South Rhondda","Cwm Taf LHB65_74","Cwm Taf LHB","65_74",2111,2184,{"$f":"VLOOKUP(C485,'HB pops'!$A$2:$E$73,4,FALSE)","v":14371},{"$f":"VLOOKUP(C485,'HB pops'!$A$2:$E$73,5,FALSE)","v":14912},null,"Cwm Taf LHB","South Rhondda","65_74",2111,2184,true,true,true,true,true]
["South Rhondda75_84","South Rhondda","Cwm Taf LHB75_84","Cwm Taf LHB","75_84",1115,1407,{"$f":"VLOOKUP(C486,'HB pops'!$A$2:$E$73,4,FALSE)","v":7374},{"$f":"VLOOKUP(C486,'HB pops'!$A$2:$E$73,5,FALSE)","v":9394},null,"Cwm Taf LHB","South Rhondda","75_84",1115,1407,true,true,true,true,true]
["South Rhondda85+","South Rhondda","Cwm Taf LHB85+","Cwm Taf LHB","85+",284,683,{"$f":"VLOOKUP(C487,'HB pops'!$A$2:$E$73,4,FALSE)","v":2033},{"$f":"VLOOKUP(C487,'HB pops'!$A$2:$E$73,5,FALSE)","v":4459},null,"Cwm Taf LHB","South Rhondda","85+",284,683,true,true,true,true,true]
["South Taf Ely00_02","South Taf Ely","Cwm Taf LHB00_02","Cwm Taf LHB","00_02",1067,1033,{"$f":"VLOOKUP(C488,'HB pops'!$A$2:$E$73,4,FALSE)","v":5305},{"$f":"VLOOKUP(C488,'HB pops'!$A$2:$E$73,5,FALSE)","v":5189},null,"Cwm Taf LHB","South Taf Ely","00_02",1067,1033,true,true,true,true,true]
["South Taf Ely03_04","South Taf Ely","Cwm Taf LHB03_04","Cwm Taf LHB","03_04",767,715,{"$f":"VLOOKUP(C489,'HB pops'!$A$2:$E$73,4,FALSE)","v":3711},{"$f":"VLOOKUP(C489,'HB pops'!$A$2:$E$73,5,FALSE)","v":3609},null,"Cwm Taf LHB","South Taf Ely","03_04",767,715,true,true,true,true,true]
["South Taf Ely05_14","South Taf Ely","Cwm Taf LHB05_14","Cwm Taf LHB","05_14",3441,3285,{"$f":"VLOOKUP(C490,'HB pops'!$A$2:$E$73,4,FALSE)","v":17228},{"$f":"VLOOKUP(C490,'HB pops'!$A$2:$E$73,5,FALSE)","v":16308},null,"Cwm Taf LHB","South Taf Ely","05_14",3441,3285,true,true,true,true,true]
["South Taf Ely15_24","South Taf Ely","Cwm Taf LHB15_24","Cwm Taf LHB","15_24",3215,3186,{"$f":"VLOOKUP(C491,'HB pops'!$A$2:$E$73,4,FALSE)","v":20099},{"$f":"VLOOKUP(C491,'HB pops'!$A$2:$E$73,5,FALSE)","v":19344},null,"Cwm Taf LHB","South Taf Ely","15_24",3215,3186,true,true,true,true,true]
["South Taf Ely25_44","South Taf Ely","Cwm Taf LHB25_44","Cwm Taf LHB","25_44",7655,7962,{"$f":"VLOOKUP(C492,'HB pops'!$A$2:$E$73,4,FALSE)","v":41431},{"$f":"VLOOKUP(C492,'HB pops'!$A$2:$E$73,5,FALSE)","v":39269},null,"Cwm Taf LHB","South Taf Ely","25_44",7655,7962,true,true,true,true,true]
["South Taf Ely45_64","South Taf Ely","Cwm Taf LHB45_64","Cwm Taf LHB","45_64",7540,7691,{"$f":"VLOOKUP(C493,'HB pops'!$A$2:$E$73,4,FALSE)","v":40262},{"$f":"VLOOKUP(C493,'HB pops'!$A$2:$E$73,5,FALSE)","v":39398},null,"Cwm Taf LHB","South Taf Ely","45_64",7540,7691,true,true,true,true,true]
["South Taf Ely65_74","South Taf Ely","Cwm Taf LHB65_74","Cwm Taf LHB","65_74",2699,2801,{"$f":"VLOOKUP(C494,'HB pops'!$A$2:$E$73,4,FALSE)","v":14371},{"$f":"VLOOKUP(C494,'HB pops'!$A$2:$E$73,5,FALSE)","v":14912},null,"Cwm Taf LHB","South Taf Ely","65_74",2699,2801,true,true,true,true,true]
["South Taf Ely75_84","South Taf Ely","Cwm Taf LHB75_84","Cwm Taf LHB","75_84",1214,1459,{"$f":"VLOOKUP(C495,'HB pops'!$A$2:$E$73,4,FALSE)","v":7374},{"$f":"VLOOKUP(C495,'HB pops'!$A$2:$E$73,5,FALSE)","v":9394},null,"Cwm Taf LHB","South Taf Ely","75_84",1214,1459,true,true,true,true,true]
["South Taf Ely85+","South Taf Ely","Cwm Taf LHB85+","Cwm Taf LHB","85+",319,636,{"$f":"VLOOKUP(C496,'HB pops'!$A$2:$E$73,4,FALSE)","v":2033},{"$f":"VLOOKUP(C496,'HB pops'!$A$2:$E$73,5,FALSE)","v":4459},null,"Cwm Taf LHB","South Taf Ely","85+",319,636,true,true,true,true,true]
["Amman/Gwendraeth00_02","Amman/Gwendraeth","Hywel Dda LHB00_02","Hywel Dda LHB","00_02",988,821,{"$f":"VLOOKUP(C497,'HB pops'!$A$2:$E$73,4,FALSE)","v":5902},{"$f":"VLOOKUP(C497,'HB pops'!$A$2:$E$73,5,FALSE)","v":5713},null,"Hywel Dda LHB","Amman/Gwendraeth","00_02",988,821,true,true,true,true,true]
["Amman/Gwendraeth03_04","Amman/Gwendraeth","Hywel Dda LHB03_04","Hywel Dda LHB","03_04",673,600,{"$f":"VLOOKUP(C498,'HB pops'!$A$2:$E$73,4,FALSE)","v":4000},{"$f":"VLOOKUP(C498,'HB pops'!$A$2:$E$73,5,FALSE)","v":3982},null,"Hywel Dda LHB","Amman/Gwendraeth","03_04",673,600,true,true,true,true,true]
["Amman/Gwendraeth05_14","Amman/Gwendraeth",{"$f":"D499&E499","v":"Hywel Dda LHB05_14"},"Hywel Dda LHB","05_14",3245,3036,{"$f":"VLOOKUP(C499,'HB pops'!$A$2:$E$73,4,FALSE)","v":20944},{"$f":"VLOOKUP(C499,'HB pops'!$A$2:$E$73,5,FALSE)","v":19446},null,"Hywel Dda LHB","Amman/Gwendraeth","05_14",3245,3036,true,true,true,true,true]
["Amman/Gwendraeth15_24","Amman/Gwendraeth","Hywel Dda LHB15_24","Hywel Dda LHB","15_24",3415,3136,{"$f":"VLOOKUP(C500,'HB pops'!$A$2:$E$73,4,FALSE)","v":26686},{"$f":"VLOOKUP(C500,'HB pops'!$A$2:$E$73,5,FALSE)","v":24805},null,"Hywel Dda LHB","Amman/Gwendraeth","15_24",3415,3136,true,true,true,true,true]
["Amman/Gwendraeth25_44","Amman/Gwendraeth","Hywel Dda LHB25_44","Hywel Dda LHB","25_44",6666,6728,{"$f":"VLOOKUP(C501,'HB pops'!$A$2:$E$73,4,FALSE)","v":44960},{"$f":"VLOOKUP(C501,'HB pops'!$A$2:$E$73,5,FALSE)","v":43208},null,"Hywel Dda LHB","Amman/Gwendraeth","25_44",6666,6728,true,true,true,true,true]
["Amman/Gwendraeth45_64","Amman/Gwendraeth",{"$f":"D502&E502","v":"Hywel Dda LHB45_64"},"Hywel Dda LHB","45_64",8039,8109,{"$f":"VLOOKUP(C502,'HB pops'!$A$2:$E$73,4,FALSE)","v":53741},{"$f":"VLOOKUP(C502,'HB pops'!$A$2:$E$73,5,FALSE)","v":53871},null,"Hywel Dda LHB","Amman/Gwendraeth","45_64",8039,8109,true,true,true,true,true]
["Amman/Gwendraeth65_74","Amman/Gwendraeth","Hywel Dda LHB65_74","Hywel Dda LHB","65_74",3358,3460,{"$f":"VLOOKUP(C503,'HB pops'!$A$2:$E$73,4,FALSE)","v":22386},{"$f":"VLOOKUP(C503,'HB pops'!$A$2:$E$73,5,FALSE)","v":23123},null,"Hywel Dda LHB","Amman/Gwendraeth","65_74",3358,3460,true,true,true,true,true]
["Amman/Gwendraeth75_84","Amman/Gwendraeth","Hywel Dda LHB75_84","Hywel Dda LHB","75_84",1755,2139,{"$f":"VLOOKUP(C504,'HB pops'!$A$2:$E$73,4,FALSE)","v":12318},{"$f":"VLOOKUP(C504,'HB pops'!$A$2:$E$73,5,FALSE)","v":14537},null,"Hywel Dda LHB","Amman/Gwendraeth","75_84",1755,2139,true,true,true,true,true]
["Amman/Gwendraeth85+","Amman/Gwendraeth","Hywel Dda LHB85+","Hywel Dda LHB","85+",542,1082,{"$f":"VLOOKUP(C505,'HB pops'!$A$2:$E$73,4,FALSE)","v":3705},{"$f":"VLOOKUP(C505,'HB pops'!$A$2:$E$73,5,FALSE)","v":7421},null,"Hywel Dda LHB","Amman/Gwendraeth","85+",542,1082,true,true,true,true,true]
["Llanelli00_02","Llanelli","Hywel Dda LHB00_02","Hywel Dda LHB","00_02",1117,1033,{"$f":"VLOOKUP(C506,'HB pops'!$A$2:$E$73,4,FALSE)","v":5902},{"$f":"VLOOKUP(C506,'HB pops'!$A$2:$E$73,5,FALSE)","v":5713},null,"Hywel Dda LHB","Llanelli","00_02",1117,1033,true,true,true,true,true]
["Llanelli03_04","Llanelli","Hywel Dda LHB03_04","Hywel Dda LHB","03_04",725,774,{"$f":"VLOOKUP(C507,'HB pops'!$A$2:$E$73,4,FALSE)","v":4000},{"$f":"VLOOKUP(C507,'HB pops'!$A$2:$E$73,5,FALSE)","v":3982},null,"Hywel Dda LHB","Llanelli","03_04",725,774,true,true,true,true,true]
["Llanelli05_14","Llanelli","Hywel Dda LHB05_14","Hywel Dda LHB","05_14",3596,3279,{"$f":"VLOOKUP(C508,'HB pops'!$A$2:$E$73,4,FALSE)","v":20944},{"$f":"VLOOKUP(C508,'HB pops'!$A$2:$E$73,5,FALSE)","v":19446},null,"Hywel Dda LHB","Llanelli","05_14",3596,3279,true,true,true,true,true]
["Llanelli15_24","Llanelli","Hywel Dda LHB15_24","Hywel Dda LHB","15_24",3801,3540,{"$f":"VLOOKUP(C509,'HB pops'!$A$2:$E$73,4,FALSE)","v":26686},{"$f":"VLOOKUP(C509,'HB pops'!$A$2:$E$73,5,FALSE)","v":24805},null,"Hywel Dda LHB","Llanelli","15_24",3801,3540,true,true,true,true,true]
["Llanelli25_44","Llanelli","Hywel Dda LHB25_44","Hywel Dda LHB","25_44",7450,7524,{"$f":"VLOOKUP(C510,'HB pops'!$A$2:$E$73,4,FALSE)","v":44960},{"$f":"VLOOKUP(C510,'HB pops'!$A$2:$E$73,5,FALSE)","v":43208},null,"Hywel Dda LHB","Llanelli","25_44",7450,7524,true,true,true,true,true]
["Llanelli45_64","Llanelli","Hywel Dda LHB45_64","Hywel Dda LHB","45_64",8002,8075,{"$f":"VLOOKUP(C511,'HB pops'!$A$2:$E$73,4,FALSE)","v":53741},{"$f":"VLOOKUP(C511,'HB pops'!$A$2:$E$73,5,FALSE)","v":53871},null,"Hywel Dda LHB","Llanelli","45_64",8002,8075,true,true,true,true,true]
["Llanelli65_74","Llanelli","Hywel Dda LHB65_74","Hywel Dda LHB","65_74",3031,3254,{"$f":"VLOOKUP(C512,'HB pops'!$A$2:$E$73,4,FALSE)","v":22386},{"$f":"VLOOKUP(C512,'HB pops'!$A$2:$E$73,5,FALSE)","v":23123},null,"Hywel Dda LHB","Llanelli","65_74",3031,3254,true,true,true,true,true]
["Llanelli75_84","Llanelli","Hywel Dda LHB75_84","Hywel Dda LHB","75_84",1830,2176,{"$f":"VLOOKUP(C513,'HB pops'!$A$2:$E$73,4,FALSE)","v":12318},{"$f":"VLOOKUP(C513,'HB pops'!$A$2:$E$73,5,FALSE)","v":14537},null,"Hywel Dda LHB","Llanelli","75_84",1830,2176,true,true,true,true,true]
["Llanelli85+","Llanelli","Hywel Dda LHB85+","Hywel Dda LHB","85+",526,1229,{"$f":"VLOOKUP(C514,'HB pops'!$A$2:$E$73,4,FALSE)","v":3705},{"$f":"VLOOKUP(C514,'HB pops'!$A$2:$E$73,5,FALSE)","v":7421},null,"Hywel Dda LHB","Llanelli","85+",526,1229,true,true,true,true,true]
[{"$f":"B515&E515","v":"North Ceredigion00_02"},"North Ceredigion",{"$f":"D515&E515","v":"Hywel Dda LHB00_02"},"Hywel Dda LHB","00_02",568,576,{"$f":"VLOOKUP(C515,'HB pops'!$A$2:$E$73,4,FALSE)","v":5902},{"$f":"VLOOKUP(C515,'HB pops'!$A$2:$E$73,5,FALSE)","v":5713},null,"Hywel Dda LHB","North Ceredigion","00_02",568,576,true,true,true,true,true]
["North Ceredigion03_04","North Ceredigion","Hywel Dda LHB03_04","Hywel Dda LHB","03_04",349,380,{"$f":"VLOOKUP(C516,'HB pops'!$A$2:$E$73,4,FALSE)","v":4000},{"$f":"VLOOKUP(C516,'HB pops'!$A$2:$E$73,5,FALSE)","v":3982},null,"Hywel Dda LHB","North Ceredigion","03_04",349,380,true,true,true,true,true]
["North Ceredigion05_14","North Ceredigion","Hywel Dda LHB05_14","Hywel Dda LHB","05_14",2127,1927,{"$f":"VLOOKUP(C517,'HB pops'!$A$2:$E$73,4,FALSE)","v":20944},{"$f":"VLOOKUP(C517,'HB pops'!$A$2:$E$73,5,FALSE)","v":19446},null,"Hywel Dda LHB","North Ceredigion","05_14",2127,1927,true,true,true,true,true]
["North Ceredigion15_24","North Ceredigion","Hywel Dda LHB15_24","Hywel Dda LHB","15_24",5786,5391,{"$f":"VLOOKUP(C518,'HB pops'!$A$2:$E$73,4,FALSE)","v":26686},{"$f":"VLOOKUP(C518,'HB pops'!$A$2:$E$73,5,FALSE)","v":24805},null,"Hywel Dda LHB","North Ceredigion","15_24",5786,5391,true,true,true,true,true]
["North Ceredigion25_44","North Ceredigion","Hywel Dda LHB25_44","Hywel Dda LHB","25_44",5998,4980,{"$f":"VLOOKUP(C519,'HB pops'!$A$2:$E$73,4,FALSE)","v":44960},{"$f":"VLOOKUP(C519,'HB pops'!$A$2:$E$73,5,FALSE)","v":43208},null,"Hywel Dda LHB","North Ceredigion","25_44",5998,4980,true,true,true,true,true]
["North Ceredigion45_64","North Ceredigion","Hywel Dda LHB45_64","Hywel Dda LHB","45_64",5826,5508,{"$f":"VLOOKUP(C520,'HB pops'!$A$2:$E$73,4,FALSE)","v":53741},{"$f":"VLOOKUP(C520,'HB pops'!$A$2:$E$73,5,FALSE)","v":53871},null,"Hywel Dda LHB","North Ceredigion","45_64",5826,5508,true,true,true,true,true]
["North Ceredigion65_74","North Ceredigion","Hywel Dda LHB65_74","Hywel Dda LHB","65_74",2307,2402,{"$f":"VLOOKUP(C521,'HB pops'!$A$2:$E$73,4,FALSE)","v":22386},{"$f":"VLOOKUP(C521,'HB pops'!$A$2:$E$73,5,FALSE)","v":23123},null,"Hywel Dda LHB","North Ceredigion","65_74",2307,2402,true,true,true,true,true]
["North Ceredigion75_84","North Ceredigion","Hywel Dda LHB75_84","Hywel Dda LHB","75_84",1298,1454,{"$f":"VLOOKUP(C522,'HB pops'!$A$2:$E$73,4,FALSE)","v":12318},{"$f":"VLOOKUP(C522,'HB pops'!$A$2:$E$73,5,FALSE)","v":14537},null,"Hywel Dda LHB","North Ceredigion","75_84",1298,1454,true,true,true,true,true]
["North Ceredigion85+","North Ceredigion","Hywel Dda LHB85+","Hywel Dda LHB","85+",418,784,{"$f":"VLOOKUP(C523,'HB pops'!$A$2:$E$73,4,FALSE)","v":3705},{"$f":"VLOOKUP(C523,'HB pops'!$A$2:$E$73,5,FALSE)","v":7421},null,"Hywel Dda LHB","North Ceredigion","85+",418,784,true,true,true,true,true]
["North Pembrokeshire00_02","North Pembrokeshire","Hywel Dda LHB00_02","Hywel Dda LHB","00_02",1051,1073,{"$f":"VLOOKUP(C524,'HB pops'!$A$2:$E$73,4,FALSE)","v":5902},{"$f":"VLOOKUP(C524,'HB pops'!$A$2:$E$73,5,FALSE)","v":5713},null,"Hywel Dda LHB","North Pembrokeshire","00_02",1051,1073,{"$f":"K524=D524","v":true},{"$f":"L524=B524","v":true},{"$f":"M524=E524","v":true},{"$f":"N524=F524","v":true},{"$f":"O524=G524","v":true}]
["North Pembrokeshire03_04","North Pembrokeshire","Hywel Dda LHB03_04","Hywel Dda LHB","03_04",675,694,{"$f":"VLOOKUP(C525,'HB pops'!$A$2:$E$73,4,FALSE)","v":4000},{"$f":"VLOOKUP(C525,'HB pops'!$A$2:$E$73,5,FALSE)","v":3982},null,"Hywel Dda LHB","North Pembrokeshire","03_04",675,694,true,true,true,true,true]
["North Pembrokeshire05_14","North Pembrokeshire","Hywel Dda LHB05_14","Hywel Dda LHB","05_14",3539,3381,{"$f":"VLOOKUP(C526,'HB pops'!$A$2:$E$73,4,FALSE)","v":20944},{"$f":"VLOOKUP(C526,'HB pops'!$A$2:$E$73,5,FALSE)","v":19446},null,"Hywel Dda LHB","North Pembrokeshire","05_14",3539,3381,true,true,true,true,true]
["North Pembrokeshire15_24","North Pembrokeshire","Hywel Dda LHB15_24","Hywel Dda LHB","15_24",3803,3604,{"$f":"VLOOKUP(C527,'HB pops'!$A$2:$E$73,4,FALSE)","v":26686},{"$f":"VLOOKUP(C527,'HB pops'!$A$2:$E$73,5,FALSE)","v":24805},null,"Hywel Dda LHB","North Pembrokeshire","15_24",3803,3604,true,true,true,true,true]
["North Pembrokeshire25_44","North Pembrokeshire","Hywel Dda LHB25_44","Hywel Dda LHB","25_44",7175,7085,{"$f":"VLOOKUP(C528,'HB pops'!$A$2:$E$73,4,FALSE)","v":44960},{"$f":"VLOOKUP(C528,'HB pops'!$A$2:$E$73,5,FALSE)","v":43208},null,"Hywel Dda LHB","North Pembrokeshire","25_44",7175,7085,true,true,true,true,true]
["North Pembrokeshire45_64","North Pembrokeshire","Hywel Dda LHB45_64","Hywel Dda LHB","45_64",8967,8887,{"$f":"VLOOKUP(C529,'HB pops'!$A$2:$E$73,4,FALSE)","v":53741},{"$f":"VLOOKUP(C529,'HB pops'!$A$2:$E$73,5,FALSE)","v":53871},null,"Hywel Dda LHB","North Pembrokeshire","45_64",8967,8887,true,true,true,true,true]
["North Pembrokeshire65_74","North Pembrokeshire","Hywel Dda LHB65_74","Hywel Dda LHB","65_74",3564,3812,{"$f":"VLOOKUP(C530,'HB pops'!$A$2:$E$73,4,FALSE)","v":22386},{"$f":"VLOOKUP(C530,'HB pops'!$A$2:$E$73,5,FALSE)","v":23123},null,"Hywel Dda LHB","North Pembrokeshire","65_74",3564,3812,true,true,true,true,true]
["North Pembrokeshire75_84","North Pembrokeshire","Hywel Dda LHB75_84","Hywel Dda LHB","75_84",2025,2460,{"$f":"VLOOKUP(C531,'HB pops'!$A$2:$E$73,4,FALSE)","v":12318},{"$f":"VLOOKUP(C531,'HB pops'!$A$2:$E$73,5,FALSE)","v":14537},null,"Hywel Dda LHB","North Pembrokeshire","75_84",2025,2460,true,true,true,true,true]
["North Pembrokeshire85+","North Pembrokeshire","Hywel Dda LHB85+","Hywel Dda LHB","85+",582,1186,{"$f":"VLOOKUP(C532,'HB pops'!$A$2:$E$73,4,FALSE)","v":3705},{"$f":"VLOOKUP(C532,'HB pops'!$A$2:$E$73,5,FALSE)","v":7421},null,"Hywel Dda LHB","North Pembrokeshire","85+",582,1186,true,true,true,true,true]
["South Ceredigion00_02","South Ceredigion","Hywel Dda LHB00_02","Hywel Dda LHB","00_02",652,644,{"$f":"VLOOKUP(C533,'HB pops'!$A$2:$E$73,4,FALSE)","v":5902},{"$f":"VLOOKUP(C533,'HB pops'!$A$2:$E$73,5,FALSE)","v":5713},null,"Hywel Dda LHB","South Ceredigion","00_02",652,644,true,true,true,true,true]
["South Ceredigion03_04","South Ceredigion","Hywel Dda LHB03_04","Hywel Dda LHB","03_04",472,425,{"$f":"VLOOKUP(C534,'HB pops'!$A$2:$E$73,4,FALSE)","v":4000},{"$f":"VLOOKUP(C534,'HB pops'!$A$2:$E$73,5,FALSE)","v":3982},null,"Hywel Dda LHB","South Ceredigion","03_04",472,425,true,true,true,true,true]
["South Ceredigion05_14","South Ceredigion","Hywel Dda LHB05_14","Hywel Dda LHB","05_14",2371,2247,{"$f":"VLOOKUP(C535,'HB pops'!$A$2:$E$73,4,FALSE)","v":20944},{"$f":"VLOOKUP(C535,'HB pops'!$A$2:$E$73,5,FALSE)","v":19446},null,"Hywel Dda LHB","South Ceredigion","05_14",2371,2247,true,true,true,true,true]
["South Ceredigion15_24","South Ceredigion","Hywel Dda LHB15_24","Hywel Dda LHB","15_24",3115,2657,{"$f":"VLOOKUP(C536,'HB pops'!$A$2:$E$73,4,FALSE)","v":26686},{"$f":"VLOOKUP(C536,'HB pops'!$A$2:$E$73,5,FALSE)","v":24805},null,"Hywel Dda LHB","South Ceredigion","15_24",3115,2657,true,true,true,true,true]
["South Ceredigion25_44","South Ceredigion","Hywel Dda LHB25_44","Hywel Dda LHB","25_44",5179,4726,{"$f":"VLOOKUP(C537,'HB pops'!$A$2:$E$73,4,FALSE)","v":44960},{"$f":"VLOOKUP(C537,'HB pops'!$A$2:$E$73,5,FALSE)","v":43208},null,"Hywel Dda LHB","South Ceredigion","25_44",5179,4726,true,true,true,true,true]
["South Ceredigion45_64","South Ceredigion","Hywel Dda LHB45_64","Hywel Dda LHB","45_64",6941,7147,{"$f":"VLOOKUP(C538,'HB pops'!$A$2:$E$73,4,FALSE)","v":53741},{"$f":"VLOOKUP(C538,'HB pops'!$A$2:$E$73,5,FALSE)","v":53871},null,"Hywel Dda LHB","South Ceredigion","45_64",6941,7147,true,true,true,true,true]
["South Ceredigion65_74","South Ceredigion","Hywel Dda LHB65_74","Hywel Dda LHB","65_74",3227,3224,{"$f":"VLOOKUP(C539,'HB pops'!$A$2:$E$73,4,FALSE)","v":22386},{"$f":"VLOOKUP(C539,'HB pops'!$A$2:$E$73,5,FALSE)","v":23123},null,"Hywel Dda LHB","South Ceredigion","65_74",3227,3224,true,true,true,true,true]
["South Ceredigion75_84","South Ceredigion","Hywel Dda LHB75_84","Hywel Dda LHB","75_84",1680,1890,{"$f":"VLOOKUP(C540,'HB pops'!$A$2:$E$73,4,FALSE)","v":12318},{"$f":"VLOOKUP(C540,'HB pops'!$A$2:$E$73,5,FALSE)","v":14537},null,"Hywel Dda LHB","South Ceredigion","75_84",1680,1890,true,true,true,true,true]
["South Ceredigion85+","South Ceredigion","Hywel Dda LHB85+","Hywel Dda LHB","85+",499,957,{"$f":"VLOOKUP(C541,'HB pops'!$A$2:$E$73,4,FALSE)","v":3705},{"$f":"VLOOKUP(C541,'HB pops'!$A$2:$E$73,5,FALSE)","v":7421},null,"Hywel Dda LHB","South Ceredigion","85+",499,957,true,true,true,true,true]
["South Pembrokeshire00_02","South Pembrokeshire","Hywel Dda LHB00_02","Hywel Dda LHB","00_02",772,791,{"$f":"VLOOKUP(C542,'HB pops'!$A$2:$E$73,4,FALSE)","v":5902},{"$f":"VLOOKUP(C542,'HB pops'!$A$2:$E$73,5,FALSE)","v":5713},null,"Hywel Dda LHB","South Pembrokeshire","00_02",772,791,true,true,true,true,true]
["South Pembrokeshire03_04","South Pembrokeshire","Hywel Dda LHB03_04","Hywel Dda LHB","03_04",599,556,{"$f":"VLOOKUP(C543,'HB pops'!$A$2:$E$73,4,FALSE)","v":4000},{"$f":"VLOOKUP(C543,'HB pops'!$A$2:$E$73,5,FALSE)","v":3982},null,"Hywel Dda LHB","South Pembrokeshire","03_04",599,556,true,true,true,true,true]
["South Pembrokeshire05_14","South Pembrokeshire","Hywel Dda LHB05_14","Hywel Dda LHB","05_14",3063,2772,{"$f":"VLOOKUP(C544,'HB pops'!$A$2:$E$73,4,FALSE)","v":20944},{"$f":"VLOOKUP(C544,'HB pops'!$A$2:$E$73,5,FALSE)","v":19446},null,"Hywel Dda LHB","South Pembrokeshire","05_14",3063,2772,true,true,true,true,true]
["South Pembrokeshire15_24","South Pembrokeshire","Hywel Dda LHB15_24","Hywel Dda LHB","15_24",3235,3084,{"$f":"VLOOKUP(C545,'HB pops'!$A$2:$E$73,4,FALSE)","v":26686},{"$f":"VLOOKUP(C545,'HB pops'!$A$2:$E$73,5,FALSE)","v":24805},null,"Hywel Dda LHB","South Pembrokeshire","15_24",3235,3084,true,true,true,true,true]
["South Pembrokeshire25_44","South Pembrokeshire","Hywel Dda LHB25_44","Hywel Dda LHB","25_44",6016,5974,{"$f":"VLOOKUP(C546,'HB pops'!$A$2:$E$73,4,FALSE)","v":44960},{"$f":"VLOOKUP(C546,'HB pops'!$A$2:$E$73,5,FALSE)","v":43208},null,"Hywel Dda LHB","South Pembrokeshire","25_44",6016,5974,true,true,true,true,true]
["South Pembrokeshire45_64","South Pembrokeshire","Hywel Dda LHB45_64","Hywel Dda LHB","45_64",7808,7785,{"$f":"VLOOKUP(C547,'HB pops'!$A$2:$E$73,4,FALSE)","v":53741},{"$f":"VLOOKUP(C547,'HB pops'!$A$2:$E$73,5,FALSE)","v":53871},null,"Hywel Dda LHB","South Pembrokeshire","45_64",7808,7785,true,true,true,true,true]
["South Pembrokeshire65_74","South Pembrokeshire","Hywel Dda LHB65_74","Hywel Dda LHB","65_74",3460,3553,{"$f":"VLOOKUP(C548,'HB pops'!$A$2:$E$73,4,FALSE)","v":22386},{"$f":"VLOOKUP(C548,'HB pops'!$A$2:$E$73,5,FALSE)","v":23123},null,"Hywel Dda LHB","South Pembrokeshire","65_74",3460,3553,true,true,true,true,true]
["South Pembrokeshire75_84","South Pembrokeshire","Hywel Dda LHB75_84","Hywel Dda LHB","75_84",1858,2158,{"$f":"VLOOKUP(C549,'HB pops'!$A$2:$E$73,4,FALSE)","v":12318},{"$f":"VLOOKUP(C549,'HB pops'!$A$2:$E$73,5,FALSE)","v":14537},null,"Hywel Dda LHB","South Pembrokeshire","75_84",1858,2158,true,true,true,true,true]
["South Pembrokeshire85+","South Pembrokeshire","Hywel Dda LHB85+","Hywel Dda LHB","85+",546,1106,{"$f":"VLOOKUP(C550,'HB pops'!$A$2:$E$73,4,FALSE)","v":3705},{"$f":"VLOOKUP(C550,'HB pops'!$A$2:$E$73,5,FALSE)","v":7421},null,"Hywel Dda LHB","South Pembrokeshire","85+",546,1106,true,true,true,true,true]
["Taf / Teifi / Tywi00_02","Taf / Teifi / Tywi","Hywel Dda LHB00_02","Hywel Dda LHB","00_02",754,775,{"$f":"VLOOKUP(C551,'HB pops'!$A$2:$E$73,4,FALSE)","v":5902},{"$f":"VLOOKUP(C551,'HB pops'!$A$2:$E$73,5,FALSE)","v":5713},null,"Hywel Dda LHB","Taf / Teifi / Tywi","00_02",754,775,true,true,true,true,true]
["Taf / Teifi / Tywi03_04","Taf / Teifi / Tywi","Hywel Dda LHB03_04","Hywel Dda LHB","03_04",507,553,{"$f":"VLOOKUP(C552,'HB pops'!$A$2:$E$73,4,FALSE)","v":4000},{"$f":"VLOOKUP(C552,'HB pops'!$A$2:$E$73,5,FALSE)","v":3982},null,"Hywel Dda LHB","Taf / Teifi / Tywi","03_04",507,553,true,true,true,true,true]
["Taf / Teifi / Tywi05_14","Taf / Teifi / Tywi","Hywel Dda LHB05_14","Hywel Dda LHB","05_14",3003,2804,{"$f":"VLOOKUP(C553,'HB pops'!$A$2:$E$73,4,FALSE)","v":20944},{"$f":"VLOOKUP(C553,'HB pops'!$A$2:$E$73,5,FALSE)","v":19446},null,"Hywel Dda LHB","Taf / Teifi / Tywi","05_14",3003,2804,true,true,true,true,true]
["Taf / Teifi / Tywi15_24","Taf / Teifi / Tywi","Hywel Dda LHB15_24","Hywel Dda LHB","15_24",3531,3393,{"$f":"VLOOKUP(C554,'HB pops'!$A$2:$E$73,4,FALSE)","v":26686},{"$f":"VLOOKUP(C554,'HB pops'!$A$2:$E$73,5,FALSE)","v":24805},null,"Hywel Dda LHB","Taf / Teifi / Tywi","15_24",3531,3393,true,true,true,true,true]
["Taf / Teifi / Tywi25_44","Taf / Teifi / Tywi","Hywel Dda LHB25_44","Hywel Dda LHB","25_44",6476,6191,{"$f":"VLOOKUP(C555,'HB pops'!$A$2:$E$73,4,FALSE)","v":44960},{"$f":"VLOOKUP(C555,'HB pops'!$A$2:$E$73,5,FALSE)","v":43208},null,"Hywel Dda LHB","Taf / Teifi / Tywi","25_44",6476,6191,true,true,true,true,true]
["Taf / Teifi / Tywi45_64","Taf / Teifi / Tywi","Hywel Dda LHB45_64","Hywel Dda LHB","45_64",8158,8360,{"$f":"VLOOKUP(C556,'HB pops'!$A$2:$E$73,4,FALSE)","v":53741},{"$f":"VLOOKUP(C556,'HB pops'!$A$2:$E$73,5,FALSE)","v":53871},null,"Hywel Dda LHB","Taf / Teifi / Tywi","45_64",8158,8360,true,true,true,true,true]
["Taf / Teifi / Tywi65_74","Taf / Teifi / Tywi","Hywel Dda LHB65_74","Hywel Dda LHB","65_74",3439,3418,{"$f":"VLOOKUP(C557,'HB pops'!$A$2:$E$73,4,FALSE)","v":22386},{"$f":"VLOOKUP(C557,'HB pops'!$A$2:$E$73,5,FALSE)","v":23123},null,"Hywel Dda LHB","Taf / Teifi / Tywi","65_74",3439,3418,true,true,true,true,true]
["Taf / Teifi / Tywi75_84","Taf / Teifi / Tywi","Hywel Dda LHB75_84","Hywel Dda LHB","75_84",1872,2260,{"$f":"VLOOKUP(C558,'HB pops'!$A$2:$E$73,4,FALSE)","v":12318},{"$f":"VLOOKUP(C558,'HB pops'!$A$2:$E$73,5,FALSE)","v":14537},null,"Hywel Dda LHB","Taf / Teifi / Tywi","75_84",1872,2260,true,true,true,true,true]
["Taf / Teifi / Tywi85+","Taf / Teifi / Tywi","Hywel Dda LHB85+","Hywel Dda LHB","85+",592,1077,{"$f":"VLOOKUP(C559,'HB pops'!$A$2:$E$73,4,FALSE)","v":3705},{"$f":"VLOOKUP(C559,'HB pops'!$A$2:$E$73,5,FALSE)","v":7421},null,"Hywel Dda LHB","Taf / Teifi / Tywi","85+",592,1077,true,true,true,true,true]
["Mid Powys00_02","Mid Powys","Powys Teaching LHB00_02","Powys Teaching LHB","00_02",387,371,{"$f":"VLOOKUP(C560,'HB pops'!$A$2:$E$73,4,FALSE)","v":1882},{"$f":"VLOOKUP(C560,'HB pops'!$A$2:$E$73,5,FALSE)","v":1896},null,"Powys Teaching LHB","Mid Powys","00_02",387,371,true,true,true,true,true]
["Mid Powys03_04","Mid Powys","Powys Teaching LHB03_04","Powys Teaching LHB","03_04",260,235,{"$f":"VLOOKUP(C561,'HB pops'!$A$2:$E$73,4,FALSE)","v":1435},{"$f":"VLOOKUP(C561,'HB pops'!$A$2:$E$73,5,FALSE)","v":1320},null,"Powys Teaching LHB","Mid Powys","03_04",260,235,true,true,true,true,true]
["Mid Powys05_14","Mid Powys","Powys Teaching LHB05_14","Powys Teaching LHB","05_14",1472,1342,{"$f":"VLOOKUP(C562,'HB pops'!$A$2:$E$73,4,FALSE)","v":7359},{"$f":"VLOOKUP(C562,'HB pops'!$A$2:$E$73,5,FALSE)","v":7004},null,"Powys Teaching LHB","Mid Powys","05_14",1472,1342,true,true,true,true,true]
["Mid Powys15_24","Mid Powys","Powys Teaching LHB15_24","Powys Teaching LHB","15_24",1656,1477,{"$f":"VLOOKUP(C563,'HB pops'!$A$2:$E$73,4,FALSE)","v":8108},{"$f":"VLOOKUP(C563,'HB pops'!$A$2:$E$73,5,FALSE)","v":7212},null,"Powys Teaching LHB","Mid Powys","15_24",1656,1477,true,true,true,true,true]
["Mid Powys25_44","Mid Powys","Powys Teaching LHB25_44","Powys Teaching LHB","25_44",2977,2799,{"$f":"VLOOKUP(C564,'HB pops'!$A$2:$E$73,4,FALSE)","v":15036},{"$f":"VLOOKUP(C564,'HB pops'!$A$2:$E$73,5,FALSE)","v":14621},null,"Powys Teaching LHB","Mid Powys","25_44",2977,2799,true,true,true,true,true]
["Mid Powys45_64","Mid Powys","Powys Teaching LHB45_64","Powys Teaching LHB","45_64",4092,4184,{"$f":"VLOOKUP(C565,'HB pops'!$A$2:$E$73,4,FALSE)","v":20224},{"$f":"VLOOKUP(C565,'HB pops'!$A$2:$E$73,5,FALSE)","v":20354},null,"Powys Teaching LHB","Mid Powys","45_64",4092,4184,true,true,true,true,true]
["Mid Powys65_74","Mid Powys","Powys Teaching LHB65_74","Powys Teaching LHB","65_74",2041,2015,{"$f":"VLOOKUP(C566,'HB pops'!$A$2:$E$73,4,FALSE)","v":8703},{"$f":"VLOOKUP(C566,'HB pops'!$A$2:$E$73,5,FALSE)","v":8819},null,"Powys Teaching LHB","Mid Powys","65_74",2041,2015,true,true,true,true,true]
["Mid Powys75_84","Mid Powys","Powys Teaching LHB75_84","Powys Teaching LHB","75_84",1134,1292,{"$f":"VLOOKUP(C567,'HB pops'!$A$2:$E$73,4,FALSE)","v":4802},{"$f":"VLOOKUP(C567,'HB pops'!$A$2:$E$73,5,FALSE)","v":5589},null,"Powys Teaching LHB","Mid Powys","75_84",1134,1292,true,true,true,true,true]
["Mid Powys85+","Mid Powys","Powys Teaching LHB85+","Powys Teaching LHB","85+",340,652,{"$f":"VLOOKUP(C568,'HB pops'!$A$2:$E$73,4,FALSE)","v":1474},{"$f":"VLOOKUP(C568,'HB pops'!$A$2:$E$73,5,FALSE)","v":2830},null,"Powys Teaching LHB","Mid Powys","85+",340,652,true,true,true,true,true]
["North Powys00_02","North Powys","Powys Teaching LHB00_02","Powys Teaching LHB","00_02",886,900,{"$f":"VLOOKUP(C569,'HB pops'!$A$2:$E$73,4,FALSE)","v":1882},{"$f":"VLOOKUP(C569,'HB pops'!$A$2:$E$73,5,FALSE)","v":1896},null,"Powys Teaching LHB","North Powys","00_02",886,900,true,true,true,true,true]
["North Powys03_04","North Powys","Powys Teaching LHB03_04","Powys Teaching LHB","03_04",714,678,{"$f":"VLOOKUP(C570,'HB pops'!$A$2:$E$73,4,FALSE)","v":1435},{"$f":"VLOOKUP(C570,'HB pops'!$A$2:$E$73,5,FALSE)","v":1320},null,"Powys Teaching LHB","North Powys","03_04",714,678,true,true,true,true,true]
["North Powys05_14","North Powys","Powys Teaching LHB05_14","Powys Teaching LHB","05_14",3560,3402,{"$f":"VLOOKUP(C571,'HB pops'!$A$2:$E$73,4,FALSE)","v":7359},{"$f":"VLOOKUP(C571,'HB pops'!$A$2:$E$73,5,FALSE)","v":7004},null,"Powys Teaching LHB","North Powys","05_14",3560,3402,true,true,true,true,true]
["North Powys15_24","North Powys","Powys Teaching LHB15_24","Powys Teaching LHB","15_24",3860,3429,{"$f":"VLOOKUP(C572,'HB pops'!$A$2:$E$73,4,FALSE)","v":8108},{"$f":"VLOOKUP(C572,'HB pops'!$A$2:$E$73,5,FALSE)","v":7212},null,"Powys Teaching LHB","North Powys","15_24",3860,3429,true,true,true,true,true]
["North Powys25_44","North Powys","Powys Teaching LHB25_44","Powys Teaching LHB","25_44",7264,6897,{"$f":"VLOOKUP(C573,'HB pops'!$A$2:$E$73,4,FALSE)","v":15036},{"$f":"VLOOKUP(C573,'HB pops'!$A$2:$E$73,5,FALSE)","v":14621},null,"Powys Teaching LHB","North Powys","25_44",7264,6897,true,true,true,true,true]
["North Powys45_64","North Powys","Powys Teaching LHB45_64","Powys Teaching LHB","45_64",9516,9399,{"$f":"VLOOKUP(C574,'HB pops'!$A$2:$E$73,4,FALSE)","v":20224},{"$f":"VLOOKUP(C574,'HB pops'!$A$2:$E$73,5,FALSE)","v":20354},null,"Powys Teaching LHB","North Powys","45_64",9516,9399,true,true,true,true,true]
["North Powys65_74","North Powys","Powys Teaching LHB65_74","Powys Teaching LHB","65_74",3898,3864,{"$f":"VLOOKUP(C575,'HB pops'!$A$2:$E$73,4,FALSE)","v":8703},{"$f":"VLOOKUP(C575,'HB pops'!$A$2:$E$73,5,FALSE)","v":8819},null,"Powys Teaching LHB","North Powys","65_74",3898,3864,true,true,true,true,true]
["North Powys75_84","North Powys","Powys Teaching LHB75_84","Powys Teaching LHB","75_84",2138,2430,{"$f":"VLOOKUP(C576,'HB pops'!$A$2:$E$73,4,FALSE)","v":4802},{"$f":"VLOOKUP(C576,'HB pops'!$A$2:$E$73,5,FALSE)","v":5589},null,"Powys Teaching LHB","North Powys","75_84",2138,2430,true,true,true,true,true]
["North Powys85+","North Powys","Powys Teaching LHB85+","Powys Teaching LHB","85+",663,1190,{"$f":"VLOOKUP(C577,'HB pops'!$A$2:$E$73,4,FALSE)","v":1474},{"$f":"VLOOKUP(C577,'HB pops'!$A$2:$E$73,5,FALSE)","v":2830},null,"Powys Teaching LHB","North Powys","85+",663,1190,true,true,true,true,true]
["South Powys00_02","South Powys","Powys Teaching LHB00_02","Powys Teaching LHB","00_02",609,625,{"$f":"VLOOKUP(C578,'HB pops'!$A$2:$E$73,4,FALSE)","v":1882},{"$f":"VLOOKUP(C578,'HB pops'!$A$2:$E$73,5,FALSE)","v":1896},null,"Powys Teaching LHB","South Powys","00_02",609,625,true,true,true,true,true]
[{"$f":"B579&E579","v":"South Powys03_04"},"South Powys",{"$f":"D579&E579","v":"Powys Teaching LHB03_04"},"Powys Teaching LHB","03_04",461,407,{"$f":"VLOOKUP(C579,'HB pops'!$A$2:$E$73,4,FALSE)","v":1435},{"$f":"VLOOKUP(C579,'HB pops'!$A$2:$E$73,5,FALSE)","v":1320},null,"Powys Teaching LHB","South Powys","03_04",461,407,true,true,true,true,true]
["South Powys05_14","South Powys","Powys Teaching LHB05_14","Powys Teaching LHB","05_14",2327,2260,{"$f":"VLOOKUP(C580,'HB pops'!$A$2:$E$73,4,FALSE)","v":7359},{"$f":"VLOOKUP(C580,'HB pops'!$A$2:$E$73,5,FALSE)","v":7004},null,"Powys Teaching LHB","South Powys","05_14",2327,2260,true,true,true,true,true]
["South Powys15_24","South Powys","Powys Teaching LHB15_24","Powys Teaching LHB","15_24",2592,2306,{"$f":"VLOOKUP(C581,'HB pops'!$A$2:$E$73,4,FALSE)","v":8108},{"$f":"VLOOKUP(C581,'HB pops'!$A$2:$E$73,5,FALSE)","v":7212},null,"Powys Teaching LHB","South Powys","15_24",2592,2306,true,true,true,true,true]
["South Powys25_44","South Powys","Powys Teaching LHB25_44","Powys Teaching LHB","25_44",4795,4925,{"$f":"VLOOKUP(C582,'HB pops'!$A$2:$E$73,4,FALSE)","v":15036},{"$f":"VLOOKUP(C582,'HB pops'!$A$2:$E$73,5,FALSE)","v":14621},null,"Powys Teaching LHB","South Powys","25_44",4795,4925,true,true,true,true,true]
["South Powys45_64","South Powys","Powys Teaching LHB45_64","Powys Teaching LHB","45_64",6616,6771,{"$f":"VLOOKUP(C583,'HB pops'!$A$2:$E$73,4,FALSE)","v":20224},{"$f":"VLOOKUP(C583,'HB pops'!$A$2:$E$73,5,FALSE)","v":20354},null,"Powys Teaching LHB","South Powys","45_64",6616,6771,true,true,true,true,true]
["South Powys65_74","South Powys","Powys Teaching LHB65_74","Powys Teaching LHB","65_74",2764,2940,{"$f":"VLOOKUP(C584,'HB pops'!$A$2:$E$73,4,FALSE)","v":8703},{"$f":"VLOOKUP(C584,'HB pops'!$A$2:$E$73,5,FALSE)","v":8819},null,"Powys Teaching LHB","South Powys","65_74",2764,2940,true,true,true,true,true]
["South Powys75_84","South Powys","Powys Teaching LHB75_84","Powys Teaching LHB","75_84",1530,1867,{"$f":"VLOOKUP(C585,'HB pops'!$A$2:$E$73,4,FALSE)","v":4802},{"$f":"VLOOKUP(C585,'HB pops'!$A$2:$E$73,5,FALSE)","v":5589},null,"Powys Teaching LHB","South Powys","75_84",1530,1867,true,true,true,true,true]
["South Powys85+","South Powys","Powys Teaching LHB85+","Powys Teaching LHB","85+",471,988,{"$f":"VLOOKUP(C586,'HB pops'!$A$2:$E$73,4,FALSE)","v":1474},{"$f":"VLOOKUP(C586,'HB pops'!$A$2:$E$73,5,FALSE)","v":2830},null,"Powys Teaching LHB","South Powys","85+",471,988,true,true,true,true,true]
["South Powyserror","South Powys","Powys Teaching LHBerror","Powys Teaching LHB","error",0,0,{"$f":"VLOOKUP(C587,'HB pops'!$A$2:$E$73,4,FALSE)","v":{"$error":"#N/A"}},{"$f":"VLOOKUP(C587,'HB pops'!$A$2:$E$73,5,FALSE)","v":{"$error":"#N/A"}}]

{"sheet":"HB pops","index":5,"n_rows":82,"n_cols":14,"rows_kept":82,"cut":false,"hidden":true,"merged":[]}
["HB age","Local Health Board","age","Males","Females"]
[{"$f":"B2&C2","v":"NULL00_02"},"NULL","00_02",236,209]
[{"$f":"B3&C3","v":"NULL03_04"},"NULL","03_04",195,162]
["NULL05_14","NULL","05_14",934,907]
["NULL15_24","NULL","15_24",1404,1435]
["NULL25_44","NULL","25_44",3092,3126]
["NULL45_64","NULL","45_64",2874,2680]
["NULL65_74","NULL","65_74",962,927]
["NULL75_84","NULL","75_84",498,559]
["NULL85+","NULL","85+",166,259,null,"Local Health Board","age_group","Males","Females"]
["Abertawe Bro Morgannwg University LHB00_02","Abertawe Bro Morgannwg University LHB","00_02",9116,8539,null,"Abertawe Bro Morgannwg University LHB","00_02",9116,8539,{"$f":"G11=B11","v":true},{"$f":"H11=C11","v":true},{"$f":"I11=D11","v":true},{"$f":"J11=E11","v":true}]
["Abertawe Bro Morgannwg University LHB03_04","Abertawe Bro Morgannwg University LHB","03_04",6284,5757,null,"Abertawe Bro Morgannwg University LHB","03_04",6284,5757,{"$f":"G12=B12","v":true},{"$f":"H12=C12","v":true},{"$f":"I12=D12","v":true},{"$f":"J12=E12","v":true}]
["Abertawe Bro Morgannwg University LHB05_14","Abertawe Bro Morgannwg University LHB","05_14",29673,28118,null,"Abertawe Bro Morgannwg University LHB","05_14",29673,28118,true,true,true,true]
["Abertawe Bro Morgannwg University LHB15_24","Abertawe Bro Morgannwg University LHB","15_24",36992,34588,null,"Abertawe Bro Morgannwg University LHB","15_24",36992,34588,true,true,true,true]
["Abertawe Bro Morgannwg University LHB25_44","Abertawe Bro Morgannwg University LHB","25_44",71125,67753,null,"Abertawe Bro Morgannwg University LHB","25_44",71125,67753,true,true,true,true]
["Abertawe Bro Morgannwg University LHB45_64","Abertawe Bro Morgannwg University LHB","45_64",72111,70992,null,"Abertawe Bro Morgannwg University LHB","45_64",72111,70992,true,true,true,true]
["Abertawe Bro Morgannwg University LHB65_74","Abertawe Bro Morgannwg University LHB","65_74",26093,27993,null,"Abertawe Bro Morgannwg University LHB","65_74",26093,27993,true,true,true,true]
["Abertawe Bro Morgannwg University LHB75_84","Abertawe Bro Morgannwg University LHB","75_84",14828,18662,null,"Abertawe Bro Morgannwg University LHB","75_84",14828,18662,true,true,true,true]
["Abertawe Bro Morgannwg University LHB85+","Abertawe Bro Morgannwg University LHB","85+",4587,8957,null,"Abertawe Bro Morgannwg University LHB","85+",4587,8957,true,true,true,true]
["Aneurin Bevan LHB00_02","Aneurin Bevan LHB","00_02",10148,9829,null,"Aneurin Bevan LHB","00_02",10148,9829,true,true,true,true]
["Aneurin Bevan LHB03_04","Aneurin Bevan LHB","03_04",7247,6724,null,"Aneurin Bevan LHB","03_04",7247,6724,true,true,true,true]
["Aneurin Bevan LHB05_14","Aneurin Bevan LHB","05_14",34162,32575,null,"Aneurin Bevan LHB","05_14",34162,32575,true,true,true,true]
["Aneurin Bevan LHB15_24","Aneurin Bevan LHB","15_24",39331,37293,null,"Aneurin Bevan LHB","15_24",39331,37293,true,true,true,true]
["Aneurin Bevan LHB25_44","Aneurin Bevan LHB","25_44",76729,74824,null,"Aneurin Bevan LHB","25_44",76729,74824,true,true,true,true]
["Aneurin Bevan LHB45_64","Aneurin Bevan LHB","45_64",81293,79632,null,"Aneurin Bevan LHB","45_64",81293,79632,true,true,true,true]
["Aneurin Bevan LHB65_74","Aneurin Bevan LHB","65_74",28989,30334,null,"Aneurin Bevan LHB","65_74",28989,30334,true,true,true,true]
["Aneurin Bevan LHB75_84","Aneurin Bevan LHB","75_84",15460,19165,null,"Aneurin Bevan LHB","75_84",15460,19165,true,true,true,true]
["Aneurin Bevan LHB85+","Aneurin Bevan LHB","85+",4468,9313,null,"Aneurin Bevan LHB","85+",4468,9313,true,true,true,true]
["Betsi Cadwaladr University LHB00_02","Betsi Cadwaladr University LHB","00_02",11668,11090,null,"Betsi Cadwaladr University LHB","00_02",11668,11090,true,true,true,true]
["Betsi Cadwaladr University LHB03_04","Betsi Cadwaladr University LHB","03_04",7958,7695,null,"Betsi Cadwaladr University LHB","03_04",7958,7695,true,true,true,true]
["Betsi Cadwaladr University LHB05_14","Betsi Cadwaladr University LHB","05_14",38681,36601,null,"Betsi Cadwaladr University LHB","05_14",38681,36601,true,true,true,true]
["Betsi Cadwaladr University LHB15_24","Betsi Cadwaladr University LHB","15_24",44469,42171,null,"Betsi Cadwaladr University LHB","15_24",44469,42171,true,true,true,true]
["Betsi Cadwaladr University LHB25_44","Betsi Cadwaladr University LHB","25_44",86593,83313,null,"Betsi Cadwaladr University LHB","25_44",86593,83313,true,true,true,true]
["Betsi Cadwaladr University LHB45_64","Betsi Cadwaladr University LHB","45_64",95574,94390,null,"Betsi Cadwaladr University LHB","45_64",95574,94390,true,true,true,true]
["Betsi Cadwaladr University LHB65_74","Betsi Cadwaladr University LHB","65_74",37994,40008,null,"Betsi Cadwaladr University LHB","65_74",37994,40008,true,true,true,true]
["Betsi Cadwaladr University LHB75_84","Betsi Cadwaladr University LHB","75_84",20623,25717,null,"Betsi Cadwaladr University LHB","75_84",20623,25717,true,true,true,true]
["Betsi Cadwaladr University LHB85+","Betsi Cadwaladr University LHB","85+",6296,13110,null,"Betsi Cadwaladr University LHB","85+",6296,13110,true,true,true,true]
["Cardiff and Vale University LHB00_02","Cardiff and Vale University LHB","00_02",9234,8819,null,"Cardiff and Vale University LHB","00_02",9234,8819,true,true,true,true]
["Cardiff and Vale University LHB03_04","Cardiff and Vale University LHB","03_04",6236,5962,null,"Cardiff and Vale University LHB","03_04",6236,5962,true,true,true,true]
["Cardiff and Vale University LHB05_14","Cardiff and Vale University LHB","05_14",27093,26014,null,"Cardiff and Vale University LHB","05_14",27093,26014,true,true,true,true]
["Cardiff and Vale University LHB15_24","Cardiff and Vale University LHB","15_24",38100,38944,null,"Cardiff and Vale University LHB","15_24",38100,38944,true,true,true,true]
["Cardiff and Vale University LHB25_44","Cardiff and Vale University LHB","25_44",77328,70100,null,"Cardiff and Vale University LHB","25_44",77328,70100,true,true,true,true]
["Cardiff and Vale University LHB45_64","Cardiff and Vale University LHB","45_64",60628,57152,null,"Cardiff and Vale University LHB","45_64",60628,57152,true,true,true,true]
["Cardiff and Vale University LHB65_74","Cardiff and Vale University LHB","65_74",18257,19314,null,"Cardiff and Vale University LHB","65_74",18257,19314,true,true,true,true]
["Cardiff and Vale University LHB75_84","Cardiff and Vale University LHB","75_84",10562,13593,null,"Cardiff and Vale University LHB","75_84",10562,13593,true,true,true,true]
["Cardiff and Vale University LHB85+","Cardiff and Vale University LHB","85+",3536,7055,null,"Cardiff and Vale University LHB","85+",3536,7055,true,true,true,true]
["Cwm Taf LHB00_02","Cwm Taf LHB","00_02",5305,5189,null,"Cwm Taf LHB","00_02",5305,5189,true,true,true,true]
["Cwm Taf LHB03_04","Cwm Taf LHB","03_04",3711,3609,null,"Cwm Taf LHB","03_04",3711,3609,true,true,true,true]
["Cwm Taf LHB05_14","Cwm Taf LHB","05_14",17228,16308,null,"Cwm Taf LHB","05_14",17228,16308,true,true,true,true]
["Cwm Taf LHB15_24","Cwm Taf LHB","15_24",20099,19344,null,"Cwm Taf LHB","15_24",20099,19344,true,true,true,true]
["Cwm Taf LHB25_44","Cwm Taf LHB","25_44",41431,39269,null,"Cwm Taf LHB","25_44",41431,39269,true,true,true,true]
["Cwm Taf LHB45_64","Cwm Taf LHB","45_64",40262,39398,null,"Cwm Taf LHB","45_64",40262,39398,true,true,true,true]
["Cwm Taf LHB65_74","Cwm Taf LHB","65_74",14371,14912,null,"Cwm Taf LHB","65_74",14371,14912,true,true,true,true]
["Cwm Taf LHB75_84","Cwm Taf LHB","75_84",7374,9394,null,"Cwm Taf LHB","75_84",7374,9394,true,true,true,true]
["Cwm Taf LHB85+","Cwm Taf LHB","85+",2033,4459,null,"Cwm Taf LHB","85+",2033,4459,true,true,true,true]
["Hywel Dda LHB00_02","Hywel Dda LHB","00_02",5902,5713,null,"Hywel Dda LHB","00_02",5902,5713,true,true,true,true]
["Hywel Dda LHB03_04","Hywel Dda LHB","03_04",4000,3982,null,"Hywel Dda LHB","03_04",4000,3982,true,true,true,true]
["Hywel Dda LHB05_14","Hywel Dda LHB","05_14",20944,19446,null,"Hywel Dda LHB","05_14",20944,19446,true,true,true,true]
["Hywel Dda LHB15_24","Hywel Dda LHB","15_24",26686,24805,null,"Hywel Dda LHB","15_24",26686,24805,true,true,true,true]
["Hywel Dda LHB25_44","Hywel Dda LHB","25_44",44960,43208,null,"Hywel Dda LHB","25_44",44960,43208,true,true,true,true]
["Hywel Dda LHB45_64","Hywel Dda LHB","45_64",53741,53871,null,"Hywel Dda LHB","45_64",53741,53871,true,true,true,true]
["Hywel Dda LHB65_74","Hywel Dda LHB","65_74",22386,23123,null,"Hywel Dda LHB","65_74",22386,23123,true,true,true,true]
["Hywel Dda LHB75_84","Hywel Dda LHB","75_84",12318,14537,null,"Hywel Dda LHB","75_84",12318,14537,true,true,true,true]
["Hywel Dda LHB85+","Hywel Dda LHB","85+",3705,7421,null,"Hywel Dda LHB","85+",3705,7421,true,true,true,true]
["Powys Teaching LHB00_02","Powys Teaching LHB","00_02",1882,1896,null,"Powys Teaching LHB","00_02",1882,1896,true,true,true,true]
["Powys Teaching LHB03_04","Powys Teaching LHB","03_04",1435,1320,null,"Powys Teaching LHB","03_04",1435,1320,true,true,true,true]
[{"$f":"B67&C67","v":"Powys Teaching LHB05_14"},"Powys Teaching LHB","05_14",7359,7004,null,"Powys Teaching LHB","05_14",7359,7004,true,true,true,true]
["Powys Teaching LHB15_24","Powys Teaching LHB","15_24",8108,7212,null,"Powys Teaching LHB","15_24",8108,7212,true,true,true,true]
["Powys Teaching LHB25_44","Powys Teaching LHB","25_44",15036,14621,null,"Powys Teaching LHB","25_44",15036,14621,true,true,true,true]
["Powys Teaching LHB45_64","Powys Teaching LHB","45_64",20224,20354,null,"Powys Teaching LHB","45_64",20224,20354,true,true,true,true]
["Powys Teaching LHB65_74","Powys Teaching LHB","65_74",8703,8819,null,"Powys Teaching LHB","65_74",8703,8819,true,true,true,true]
["Powys Teaching LHB75_84","Powys Teaching LHB","75_84",4802,5589,null,"Powys Teaching LHB","75_84",4802,5589,true,true,true,true]
["Powys Teaching LHB85+","Powys Teaching LHB","85+",1474,2830,null,"Powys Teaching LHB","85+",1474,2830,true,true,true,true]
["Wales00_02","Wales","00_02",{"$f":"D11+D20+D29+D38+D47+D56+D65","v":53255},{"$f":"E11+E20+E29+E38+E47+E56+E65","v":51075}]
[null,"Wales","03_04",{"$f":"D12+D21+D30+D39+D48+D57+D66","v":36871},35049]
[null,"Wales","05_14",175140,166066]
[null,"Wales","15_24",213785,204357]
[null,"Wales","25_44",413202,393088]
[null,"Wales","45_64",423833,415789]
[null,"Wales","65_74",156793,164503]
[null,"Wales","75_84",85967,106657]
[null,"Wales","85+",26099,53145]